Workbook

Sheet 1 許可を要する施設数（旧法）
A1: 第6章 食 品 衛 生
A2: 1 食品衛生法による許可を要する施設数（旧法）
R3: 令和6年度
A4: 区 分 | G4: 営業施設数 | O4: 前年度 末現在 営業 施設数 | P4: 営業許可施設数 | R4: 廃 業 施設数
D5: 総数 | E5: 中央 | F5: 北 | G5: 東 | H5: 白石 | I5: 厚別 | J5: 豊平 | K5: 清田 | L5: 南 | M5: 西 | N5: 手稲 | P5: 継続 | Q5: 新規
A6: 総 数 | D6: =SUM(D7,D12:D42) -> 9447 | E6: 4125 | F6: 1060 | G6: 765 | H6: 712 | I6: 292 | J6: 674 | K6: 260 | L6: 441 | M6: 737 | N6: 381 | O6: 12871 | P6: - | Q6: - | R6: 3424
A7: 飲食店営業 | D7: =SUM(E7:N7) -> 7686 | E7: 3630 | F7: 862 | G7: 575 | H7: 537 | I7: 229 | J7: 504 | K7: 190 | L7: 348 | M7: 515 | N7: 296 | O7: 10537 | P7: - | Q7: - | R7: 2851
B8: 一般食堂・レストラン等 | D8: 2262 | E8: 711 | F8: 294 | G8: 265 | H8: 152 | I8: 87 | J8: 182 | K8: 96 | L8: 110 | M8: 217 | N8: 148 | O8: 3024 | P8: - | Q8: - | R8: 762
B9: 仕出し・弁当 | D9: 164 | E9: 29 | F9: 17 | G9: 20 | H9: 16 | I9: 4 | J9: 29 | K9: 8 | L9: 12 | M9: 22 | N9: 7 | O9: 224 | P9: - | Q9: - | R9: 60
B10: 旅館 | D10: 121 | E10: 69 | F10: 11 | G10: 5 | H10: 3 | I10: 4 | J10: 5 | K10: 1 | L10: 16 | M10: 2 | N10: 5 | O10: 174 | P10: - | Q10: - | R10: 53
B11: その他 | D11: 5139 | E11: 2821 | F11: 540 | G11: 285 | H11: 366 | I11: 134 | J11: 288 | K11: 85 | L11: 210 | M11: 274 | N11: 136 | O11: 7115 | P11: - | Q11: - | R11: 1976
A12: 喫茶店営業 | D12: 122 | E12: 32 | F12: 15 | G12: 11 | H12: 5 | I12: 5 | J12: 14 | K12: 6 | L12: 14 | M12: 16 | N12: 4 | O12: 162 | P12: - | Q12: - | R12: 40
A13: 菓子製造業 | D13: 743 | E13: 198 | F13: 92 | G13: 74 | H13: 83 | I13: 26 | J13: 69 | K13: 30 | L13: 45 | M13: 85 | N13: 41 | O13: 973 | P13: - | Q13: - | R13: 230
A14: あん類製造業 | D14: 1 | E14: - | F14: - | G14: - | H14: - | I14: - | J14: 1 | K14: - | L14: - | M14: - | N14: - | O14: 1 | P14: - | Q14: - | R14: -
A15: アイスクリーム類製造業 | D15: 28 | E15: 14 | F15: 3 | G15: 2 | H15: - | I15: - | J15: 2 | K15: - | L15: 3 | M15: 4 | N15: - | O15: 33 | P15: - | Q15: - | R15: 5
A16: 乳処理業 | D16: 5 | E16: - | F16: - | G16: 2 | H16: - | I16: 1 | J16: 1 | K16: 1 | L16: - | M16: - | N16: - | O16: 5 | P16: - | Q16: - | R16: -
A17: 特別牛乳搾取処理業 | D17: 0 | E17: - | F17: - | G17: - | H17: - | I17: - | J17: - | K17: - | L17: - | M17: - | N17: - | O17: - | P17: - | Q17: - | R17: -
A18: 乳製品製造業 | D18: 22 | E18: 10 | F18: 2 | G18: 2 | H18: 1 | I18: 3 | J18: 2 | K18: 1 | L18: 1 | M18: - | N18: - | O18: 27 | P18: - | Q18: - | R18: 5
A19: 集乳業 | D19: 0 | E19: - | F19: - | G19: - | H19: - | I19: - | J19: - | K19: - | L19: - | M19: - | N19: - | O19: - | P19: - | Q19: - | R19: -
A20: 食肉処理業 | D20: 64 | E20: 15 | F20: 4 | G20: 11 | H20: 7 | I20: 2 | J20: 7 | K20: 2 | L20: 2 | M20: 10 | N20: 4 | O20: 85 | P20: - | Q20: - | R20: 21
A21: 食肉販売業 | D21: 187 | E21: 63 | F21: 28 | G21: 18 | H21: 14 | I21: 6 | J21: 18 | K21: 10 | L21: 6 | M21: 17 | N21: 7 | O21: 254 | P21: - | Q21: - | R21: 67
A22: 食肉製品製造業 | D22: 13 | E22: 4 | F22: 1 | G22: 4 | H22: 1 | I22: 1 | J22: - | K22: - | L22: 1 | M22: 1 | N22: - | O22: 20 | P22: - | Q22: - | R22: 7
A23: 魚介類販売業 | D23: 225 | E23: 65 | F23: 31 | G23: 24 | H23: 18 | I23: 4 | J23: 20 | K23: 9 | L23: 11 | M23: 33 | N23: 10 | O23: 322 | P23: - | Q23: - | R23: 97
A24: 魚介類せり売り営業 | D24: 0 | E24: - | F24: - | G24: - | H24: - | I24: - | J24: - | K24: - | L24: - | M24: - | N24: - | O24: - | P24: - | Q24: - | R24: -
A25: 魚肉ねり製品製造業 | D25: 5 | E25: 1 | F25: - | G25: - | H25: 2 | I25: - | J25: - | K25: - | L25: - | M25: 2 | N25: - | O25: 8 | P25: - | Q25: - | R25: 3
A26: 食品の冷凍又は冷蔵業 | D26: 84 | E26: 27 | F26: 3 | G26: 10 | H26: 8 | I26: 6 | J26: 8 | K26: 3 | L26: 1 | M26: 13 | N26: 5 | O26: 111 | P26: - | Q26: - | R26: 27
A27: 食品の放射線照射業 | D27: 0 | E27: - | F27: - | G27: - | H27: - | I27: - | J27: - | K27: - | L27: - | M27: - | N27: - | O27: - | P27: - | Q27: - | R27: -
A28: 清涼飲料水製造業 | D28: 12 | E28: 2 | F28: - | G28: 4 | H28: 1 | I28: - | J28: 2 | K28: 1 | L28: - | M28: 1 | N28: 1 | O28: 16 | P28: - | Q28: - | R28: 4
A29: 乳酸菌飲料製造業 | D29: 2 | E29: - | F29: - | G29: 1 | H29: - | I29: 1 | J29: - | K29: - | L29: - | M29: - | N29: - | O29: 2 | P29: - | Q29: - | R29: -
A30: 氷雪製造業 | D30: 2 | E30: 1 | F30: - | G30: - | H30: - | I30: - | J30: - | K30: - | L30: - | M30: 1 | N30: - | O30: 2 | P30: - | Q30: - | R30: -
A31: そうざい製造業 | D31: 169 | E31: 56 | F31: 12 | G31: 15 | H31: 22 | I31: 5 | J31: 15 | K31: 3 | L31: 6 | M31: 29 | N31: 6 | O31: 222 | P31: - | Q31: - | R31: 53
A32: 食用油脂製造業 | D32: 0 | E32: - | F32: - | G32: - | H32: - | I32: - | J32: - | K32: - | L32: - | M32: - | N32: - | O32: - | P32: - | Q32: - | R32: -
A33: マーガリン又はショートニング製造業 | D33: 1 | E33: - | F33: - | G33: - | H33: 1 | I33: - | J33: - | K33: - | L33: - | M33: - | N33: - | O33: 1 | P33: - | Q33: - | R33: -
A34: みそ製造業 | D34: 4 | E34: 1 | F34: - | G34: - | H34: - | I34: - | J34: - | K34: - | L34: - | M34: 1 | N34: 2 | O34: 4 | P34: - | Q34: - | R34: -
A35: 醤油製造業 | D35: 0 | E35: - | F35: - | G35: - | H35: - | I35: - | J35: - | K35: - | L35: - | M35: - | N35: - | O35: - | P35: - | Q35: - | R35: -
A36: ソース類製造業 | D36: 11 | E36: 2 | F36: - | G36: 1 | H36: - | I36: 1 | J36: 1 | K36: 1 | L36: 1 | M36: 4 | N36: - | O36: 12 | P36: - | Q36: - | R36: 1
A37: 酒類製造業 | D37: 8 | E37: 2 | F37: - | G37: - | H37: 2 | I37: - | J37: 2 | K37: 1 | L37: - | M37: - | N37: 1 | O37: 8 | P37: - | Q37: - | R37: -
A38: 豆腐製造業 | D38: 7 | E38: - | F38: - | G38: 2 | H38: 2 | I38: - | J38: - | K38: - | L38: - | M38: 1 | N38: 2 | O38: 8 | P38: - | Q38: - | R38: 1
A39: 納豆製造業 | D39: 2 | E39: - | F39: - | G39: 1 | H39: - | I39: - | J39: - | K39: 1 | L39: - | M39: - | N39: - | O39: 2 | P39: - | Q39: - | R39: -
A40: めん類製造業 | D40: 32 | E40: 2 | F40: 4 | G40: 5 | H40: 7 | I40: 2 | J40: 6 | K40: - | L40: 1 | M40: 4 | N40: 1 | O40: 40 | P40: - | Q40: - | R40: 8
A41: 缶詰又は瓶詰食品製造業 | D41: 8 | E41: - | F41: 1 | G41: 3 | H41: - | I41: - | J41: 2 | K41: - | L41: 1 | M41: - | N41: 1 | O41: 11 | P41: - | Q41: - | R41: 3
A42: 添加物製造業 | D42: 4 | E42: - | F42: 2 | G42: - | H42: 1 | I42: - | J42: - | K42: 1 | L42: - | M42: - | N42: - | O42: 5 | P42: - | Q42: - | R42: 1
A43: ※改正された食品衛生法が令和３年６月１日に施行されたことにより | R43: 資料 保健所食の安全推進課
A44: 営業許可業種の見直しが行われた。施行前に取得した営業許可である。

Sheet 2 許可を要する施設に対する監視指導（旧法）
A1: 2 許可を要する施設に対する調査・監視指導延施設数（旧法）
P2: 令和6年度
A3: 区 分 | D3: 年度末 現在 営業 施設数 | E3: 調査・監視指導延施設数 | P3: 前年度 調査・監視 指導延 施設数
E4: 総数 | F4: 中央 | G4: 北 | H4: 東 | I4: 白石 | J4: 厚別 | K4: 豊平 | L4: 清田 | M4: 南 | N4: 西 | O4: 手稲
A5: 総 数 | D5: ='1 許可を要する施設数（旧法）'!D6 -> 9447 | E5: =SUM(F5:O5) -> 2606 | F5: =SUM(F6,F11:F41) -> 904 | G5: 308 | H5: 177 | I5: 248 | J5: 135 | K5: 246 | L5: 82 | M5: 87 | N5: 321 | O5: 98 | P5: 9735
A6: 飲食店営業 | D6: ='1 許可を要する施設数（旧法）'!D7 -> 7686 | E6: 1209 | F6: =SUM(F7:F10) -> 205 | G6: 209 | H6: 53 | I6: 161 | J6: 85 | K6: 155 | L6: 38 | M6: 48 | N6: 203 | O6: 52 | P6: 1496
B7: 一般食堂・レストラン等 | D7: ='1 許可を要する施設数（旧法）'!D8 -> 2262 | E7: 350 | F7: 57 | G7: 63 | H7: 10 | I7: 43 | J7: 33 | K7: 25 | L7: 9 | M7: 9 | N7: 81 | O7: 20 | P7: 429
B8: 仕出し・弁当 | D8: ='1 許可を要する施設数（旧法）'!D9 -> 164 | E8: 24 | F8: 2 | G8: 5 | H8: - | I8: 5 | J8: - | K8: 5 | L8: 3 | M8: 2 | N8: - | O8: 2 | P8: 29
B9: 旅館 | D9: ='1 許可を要する施設数（旧法）'!D10 -> 121 | E9: 19 | F9: 13 | G9: 1 | H9: - | I9: - | J9: - | K9: 4 | L9: - | M9: 1 | N9: - | O9: - | P9: 43
B10: その他 | D10: ='1 許可を要する施設数（旧法）'!D11 -> 5139 | E10: 816 | F10: 133 | G10: 140 | H10: 43 | I10: 113 | J10: 52 | K10: 121 | L10: 26 | M10: 36 | N10: 122 | O10: 30 | P10: 995
A11: 喫茶店営業 | D11: ='1 許可を要する施設数（旧法）'!D12 -> 122 | E11: 12 | F11: - | G11: 2 | H11: 1 | I11: 3 | J11: 1 | K11: 2 | L11: - | M11: 1 | N11: 1 | O11: 1 | P11: 18
A12: 菓子製造業 | D12: ='1 許可を要する施設数（旧法）'!D13 -> 743 | E12: 138 | F12: 27 | G12: 15 | H12: 18 | I12: 28 | J12: 6 | K12: 15 | L12: 6 | M12: 5 | N12: 16 | O12: 2 | P12: 203
A13: あん類製造業 | D13: ='1 許可を要する施設数（旧法）'!D14 -> 1 | E13: 0 | F13: - | G13: - | H13: - | I13: - | J13: - | K13: - | L13: - | M13: - | N13: - | O13: - | P13: 2
A14: アイスクリーム類製造業 | D14: ='1 許可を要する施設数（旧法）'!D15 -> 28 | E14: 7 | F14: 3 | G14: - | H14: - | I14: - | J14: - | K14: 2 | L14: 1 | M14: - | N14: 1 | O14: - | P14: 4
A15: 乳処理業 | D15: ='1 許可を要する施設数（旧法）'!D16 -> 5 | E15: 17 | F15: - | G15: - | H15: 10 | I15: - | J15: 5 | K15: 2 | L15: - | M15: - | N15: - | O15: - | P15: 11
A16: 特別牛乳搾取処理業 | D16: ='1 許可を要する施設数（旧法）'!D17 -> 0 | E16: 0 | F16: - | G16: - | H16: - | I16: - | J16: - | K16: - | L16: - | M16: - | N16: - | O16: - | P16: -
A17: 乳製品製造業 | D17: ='1 許可を要する施設数（旧法）'!D18 -> 22 | E17: 18 | F17: 1 | G17: 1 | H17: 8 | I17: - | J17: 5 | K17: 3 | L17: - | M17: - | N17: - | O17: - | P17: 16
A18: 集乳業 | D18: ='1 許可を要する施設数（旧法）'!D19 -> 0 | E18: 0 | F18: - | G18: - | H18: - | I18: - | J18: - | K18: - | L18: - | M18: - | N18: - | O18: - | P18: -
A19: 食肉処理業 | D19: ='1 許可を要する施設数（旧法）'!D20 -> 64 | E19: 35 | F19: 7 | G19: 4 | H19: - | I19: 1 | J19: 4 | K19: 3 | L19: - | M19: - | N19: 14 | O19: 2 | P19: 24
A20: 食肉販売業 | D20: ='1 許可を要する施設数（旧法）'!D21 -> 187 | E20: 206 | F20: 17 | G20: 39 | H20: 29 | I20: 16 | J20: 8 | K20: 25 | L20: 19 | M20: 13 | N20: 22 | O20: 18 | P20: 318
A21: 食肉製品製造業 | D21: ='1 許可を要する施設数（旧法）'!D22 -> 13 | E21: 12 | F21: 5 | G21: - | H21: - | I21: 1 | J21: 3 | K21: - | L21: - | M21: - | N21: 3 | O21: - | P21: 12
A22: 魚介類販売業 | D22: ='1 許可を要する施設数（旧法）'!D23 -> 225 | E22: 800 | F22: 606 | G22: 33 | H22: 30 | I22: 15 | J22: 9 | K22: 26 | L22: 18 | M22: 18 | N22: 23 | O22: 22 | P22: 6498
A23: 魚介類せり売り営業 | D23: ='1 許可を要する施設数（旧法）'!D24 -> 0 | E23: 0 | F23: - | G23: - | H23: - | I23: - | J23: - | K23: - | L23: - | M23: - | N23: - | O23: - | P23: 958
A24: 魚肉ねり製品製造業 | D24: ='1 許可を要する施設数（旧法）'!D25 -> 5 | E24: 15 | F24: 5 | G24: - | H24: - | I24: 2 | J24: - | K24: - | L24: - | M24: - | N24: 8 | O24: - | P24: 18
A25: 食品の冷凍又は冷蔵業 | D25: ='1 許可を要する施設数（旧法）'!D26 -> 84 | E25: 31 | F25: 9 | G25: - | H25: 6 | I25: 3 | J25: 2 | K25: 5 | L25: - | M25: 1 | N25: 5 | O25: - | P25: 42
A26: 食品の放射線照射業 | D26: ='1 許可を要する施設数（旧法）'!D27 -> 0 | E26: 0 | F26: - | G26: - | H26: - | I26: - | J26: - | K26: - | L26: - | M26: - | N26: - | O26: - | P26: -
A27: 清涼飲料水製造業 | D27: ='1 許可を要する施設数（旧法）'!D28 -> 12 | E27: 10 | F27: - | G27: - | H27: 7 | I27: - | J27: - | K27: 2 | L27: - | M27: - | N27: 1 | O27: - | P27: 6
A28: 乳酸菌飲料製造業 | D28: ='1 許可を要する施設数（旧法）'!D29 -> 2 | E28: 4 | F28: - | G28: - | H28: 4 | I28: - | J28: - | K28: - | L28: - | M28: - | N28: - | O28: - | P28: 4
A29: 氷雪製造業 | D29: ='1 許可を要する施設数（旧法）'!D30 -> 2 | E29: 1 | F29: - | G29: - | H29: - | I29: - | J29: - | K29: - | L29: - | M29: - | N29: 1 | O29: - | P29: -
A30: そうざい製造業 | D30: ='1 許可を要する施設数（旧法）'!D31 -> 169 | E30: 64 | F30: 18 | G30: 2 | H30: 4 | I30: 12 | J30: 5 | K30: 6 | L30: - | M30: 1 | N30: 15 | O30: 1 | P30: 79
A31: 食用油脂製造業 | D31: ='1 許可を要する施設数（旧法）'!D32 -> 0 | E31: 0 | F31: - | G31: - | H31: - | I31: - | J31: - | K31: - | L31: - | M31: - | N31: - | O31: - | P31: -
A32: マーガリン又はショートニング製造業 | D32: ='1 許可を要する施設数（旧法）'!D33 -> 1 | E32: 0 | F32: - | G32: - | H32: - | I32: - | J32: - | K32: - | L32: - | M32: - | N32: - | O32: - | P32: -
A33: みそ製造業 | D33: ='1 許可を要する施設数（旧法）'!D34 -> 4 | E33: 1 | F33: - | G33: - | H33: - | I33: - | J33: - | K33: - | L33: - | M33: - | N33: 1 | O33: - | P33: 1
A34: 醤油製造業 | D34: ='1 許可を要する施設数（旧法）'!D35 -> 0 | E34: 0 | F34: - | G34: - | H34: - | I34: - | J34: - | K34: - | L34: - | M34: - | N34: - | O34: - | P34: -
A35: ソース類製造業 | D35: ='1 許可を要する施設数（旧法）'!D36 -> 11 | E35: 9 | F35: - | G35: - | H35: 2 | I35: - | J35: 2 | K35: - | L35: - | M35: - | N35: 5 | O35: - | P35: 4
A36: 酒類製造業 | D36: ='1 許可を要する施設数（旧法）'!D37 -> 8 | E36: 0 | F36: - | G36: - | H36: - | I36: - | J36: - | K36: - | L36: - | M36: - | N36: - | O36: - | P36: -
A37: 豆腐製造業 | D37: ='1 許可を要する施設数（旧法）'!D38 -> 7 | E37: 6 | F37: - | G37: - | H37: - | I37: 4 | J37: - | K37: - | L37: - | M37: - | N37: 2 | O37: - | P37: 6
A38: 納豆製造業 | D38: ='1 許可を要する施設数（旧法）'!D39 -> 2 | E38: 0 | F38: - | G38: - | H38: - | I38: - | J38: - | K38: - | L38: - | M38: - | N38: - | O38: - | P38: 2
A39: めん類製造業 | D39: ='1 許可を要する施設数（旧法）'!D40 -> 32 | E39: 8 | F39: 1 | G39: 3 | H39: 2 | I39: 2 | J39: - | K39: - | L39: - | M39: - | N39: - | O39: - | P39: 5
A40: 缶詰又は瓶詰食品製造業 | D40: ='1 許可を要する施設数（旧法）'!D41 -> 8 | E40: 3 | F40: - | G40: - | H40: 3 | I40: - | J40: - | K40: - | L40: - | M40: - | N40: - | O40: - | P40: 5
A41: 添加物製造業 | D41: ='1 許可を要する施設数（旧法）'!D42 -> 4 | E41: 0 | F41: - | G41: - | H41: - | I41: - | J41: - | K41: - | L41: - | M41: - | N41: - | O41: - | P41: 3
A42: ※改正された食品衛生法が令和３年６月１日に施行されたことにより | P42: 資料 保健所食の安全推進課
A43: 業許可業種の見直しが行われた。施行前に取得した営業許可である。

Sheet 3 許可を要する施設に対する監視指導結果 (旧法)
A1: 3 許可を要する施設に対する監視指導結果
AP2: 令和6年度
A3: 区 分 | D3: 年度末現在営業施設数 | E3: 監視指導延施設数 | F3: 食品衛生法 | AA3: 食品表示法 | AN3: 告発件数
G4: 違反理由(延数) | M4: 処分内容(延数) | W4: 措置内容（延数） | AD4: 処分内容(延数) | AJ4: 措置内容（延数）
F5: 違反発見施設数 | G5: 施設基準 | H5: 公衆衛生上必要な措置の 基準 | I5: 規格基準 | J5: 法第六条 | K5: その他 | L5: 処分件数（実数） | M5: 営業許可の取消 | N5: 営業の禁止 | O5: 営業の停止 | P5: 施設の改善 | Q5: 食品の廃棄 | R5: 食品の販売禁止 | S5: 食品の使用禁止 | T5: 食品の回収 | U5: その他 | V5: 処分以外の措置件数 （実数） | W5: 始末書徴収 | X5: 指導票交付 | Y5: 口頭説諭 | Z5: その他 | AA5: 違反発見施設数 | AB5: 表示基準違反件数 （延数） | AC5: 処分件数（実数） | AD5: 業務停止 | AE5: 回収命令 | AF5: 廃棄命令 | AG5: 販売禁止命令 | AH5: その他 | AI5: 処分以外の措置件数 （実数） | AJ5: 始末書徴収 | AK5: 指導票交付 | AL5: 口頭説諭 | AM5: その他 | AN5: 無許可営業 | AO5: その他 | AP5: 苦情件数
A6: 総 数 | D6: ='1 許可を要する施設数（旧法）'!D6 -> 9447 | E6: ='2 許可を要する施設に対する監視指導（旧法）'!E5 -> 2606 | F6: 34 | G6: 9 | H6: 9 | I6: 3 | J6: 3 | K6: 11 | L6: 3 | M6: - | N6: - | O6: 3 | P6: - | Q6: - | R6: - | S6: - | T6: - | U6: - | V6: 32 | W6: - | X6: 13 | Y6: 19 | Z6: - | AA6: 5 | AB6: 8 | AC6: - | AD6: - | AE6: - | AF6: - | AG6: - | AH6: - | AI6: 8 | AJ6: - | AK6: - | AL6: 8 | AM6: - | AN6: - | AO6: - | AP6: 48
A7: 飲食店営業 | D7: ='1 許可を要する施設数（旧法）'!D7 -> 7686 | E7: ='2 許可を要する施設に対する監視指導（旧法）'!E6 -> 1209 | F7: 24 | G7: 5 | H7: 7 | I7: 1 | J7: 3 | K7: 8 | L7: 3 | M7: - | N7: - | O7: 3 | P7: - | Q7: - | R7: - | S7: - | T7: - | U7: - | V7: 21 | W7: - | X7: 9 | Y7: 12 | Z7: - | AA7: 1 | AB7: 3 | AC7: - | AD7: - | AE7: - | AF7: - | AG7: - | AH7: - | AI7: 3 | AJ7: - | AK7: - | AL7: 3 | AM7: - | AN7: - | AO7: - | AP7: 44
B8: 一般食堂・レストラン等 | D8: ='1 許可を要する施設数（旧法）'!D8 -> 2262 | E8: ='2 許可を要する施設に対する監視指導（旧法）'!E7 -> 350 | F8: 3 | G8: 1 | H8: 1 | I8: - | J8: - | K8: 1 | L8: - | M8: - | N8: - | O8: - | P8: - | Q8: - | R8: - | S8: - | T8: - | U8: - | V8: 3 | W8: - | X8: - | Y8: 3 | Z8: - | AA8: - | AB8: - | AC8: - | AD8: - | AE8: - | AF8: - | AG8: - | AH8: - | AI8: - | AJ8: - | AK8: - | AL8: - | AM8: - | AN8: - | AO8: - | AP8: 10
B9: 仕出し・弁当 | D9: ='1 許可を要する施設数（旧法）'!D9 -> 164 | E9: ='2 許可を要する施設に対する監視指導（旧法）'!E8 -> 24 | F9: 1 | G9: 1 | H9: - | I9: - | J9: - | K9: - | L9: - | M9: - | N9: - | O9: - | P9: - | Q9: - | R9: - | S9: - | T9: - | U9: - | V9: 1 | W9: - | X9: 1 | Y9: - | Z9: - | AA9: - | AB9: - | AC9: - | AD9: - | AE9: - | AF9: - | AG9: - | AH9: - | AI9: - | AJ9: - | AK9: - | AL9: - | AM9: - | AN9: - | AO9: - | AP9: 2
B10: 旅館 | D10: ='1 許可を要する施設数（旧法）'!D10 -> 121 | E10: ='2 許可を要する施設に対する監視指導（旧法）'!E9 -> 19 | F10: - | G10: - | H10: - | I10: - | J10: - | K10: - | L10: - | M10: - | N10: - | O10: - | P10: - | Q10: - | R10: - | S10: - | T10: - | U10: - | V10: - | W10: - | X10: - | Y10: - | Z10: - | AA10: - | AB10: - | AC10: - | AD10: - | AE10: - | AF10: - | AG10: - | AH10: - | AI10: - | AJ10: - | AK10: - | AL10: - | AM10: - | AN10: - | AO10: - | AP10: 1
B11: その他 | D11: ='1 許可を要する施設数（旧法）'!D11 -> 5139 | E11: ='2 許可を要する施設に対する監視指導（旧法）'!E10 -> 816 | F11: 20 | G11: 3 | H11: 6 | I11: 1 | J11: 3 | K11: 7 | L11: 3 | M11: - | N11: - | O11: 3 | P11: - | Q11: - | R11: - | S11: - | T11: - | U11: - | V11: 17 | W11: - | X11: 8 | Y11: 9 | Z11: - | AA11: 1 | AB11: 3 | AC11: - | AD11: - | AE11: - | AF11: - | AG11: - | AH11: - | AI11: 3 | AJ11: - | AK11: - | AL11: 3 | AM11: - | AN11: - | AO11: - | AP11: 31
A12: 喫茶店営業 | D12: ='1 許可を要する施設数（旧法）'!D12 -> 122 | E12: ='2 許可を要する施設に対する監視指導（旧法）'!E11 -> 12 | F12: 1 | G12: 1 | H12: - | I12: - | J12: - | K12: - | L12: - | M12: - | N12: - | O12: - | P12: - | Q12: - | R12: - | S12: - | T12: - | U12: - | V12: 1 | W12: - | X12: 1 | Y12: - | Z12: - | AA12: - | AB12: - | AC12: - | AD12: - | AE12: - | AF12: - | AG12: - | AH12: - | AI12: - | AJ12: - | AK12: - | AL12: - | AM12: - | AN12: - | AO12: - | AP12: -
A13: 菓子製造業 | D13: ='1 許可を要する施設数（旧法）'!D13 -> 743 | E13: ='2 許可を要する施設に対する監視指導（旧法）'!E12 -> 138 | F13: - | G13: - | H13: - | I13: - | J13: - | K13: - | L13: - | M13: - | N13: - | O13: - | P13: - | Q13: - | R13: - | S13: - | T13: - | U13: - | V13: - | W13: - | X13: - | Y13: - | Z13: - | AA13: 1 | AB13: 1 | AC13: - | AD13: - | AE13: - | AF13: - | AG13: - | AH13: - | AI13: 1 | AJ13: - | AK13: - | AL13: 1 | AM13: - | AN13: - | AO13: - | AP13: 2
A14: あん類製造業 | D14: ='1 許可を要する施設数（旧法）'!D14 -> 1 | E14: ='2 許可を要する施設に対する監視指導（旧法）'!E13 -> 0 | F14: - | G14: - | H14: - | I14: - | J14: - | K14: - | L14: - | M14: - | N14: - | O14: - | P14: - | Q14: - | R14: - | S14: - | T14: - | U14: - | V14: - | W14: - | X14: - | Y14: - | Z14: - | AA14: - | AB14: - | AC14: - | AD14: - | AE14: - | AF14: - | AG14: - | AH14: - | AI14: - | AJ14: - | AK14: - | AL14: - | AM14: - | AN14: - | AO14: - | AP14: -
A15: アイスクリーム類製造業 | D15: ='1 許可を要する施設数（旧法）'!D15 -> 28 | E15: ='2 許可を要する施設に対する監視指導（旧法）'!E14 -> 7 | F15: - | G15: - | H15: - | I15: - | J15: - | K15: - | L15: - | M15: - | N15: - | O15: - | P15: - | Q15: - | R15: - | S15: - | T15: - | U15: - | V15: - | W15: - | X15: - | Y15: - | Z15: - | AA15: - | AB15: - | AC15: - | AD15: - | AE15: - | AF15: - | AG15: - | AH15: - | AI15: - | AJ15: - | AK15: - | AL15: - | AM15: - | AN15: - | AO15: - | AP15: -
A16: 乳処理業 | D16: ='1 許可を要する施設数（旧法）'!D16 -> 5 | E16: ='2 許可を要する施設に対する監視指導（旧法）'!E15 -> 17 | F16: - | G16: - | H16: - | I16: - | J16: - | K16: - | L16: - | M16: - | N16: - | O16: - | P16: - | Q16: - | R16: - | S16: - | T16: - | U16: - | V16: - | W16: - | X16: - | Y16: - | Z16: - | AA16: - | AB16: - | AC16: - | AD16: - | AE16: - | AF16: - | AG16: - | AH16: - | AI16: - | AJ16: - | AK16: - | AL16: - | AM16: - | AN16: - | AO16: - | AP16: -
A17: 特別牛乳搾取処理業 | D17: ='1 許可を要する施設数（旧法）'!D17 -> 0 | E17: ='2 許可を要する施設に対する監視指導（旧法）'!E16 -> 0 | F17: - | G17: - | H17: - | I17: - | J17: - | K17: - | L17: - | M17: - | N17: - | O17: - | P17: - | Q17: - | R17: - | S17: - | T17: - | U17: - | V17: - | W17: - | X17: - | Y17: - | Z17: - | AA17: - | AB17: - | AC17: - | AD17: - | AE17: - | AF17: - | AG17: - | AH17: - | AI17: - | AJ17: - | AK17: - | AL17: - | AM17: - | AN17: - | AO17: - | AP17: -
A18: 乳製品製造業 | D18: ='1 許可を要する施設数（旧法）'!D18 -> 22 | E18: ='2 許可を要する施設に対する監視指導（旧法）'!E17 -> 18 | F18: - | G18: - | H18: - | I18: - | J18: - | K18: - | L18: - | M18: - | N18: - | O18: - | P18: - | Q18: - | R18: - | S18: - | T18: - | U18: - | V18: - | W18: - | X18: - | Y18: - | Z18: - | AA18: - | AB18: - | AC18: - | AD18: - | AE18: - | AF18: - | AG18: - | AH18: - | AI18: - | AJ18: - | AK18: - | AL18: - | AM18: - | AN18: - | AO18: - | AP18: -
A19: 集乳業 | D19: ='1 許可を要する施設数（旧法）'!D19 -> 0 | E19: ='2 許可を要する施設に対する監視指導（旧法）'!E18 -> 0 | F19: - | G19: - | H19: - | I19: - | J19: - | K19: - | L19: - | M19: - | N19: - | O19: - | P19: - | Q19: - | R19: - | S19: - | T19: - | U19: - | V19: - | W19: - | X19: - | Y19: - | Z19: - | AA19: - | AB19: - | AC19: - | AD19: - | AE19: - | AF19: - | AG19: - | AH19: - | AI19: - | AJ19: - | AK19: - | AL19: - | AM19: - | AN19: - | AO19: - | AP19: -
A20: 食肉処理業 | D20: ='1 許可を要する施設数（旧法）'!D20 -> 64 | E20: ='2 許可を要する施設に対する監視指導（旧法）'!E19 -> 35 | F20: - | G20: - | H20: - | I20: - | J20: - | K20: - | L20: - | M20: - | N20: - | O20: - | P20: - | Q20: - | R20: - | S20: - | T20: - | U20: - | V20: - | W20: - | X20: - | Y20: - | Z20: - | AA20: - | AB20: - | AC20: - | AD20: - | AE20: - | AF20: - | AG20: - | AH20: - | AI20: - | AJ20: - | AK20: - | AL20: - | AM20: - | AN20: - | AO20: - | AP20: -
A21: 食肉販売業 | D21: ='1 許可を要する施設数（旧法）'!D21 -> 187 | E21: ='2 許可を要する施設に対する監視指導（旧法）'!E20 -> 206 | F21: 1 | G21: - | H21: 1 | I21: - | J21: - | K21: - | L21: - | M21: - | N21: - | O21: - | P21: - | Q21: - | R21: - | S21: - | T21: - | U21: - | V21: 1 | W21: - | X21: - | Y21: 1 | Z21: - | AA21: - | AB21: - | AC21: - | AD21: - | AE21: - | AF21: - | AG21: - | AH21: - | AI21: - | AJ21: - | AK21: - | AL21: - | AM21: - | AN21: - | AO21: - | AP21: 1
A22: 食肉製品製造業 | D22: ='1 許可を要する施設数（旧法）'!D22 -> 13 | E22: ='2 許可を要する施設に対する監視指導（旧法）'!E21 -> 12 | F22: 1 | G22: - | H22: - | I22: 1 | J22: - | K22: - | L22: - | M22: - | N22: - | O22: - | P22: - | Q22: - | R22: - | S22: - | T22: - | U22: - | V22: 1 | W22: - | X22: 1 | Y22: - | Z22: - | AA22: - | AB22: - | AC22: - | AD22: - | AE22: - | AF22: - | AG22: - | AH22: - | AI22: - | AJ22: - | AK22: - | AL22: - | AM22: - | AN22: - | AO22: - | AP22: -
A23: 魚介類販売業 | D23: ='1 許可を要する施設数（旧法）'!D23 -> 225 | E23: ='2 許可を要する施設に対する監視指導（旧法）'!E22 -> 800 | F23: 5 | G23: 3 | H23: - | I23: - | J23: - | K23: 3 | L23: - | M23: - | N23: - | O23: - | P23: - | Q23: - | R23: - | S23: - | T23: - | U23: - | V23: 6 | W23: - | X23: - | Y23: 6 | Z23: - | AA23: 3 | AB23: 4 | AC23: - | AD23: - | AE23: - | AF23: - | AG23: - | AH23: - | AI23: 4 | AJ23: - | AK23: - | AL23: 4 | AM23: - | AN23: - | AO23: - | AP23: -
A24: 魚介類せり売り営業 | D24: ='1 許可を要する施設数（旧法）'!D24 -> 0 | E24: ='2 許可を要する施設に対する監視指導（旧法）'!E23 -> 0 | F24: - | G24: - | H24: - | I24: - | J24: - | K24: - | L24: - | M24: - | N24: - | O24: - | P24: - | Q24: - | R24: - | S24: - | T24: - | U24: - | V24: - | W24: - | X24: - | Y24: - | Z24: - | AA24: - | AB24: - | AC24: - | AD24: - | AE24: - | AF24: - | AG24: - | AH24: - | AI24: - | AJ24: - | AK24: - | AL24: - | AM24: - | AN24: - | AO24: - | AP24: -
A25: 魚肉ねり製品製造業 | D25: ='1 許可を要する施設数（旧法）'!D25 -> 5 | E25: ='2 許可を要する施設に対する監視指導（旧法）'!E24 -> 15 | F25: - | G25: - | H25: - | I25: - | J25: - | K25: - | L25: - | M25: - | N25: - | O25: - | P25: - | Q25: - | R25: - | S25: - | T25: - | U25: - | V25: - | W25: - | X25: - | Y25: - | Z25: - | AA25: - | AB25: - | AC25: - | AD25: - | AE25: - | AF25: - | AG25: - | AH25: - | AI25: - | AJ25: - | AK25: - | AL25: - | AM25: - | AN25: - | AO25: - | AP25: -
A26: 食品の冷凍又は冷蔵業 | D26: ='1 許可を要する施設数（旧法）'!D26 -> 84 | E26: ='2 許可を要する施設に対する監視指導（旧法）'!E25 -> 31 | F26: - | G26: - | H26: - | I26: - | J26: - | K26: - | L26: - | M26: - | N26: - | O26: - | P26: - | Q26: - | R26: - | S26: - | T26: - | U26: - | V26: - | W26: - | X26: - | Y26: - | Z26: - | AA26: - | AB26: - | AC26: - | AD26: - | AE26: - | AF26: - | AG26: - | AH26: - | AI26: - | AJ26: - | AK26: - | AL26: - | AM26: - | AN26: - | AO26: - | AP26: -
A27: 食品の放射線照射業 | D27: ='1 許可を要する施設数（旧法）'!D27 -> 0 | E27: ='2 許可を要する施設に対する監視指導（旧法）'!E26 -> 0 | F27: - | G27: - | H27: - | I27: - | J27: - | K27: - | L27: - | M27: - | N27: - | O27: - | P27: - | Q27: - | R27: - | S27: - | T27: - | U27: - | V27: - | W27: - | X27: - | Y27: - | Z27: - | AA27: - | AB27: - | AC27: - | AD27: - | AE27: - | AF27: - | AG27: - | AH27: - | AI27: - | AJ27: - | AK27: - | AL27: - | AM27: - | AN27: - | AO27: - | AP27: -
A28: 清涼飲料水製造業 | D28: ='1 許可を要する施設数（旧法）'!D28 -> 12 | E28: ='2 許可を要する施設に対する監視指導（旧法）'!E27 -> 10 | F28: - | G28: - | H28: - | I28: - | J28: - | K28: - | L28: - | M28: - | N28: - | O28: - | P28: - | Q28: - | R28: - | S28: - | T28: - | U28: - | V28: - | W28: - | X28: - | Y28: - | Z28: - | AA28: - | AB28: - | AC28: - | AD28: - | AE28: - | AF28: - | AG28: - | AH28: - | AI28: - | AJ28: - | AK28: - | AL28: - | AM28: - | AN28: - | AO28: - | AP28: -
A29: 乳酸菌飲料製造業 | D29: ='1 許可を要する施設数（旧法）'!D29 -> 2 | E29: ='2 許可を要する施設に対する監視指導（旧法）'!E28 -> 4 | F29: - | G29: - | H29: - | I29: - | J29: - | K29: - | L29: - | M29: - | N29: - | O29: - | P29: - | Q29: - | R29: - | S29: - | T29: - | U29: - | V29: - | W29: - | X29: - | Y29: - | Z29: - | AA29: - | AB29: - | AC29: - | AD29: - | AE29: - | AF29: - | AG29: - | AH29: - | AI29: - | AJ29: - | AK29: - | AL29: - | AM29: - | AN29: - | AO29: - | AP29: -
A30: 氷雪製造業 | D30: ='1 許可を要する施設数（旧法）'!D30 -> 2 | E30: ='2 許可を要する施設に対する監視指導（旧法）'!E29 -> 1 | F30: - | G30: - | H30: - | I30: - | J30: - | K30: - | L30: - | M30: - | N30: - | O30: - | P30: - | Q30: - | R30: - | S30: - | T30: - | U30: - | V30: - | W30: - | X30: - | Y30: - | Z30: - | AA30: - | AB30: - | AC30: - | AD30: - | AE30: - | AF30: - | AG30: - | AH30: - | AI30: - | AJ30: - | AK30: - | AL30: - | AM30: - | AN30: - | AO30: - | AP30: -
A31: そうざい製造業 | D31: ='1 許可を要する施設数（旧法）'!D31 -> 169 | E31: ='2 許可を要する施設に対する監視指導（旧法）'!E30 -> 64 | F31: 1 | G31: - | H31: - | I31: 1 | J31: - | K31: - | L31: - | M31: - | N31: - | O31: - | P31: - | Q31: - | R31: - | S31: - | T31: - | U31: - | V31: 1 | W31: - | X31: 1 | Y31: - | Z31: - | AA31: - | AB31: - | AC31: - | AD31: - | AE31: - | AF31: - | AG31: - | AH31: - | AI31: - | AJ31: - | AK31: - | AL31: - | AM31: - | AN31: - | AO31: - | AP31: 1
A32: 食用油脂製造業 | D32: ='1 許可を要する施設数（旧法）'!D32 -> 0 | E32: ='2 許可を要する施設に対する監視指導（旧法）'!E31 -> 0 | F32: - | G32: - | H32: - | I32: - | J32: - | K32: - | L32: - | M32: - | N32: - | O32: - | P32: - | Q32: - | R32: - | S32: - | T32: - | U32: - | V32: - | W32: - | X32: - | Y32: - | Z32: - | AA32: - | AB32: - | AC32: - | AD32: - | AE32: - | AF32: - | AG32: - | AH32: - | AI32: - | AJ32: - | AK32: - | AL32: - | AM32: - | AN32: - | AO32: - | AP32: -
A33: マーガリン又はショートニング製造業 | D33: ='1 許可を要する施設数（旧法）'!D33 -> 1 | E33: ='2 許可を要する施設に対する監視指導（旧法）'!E32 -> 0 | F33: - | G33: - | H33: - | I33: - | J33: - | K33: - | L33: - | M33: - | N33: - | O33: - | P33: - | Q33: - | R33: - | S33: - | T33: - | U33: - | V33: - | W33: - | X33: - | Y33: - | Z33: - | AA33: - | AB33: - | AC33: - | AD33: - | AE33: - | AF33: - | AG33: - | AH33: - | AI33: - | AJ33: - | AK33: - | AL33: - | AM33: - | AN33: - | AO33: - | AP33: -
A34: みそ製造業 | D34: ='1 許可を要する施設数（旧法）'!D34 -> 4 | E34: ='2 許可を要する施設に対する監視指導（旧法）'!E33 -> 1 | F34: - | G34: - | H34: - | I34: - | J34: - | K34: - | L34: - | M34: - | N34: - | O34: - | P34: - | Q34: - | R34: - | S34: - | T34: - | U34: - | V34: - | W34: - | X34: - | Y34: - | Z34: - | AA34: - | AB34: - | AC34: - | AD34: - | AE34: - | AF34: - | AG34: - | AH34: - | AI34: - | AJ34: - | AK34: - | AL34: - | AM34: - | AN34: - | AO34: - | AP34: -
A35: 醤油製造業 | D35: ='1 許可を要する施設数（旧法）'!D35 -> 0 | E35: ='2 許可を要する施設に対する監視指導（旧法）'!E34 -> 0 | F35: - | G35: - | H35: - | I35: - | J35: - | K35: - | L35: - | M35: - | N35: - | O35: - | P35: - | Q35: - | R35: - | S35: - | T35: - | U35: - | V35: - | W35: - | X35: - | Y35: - | Z35: - | AA35: - | AB35: - | AC35: - | AD35: - | AE35: - | AF35: - | AG35: - | AH35: - | AI35: - | AJ35: - | AK35: - | AL35: - | AM35: - | AN35: - | AO35: - | AP35: -
A36: ソース類製造業 | D36: ='1 許可を要する施設数（旧法）'!D36 -> 11 | E36: ='2 許可を要する施設に対する監視指導（旧法）'!E35 -> 9 | F36: - | G36: - | H36: - | I36: - | J36: - | K36: - | L36: - | M36: - | N36: - | O36: - | P36: - | Q36: - | R36: - | S36: - | T36: - | U36: - | V36: - | W36: - | X36: - | Y36: - | Z36: - | AA36: - | AB36: - | AC36: - | AD36: - | AE36: - | AF36: - | AG36: - | AH36: - | AI36: - | AJ36: - | AK36: - | AL36: - | AM36: - | AN36: - | AO36: - | AP36: -
A37: 酒類製造業 | D37: ='1 許可を要する施設数（旧法）'!D37 -> 8 | E37: ='2 許可を要する施設に対する監視指導（旧法）'!E36 -> 0 | F37: - | G37: - | H37: - | I37: - | J37: - | K37: - | L37: - | M37: - | N37: - | O37: - | P37: - | Q37: - | R37: - | S37: - | T37: - | U37: - | V37: - | W37: - | X37: - | Y37: - | Z37: - | AA37: - | AB37: - | AC37: - | AD37: - | AE37: - | AF37: - | AG37: - | AH37: - | AI37: - | AJ37: - | AK37: - | AL37: - | AM37: - | AN37: - | AO37: - | AP37: -
A38: 豆腐製造業 | D38: ='1 許可を要する施設数（旧法）'!D38 -> 7 | E38: ='2 許可を要する施設に対する監視指導（旧法）'!E37 -> 6 | F38: - | G38: - | H38: - | I38: - | J38: - | K38: - | L38: - | M38: - | N38: - | O38: - | P38: - | Q38: - | R38: - | S38: - | T38: - | U38: - | V38: - | W38: - | X38: - | Y38: - | Z38: - | AA38: - | AB38: - | AC38: - | AD38: - | AE38: - | AF38: - | AG38: - | AH38: - | AI38: - | AJ38: - | AK38: - | AL38: - | AM38: - | AN38: - | AO38: - | AP38: -
A39: 納豆製造業 | D39: ='1 許可を要する施設数（旧法）'!D39 -> 2 | E39: ='2 許可を要する施設に対する監視指導（旧法）'!E38 -> 0 | F39: - | G39: - | H39: - | I39: - | J39: - | K39: - | L39: - | M39: - | N39: - | O39: - | P39: - | Q39: - | R39: - | S39: - | T39: - | U39: - | V39: - | W39: - | X39: - | Y39: - | Z39: - | AA39: - | AB39: - | AC39: - | AD39: - | AE39: - | AF39: - | AG39: - | AH39: - | AI39: - | AJ39: - | AK39: - | AL39: - | AM39: - | AN39: - | AO39: - | AP39: -
A40: めん類製造業 | D40: ='1 許可を要する施設数（旧法）'!D40 -> 32 | E40: ='2 許可を要する施設に対する監視指導（旧法）'!E39 -> 8 | F40: 1 | G40: - | H40: 1 | I40: - | J40: - | K40: - | L40: - | M40: - | N40: - | O40: - | P40: - | Q40: - | R40: - | S40: - | T40: - | U40: - | V40: 1 | W40: - | X40: 1 | Y40: - | Z40: - | AA40: - | AB40: - | AC40: - | AD40: - | AE40: - | AF40: - | AG40: - | AH40: - | AI40: - | AJ40: - | AK40: - | AL40: - | AM40: - | AN40: - | AO40: - | AP40: -
A41: 缶詰又は瓶詰食品製造業 | D41: ='1 許可を要する施設数（旧法）'!D41 -> 8 | E41: ='2 許可を要する施設に対する監視指導（旧法）'!E40 -> 3 | F41: - | G41: - | H41: - | I41: - | J41: - | K41: - | L41: - | M41: - | N41: - | O41: - | P41: - | Q41: - | R41: - | S41: - | T41: - | U41: - | V41: - | W41: - | X41: - | Y41: - | Z41: - | AA41: - | AB41: - | AC41: - | AD41: - | AE41: - | AF41: - | AG41: - | AH41: - | AI41: - | AJ41: - | AK41: - | AL41: - | AM41: - | AN41: - | AO41: - | AP41: -
A42: 添加物製造業 | D42: ='1 許可を要する施設数（旧法）'!D42 -> 4 | E42: ='2 許可を要する施設に対する監視指導（旧法）'!E41 -> 0 | F42: - | G42: - | H42: - | I42: - | J42: - | K42: - | L42: - | M42: - | N42: - | O42: - | P42: - | Q42: - | R42: - | S42: - | T42: - | U42: - | V42: - | W42: - | X42: - | Y42: - | Z42: - | AA42: - | AB42: - | AC42: - | AD42: - | AE42: - | AF42: - | AG42: - | AH42: - | AI42: - | AJ42: - | AK42: - | AL42: - | AM42: - | AN42: - | AO42: - | AP42: -
A43: ※改正された食品衛生法が令和３年６月１日に施行されたことにより、営業許可業種の見直しが行われた。施行前に 取得した営業許可である | AP43: 資料 保健所食の安全推進課

Sheet ４ 許可を要する施設数 (新法)
A1: 第6章 食 品 衛 生
A2: ４ 食品衛生法による許可を要する施設数（新法）
R3: 令和6年度
A4: 区 分 | G4: 営業施設数 | O4: 前年度 末現在 営業 施設数 | P4: 営業許可施設数 | R4: 廃 業 施設数
D5: 総数 | E5: 中央 | F5: 北 | G5: 東 | H5: 白石 | I5: 厚別 | J5: 豊平 | K5: 清田 | L5: 南 | M5: 西 | N5: 手稲 | P5: 継続 | Q5: 新規
A6: 総 数 | D6: =SUM(E6:N6) -> 15676 | E6: =SUM(E7:E38) -> 7086 | F6: 1573 | G6: 1209 | H6: 1149 | I6: 556 | J6: 1046 | K6: 466 | L6: 822 | M6: 1173 | N6: 596 | O6: 12115 | P6: - | Q6: =SUM(Q7:Q38) -> 6918 | R6: 3357
A7: 飲食店営業 | D7: 12798 | E7: 6188 | F7: 1277 | G7: 915 | H7: 877 | I7: 440 | J7: 825 | K7: 347 | L7: 631 | M7: 847 | N7: 451 | O7: 9937 | P7: - | Q7: 6129 | R7: 3268
A8: 調理機能を有する自動販売機 | C8: 6 | D8: 4 | E8: 4 | F8: - | G8: - | H8: - | I8: - | J8: - | K8: - | L8: - | M8: - | N8: - | O8: 4 | P8: - | Q8: - | R8: -
A9: 食肉販売業 | C9: 321 | D9: 327 | E9: 80 | F9: 35 | G9: 38 | H9: 31 | I9: 20 | J9: 31 | K9: 24 | L9: 18 | M9: 29 | N9: 21 | O9: 245 | P9: - | Q9: 88 | R9: 6
A10: 魚介類販売業 | C10: 294 | D10: 344 | E10: 126 | F10: 33 | G10: 34 | H10: 27 | I10: 12 | J10: 24 | K10: 18 | L10: 18 | M10: 37 | N10: 15 | O10: 258 | P10: - | Q10: 96 | R10: 10
A11: 魚介類競り売り営業 | D11: 2 | E11: 2 | F11: - | G11: - | H11: - | I11: - | J11: - | K11: - | L11: - | M11: - | N11: - | O11: 2 | P11: - | Q11: - | R11: -
A12: 集乳業 | C12: 0 | D12: 0 | E12: - | F12: - | G12: - | H12: - | I12: - | J12: - | K12: - | L12: - | M12: - | N12: - | O12: - | P12: - | Q12: - | R12: -
A13: 乳処理業 | D13: 1 | E13: - | F13: 1 | G13: - | H13: - | I13: - | J13: - | K13: - | L13: - | M13: - | N13: - | O13: 1 | P13: - | Q13: - | R13: -
A14: 特別牛乳搾取処理業 | D14: 0 | E14: - | F14: - | G14: - | H14: - | I14: - | J14: - | K14: - | L14: - | M14: - | N14: - | O14: - | P14: - | Q14: - | R14: -
A15: 食肉処理業 | D15: 17 | E15: 2 | F15: 2 | G15: 3 | H15: 5 | I15: 1 | J15: - | K15: - | L15: 1 | M15: 3 | N15: - | O15: 13 | P15: - | Q15: 4 | R15: -
A16: 食品の放射線照射業 | D16: 0 | E16: - | F16: - | G16: - | H16: - | I16: - | J16: - | K16: - | L16: - | M16: - | N16: - | O16: - | P16: - | Q16: - | R16: -
A17: 菓子製造業 | D17: 1178 | E17: 363 | F17: 135 | G17: 100 | H17: 106 | I17: 51 | J17: 99 | K17: 46 | L17: 101 | M17: 120 | N17: 57 | O17: 875 | P17: - | Q17: 349 | R17: 46
A18: アイスクリーム類製造業 | D18: 47 | E18: 16 | F18: 4 | G18: 7 | H18: 3 | I18: 2 | J18: 3 | K18: 3 | L18: 6 | M18: 1 | N18: 2 | O18: 35 | P18: - | Q18: 15 | R18: 3
A19: 乳製品製造業 | D19: 16 | E19: 6 | F19: 1 | G19: 4 | H19: 1 | I19: 2 | J19: - | K19: 1 | L19: - | M19: 1 | N19: - | O19: 11 | P19: - | Q19: 7 | R19: 2
A20: 清涼飲料水製造業 | D20: 14 | E20: 2 | F20: 2 | G20: 1 | H20: 1 | I20: - | J20: 1 | K20: 2 | L20: 1 | M20: 2 | N20: 2 | O20: 13 | P20: - | Q20: 2 | R20: 1
A21: 食肉製品製造業 | D21: 19 | E21: 5 | F21: - | G21: 3 | H21: 3 | I21: 1 | J21: 1 | K21: - | L21: 2 | M21: 3 | N21: 1 | O21: 15 | P21: - | Q21: 4 | R21: -
A22: 水産製品製造業 | D22: 181 | E22: 66 | F22: 13 | G22: 13 | H22: 6 | I22: 5 | J22: 7 | K22: 5 | L22: 9 | M22: 46 | N22: 11 | O22: 122 | P22: - | Q22: 62 | R22: 3
A23: 氷雪製造業 | D23: 2 | E23: - | F23: - | G23: - | H23: - | I23: - | J23: - | K23: - | L23: - | M23: - | N23: 2 | O23: 2 | P23: - | Q23: - | R23: -
A24: 液卵製造業 | D24: 3 | E24: 1 | F24: - | G24: - | H24: - | I24: - | J24: - | K24: 1 | L24: 1 | M24: - | N24: - | O24: 1 | P24: - | Q24: 2 | R24: -
A25: 食用油脂製造業 | D25: 2 | E25: 1 | F25: - | G25: - | H25: - | I25: 1 | J25: - | K25: - | L25: - | M25: - | N25: - | O25: 2 | P25: - | Q25: - | R25: -
A26: みそ又はしょうゆ製造業 | D26: 6 | E26: 2 | F26: 1 | G26: 1 | H26: - | I26: - | J26: 1 | K26: - | L26: - | M26: 1 | N26: - | O26: 5 | P26: - | Q26: 1 | R26: -
A27: 酒類製造業 | D27: 14 | E27: 7 | F27: - | G27: - | H27: - | I27: - | J27: - | K27: - | L27: 4 | M27: 1 | N27: 2 | O27: 12 | P27: - | Q27: 2 | R27: -
A28: 豆腐製造業 | D28: 8 | E28: 3 | F28: - | G28: 2 | H28: - | I28: - | J28: - | K28: 1 | L28: 1 | M28: 1 | N28: - | O28: 7 | P28: - | Q28: 2 | R28: 1
A29: 納豆製造業 | D29: 1 | E29: 1 | F29: - | G29: - | H29: - | I29: - | J29: - | K29: - | L29: - | M29: - | N29: - | O29: - | P29: - | Q29: 1 | R29: -
A30: 麺類製造業 | D30: 51 | E30: 13 | F30: 6 | G30: 8 | H30: 5 | I30: - | J30: 3 | K30: 3 | L30: 2 | M30: 7 | N30: 4 | O30: 38 | P30: - | Q30: 15 | R30: 2
A31: そうざい製造業 | D31: 323 | E31: 106 | F31: 28 | G31: 39 | H31: 37 | I31: 13 | J31: 25 | K31: 9 | L31: 14 | M31: 36 | N31: 16 | O31: 272 | P31: - | Q31: 62 | R31: 11
A32: 複合型そうざい製造業 | D32: 11 | E32: 3 | F32: - | G32: 1 | H32: 4 | I32: 1 | J32: - | K32: 1 | L32: - | M32: - | N32: 1 | O32: 10 | P32: - | Q32: 1 | R32: -
A33: 冷凍食品製造業 | D33: 167 | E33: 57 | F33: 20 | G33: 19 | H33: 22 | I33: 4 | J33: 14 | K33: 1 | L33: 5 | M33: 17 | N33: 8 | O33: 131 | P33: - | Q33: 39 | R33: 3
A34: 複合型冷凍食品製造業 | D34: 0 | E34: - | F34: - | G34: - | H34: - | I34: - | J34: - | K34: - | L34: - | M34: - | N34: - | O34: - | P34: - | Q34: - | R34: -
A35: 漬物製造業 | D35: 39 | E35: 10 | F35: 1 | G35: 4 | H35: 5 | I35: 1 | J35: 5 | K35: 2 | L35: 4 | M35: 7 | N35: - | O35: 27 | P35: - | Q35: 12 | R35: -
A36: 密封包装食品製造業 | D36: 59 | E36: 8 | F36: 9 | G36: 10 | H36: 10 | I36: 1 | J36: 5 | K36: 2 | L36: 3 | M36: 9 | N36: 2 | O36: 43 | P36: - | Q36: 16 | R36: -
A37: 食品の小分け業 | D37: 39 | E37: 14 | F37: 5 | G37: 7 | H37: 3 | I37: 1 | J37: 2 | K37: - | L37: 1 | M37: 5 | N37: 1 | O37: 31 | P37: - | Q37: 9 | R37: 1
A38: 添加物製造業 | D38: 3 | E38: - | F38: - | G38: - | H38: 3 | I38: - | J38: - | K38: - | L38: - | M38: - | N38: - | O38: 3 | P38: - | Q38: - | R38: -
A39: ※改正された食品衛生法が令和３年６月１日に施行されたことにより | R39: 資料 保健所食の安全推進課
A40: 業許可業種の見直しが行われた。施行後に取得した営業許可である。

Sheet ５ 許可を要する施設に対する監視指導 (新法)
A1: ５ 許可を要する施設に対する調査・監視指導延施設数（新法）
P2: 令和6年度
A3: 区 分 | D3: 年度末 現在 営業 施設数 | E3: 調査・監視指導延施設数 | P3: 前年度 調査・監視 指導延 施設数
E4: 総数 | F4: 中央 | G4: 北 | H4: 東 | I4: 白石 | J4: 厚別 | K4: 豊平 | L4: 清田 | M4: 南 | N4: 西 | O4: 手稲
A5: 総 数 | D5: ='４ 許可を要する施設数 (新法)'!D6 -> 15676 | E5: 14806 | F5: 10813 | G5: 459 | H5: 608 | I5: 666 | J5: 241 | K5: 604 | L5: 255 | M5: 316 | N5: 551 | O5: 293 | P5: 12115
A6: 飲食店営業 | D6: ='４ 許可を要する施設数 (新法)'!D7 -> 12798 | E6: 5703 | F6: 2946 | G6: 275 | H6: 410 | I6: 492 | J6: 167 | K6: 476 | L6: 163 | M6: 242 | N6: 330 | O6: 202 | P6: 9937
A7: 調理機能を有する自動販売機 | D7: ='４ 許可を要する施設数 (新法)'!D8 -> 4 | E7: - | F7: - | G7: - | H7: - | I7: - | J7: - | K7: - | L7: - | M7: - | N7: - | O7: - | P7: 4
A8: 食肉販売業 | D8: ='４ 許可を要する施設数 (新法)'!D9 -> 327 | E8: 271 | F8: 38 | G8: 37 | H8: 39 | I8: 18 | J8: 17 | K8: 24 | L8: 27 | M8: 10 | N8: 35 | O8: 26 | P8: 245
A9: 魚介類販売業 | D9: ='４ 許可を要する施設数 (新法)'!D10 -> 344 | E9: 6673 | F9: 6434 | G9: 45 | H9: 42 | I9: 23 | J9: 10 | K9: 23 | L9: 20 | M9: 7 | N9: 44 | O9: 25 | P9: 258
A10: 魚介類競り売り営業 | D10: ='４ 許可を要する施設数 (新法)'!D11 -> 2 | E10: 1033 | F10: 1033 | G10: - | H10: - | I10: - | J10: - | K10: - | L10: - | M10: - | N10: - | O10: - | P10: 2
A11: 集乳業 | D11: ='４ 許可を要する施設数 (新法)'!D12 -> 0 | E11: - | F11: - | G11: - | H11: - | I11: - | J11: - | K11: - | L11: - | M11: - | N11: - | O11: - | P11: -
A12: 乳処理業 | D12: ='４ 許可を要する施設数 (新法)'!D13 -> 1 | E12: - | F12: - | G12: - | H12: - | I12: - | J12: - | K12: - | L12: - | M12: - | N12: - | O12: - | P12: 1
A13: 特別牛乳搾取処理業 | D13: ='４ 許可を要する施設数 (新法)'!D14 -> 0 | E13: - | F13: - | G13: - | H13: - | I13: - | J13: - | K13: - | L13: - | M13: - | N13: - | O13: - | P13: -
A14: 食肉処理業 | D14: ='４ 許可を要する施設数 (新法)'!D15 -> 17 | E14: 14 | F14: 2 | G14: - | H14: 3 | I14: 3 | J14: 1 | K14: - | L14: - | M14: 1 | N14: 4 | O14: - | P14: 13
A15: 食品の放射線照射業 | D15: ='４ 許可を要する施設数 (新法)'!D16 -> 0 | E15: - | F15: - | G15: - | H15: - | I15: - | J15: - | K15: - | L15: - | M15: - | N15: - | O15: - | P15: -
A16: 菓子製造業 | D16: ='４ 許可を要する施設数 (新法)'!D17 -> 1178 | E16: 484 | F16: 156 | G16: 53 | H16: 55 | I16: 41 | J16: 19 | K16: 40 | L16: 26 | M16: 39 | N16: 37 | O16: 18 | P16: 875
A17: アイスクリーム類製造業 | D17: ='４ 許可を要する施設数 (新法)'!D18 -> 47 | E17: 32 | F17: 6 | G17: 3 | H17: 5 | I17: 4 | J17: 3 | K17: 3 | L17: 5 | M17: 1 | N17: - | O17: 2 | P17: 35
A18: 乳製品製造業 | D18: ='４ 許可を要する施設数 (新法)'!D19 -> 16 | E18: 14 | F18: 2 | G18: - | H18: 6 | I18: 1 | J18: 1 | K18: - | L18: 1 | M18: - | N18: 3 | O18: - | P18: 11
A19: 清涼飲料水製造業 | D19: ='４ 許可を要する施設数 (新法)'!D20 -> 14 | E19: 5 | F19: 1 | G19: - | H19: 1 | I19: - | J19: - | K19: 2 | L19: 1 | M19: - | N19: - | O19: - | P19: 13
A20: 食肉製品製造業 | D20: ='４ 許可を要する施設数 (新法)'!D21 -> 19 | E20: 21 | F20: 1 | G20: - | H20: 1 | I20: 4 | J20: 2 | K20: - | L20: - | M20: - | N20: 10 | O20: 3 | P20: 15
A21: 水産製品製造業 | D21: ='４ 許可を要する施設数 (新法)'!D22 -> 181 | E21: 177 | F21: 101 | G21: 4 | H21: 4 | I21: 10 | J21: 6 | K21: 9 | L21: 2 | M21: 3 | N21: 35 | O21: 3 | P21: 122
A22: 氷雪製造業 | D22: ='４ 許可を要する施設数 (新法)'!D23 -> 2 | E22: - | F22: - | G22: - | H22: - | I22: - | J22: - | K22: - | L22: - | M22: - | N22: - | O22: - | P22: 2
A23: 液卵製造業 | D23: ='４ 許可を要する施設数 (新法)'!D24 -> 3 | E23: 5 | F23: 3 | G23: - | H23: - | I23: - | J23: - | K23: - | L23: 2 | M23: - | N23: - | O23: - | P23: 1
A24: 食用油脂製造業 | D24: ='４ 許可を要する施設数 (新法)'!D25 -> 2 | E24: - | F24: - | G24: - | H24: - | I24: - | J24: - | K24: - | L24: - | M24: - | N24: - | O24: - | P24: 2
A25: みそ又はしょうゆ製造業 | D25: ='４ 許可を要する施設数 (新法)'!D26 -> 6 | E25: 3 | F25: 1 | G25: - | H25: 2 | I25: - | J25: - | K25: - | L25: - | M25: - | N25: - | O25: - | P25: 5
A26: 酒類製造業 | D26: ='４ 許可を要する施設数 (新法)'!D27 -> 14 | E26: 6 | F26: 3 | G26: - | H26: - | I26: - | J26: - | K26: - | L26: - | M26: 2 | N26: - | O26: 1 | P26: 12
A27: 豆腐製造業 | D27: ='４ 許可を要する施設数 (新法)'!D28 -> 8 | E27: 7 | F27: 3 | G27: - | H27: 1 | I27: - | J27: - | K27: - | L27: 2 | M27: - | N27: 1 | O27: - | P27: 7
A28: 納豆製造業 | D28: ='４ 許可を要する施設数 (新法)'!D29 -> 1 | E28: 1 | F28: 1 | G28: - | H28: - | I28: - | J28: - | K28: - | L28: - | M28: - | N28: - | O28: - | P28: -
A29: 麺類製造業 | D29: ='４ 許可を要する施設数 (新法)'!D30 -> 51 | E29: 28 | F29: 7 | G29: 3 | H29: 4 | I29: 6 | J29: - | K29: 1 | L29: 1 | M29: - | N29: 4 | O29: 2 | P29: 38
A30: そうざい製造業 | D30: ='４ 許可を要する施設数 (新法)'!D31 -> 323 | E30: 149 | F30: 38 | G30: 18 | H30: 15 | I30: 20 | J30: 10 | K30: 9 | L30: 1 | M30: 5 | N30: 25 | O30: 8 | P30: 272
A31: 複合型そうざい製造業 | D31: ='４ 許可を要する施設数 (新法)'!D32 -> 11 | E31: 15 | F31: 2 | G31: - | H31: 2 | I31: 8 | J31: - | K31: - | L31: 3 | M31: - | N31: - | O31: - | P31: 10
A32: 冷凍食品製造業 | D32: ='４ 許可を要する施設数 (新法)'!D33 -> 167 | E32: 82 | F32: 19 | G32: 11 | H32: 8 | I32: 18 | J32: 2 | K32: 9 | L32: - | M32: 2 | N32: 10 | O32: 3 | P32: 131
A33: 複合型冷凍食品製造業 | D33: ='４ 許可を要する施設数 (新法)'!D34 -> 0 | E33: - | F33: - | G33: - | H33: - | I33: - | J33: - | K33: - | L33: - | M33: - | N33: - | O33: - | P33: -
A34: 漬物製造業 | D34: ='４ 許可を要する施設数 (新法)'!D35 -> 39 | E34: 29 | F34: 6 | G34: - | H34: 2 | I34: 5 | J34: 1 | K34: 3 | L34: - | M34: 2 | N34: 10 | O34: - | P34: 27
A35: 密封包装食品製造業 | D35: ='４ 許可を要する施設数 (新法)'!D36 -> 59 | E35: 27 | F35: 2 | G35: 4 | H35: 6 | I35: 5 | J35: 2 | K35: 2 | L35: 1 | M35: 2 | N35: 3 | O35: - | P35: 43
A36: 食品の小分け業 | D36: ='４ 許可を要する施設数 (新法)'!D37 -> 39 | E36: 25 | F36: 8 | G36: 6 | H36: 2 | I36: 6 | J36: - | K36: 3 | L36: - | M36: - | N36: - | O36: - | P36: 31
A37: 添加物製造業 | D37: ='４ 許可を要する施設数 (新法)'!D38 -> 3 | E37: 2 | F37: - | G37: - | H37: - | I37: 2 | J37: - | K37: - | L37: - | M37: - | N37: - | O37: - | P37: 3
A38: ※改正された食品衛生法が令和３年６月１日に施行されたことにより | P38: 資料 保健所食の安全推進課
A39: 業許可業種の見直しが行われた。施行後に取得した営業許可である。

Sheet ６ 許可を要する施設に対する監視指導結果（新法） (2)
A1: ６ 許可を要する施設に対する監視指導結果（新法）
AP2: 令和6年度
A3: 区 分 | D3: 年度末現在営業施設数 | E3: 監視指導延施設数 | F3: 食品衛生法 | AA3: 食品表示法 | AN3: 告発件数
G4: 違反理由(延数) | M4: 処分内容(延数) | W4: 措置内容（延数） | AD4: 処分内容(延数) | AJ4: 措置内容（延数）
F5: 違反発見施設数 | G5: 施設基準 | H5: 公衆衛生上必要な措置の基準 | I5: 規格基準 | J5: 法第六条 | K5: その他 | L5: 処分件数（実数） | M5: 営業許可の取消 | N5: 営業の禁止 | O5: 営業の停止 | P5: 施設の改善 | Q5: 食品の廃棄 | R5: 食品の販売禁止 | S5: 食品の使用禁止 | T5: 食品の回収 | U5: その他 | V5: 処分以外の措置件数 （実数） | W5: 始末書徴収 | X5: 指導票交付 | Y5: 口頭説諭 | Z5: その他 | AA5: 違反発見施設数 | AB5: 表示基準違反件数 （延数） | AC5: 処分件数（実数） | AD5: 業務停止 | AE5: 回収命令 | AF5: 廃棄命令 | AG5: 販売禁止命令 | AH5: その他 | AI5: 処分以外の措置件数 （実数） | AJ5: 始末書徴収 | AK5: 指導票交付 | AL5: 口頭説諭 | AM5: その他 | AN5: 無許可営業 | AO5: その他 | AP5: 苦情件数
A6: 総 数 | D6: 15676 | E6: 14806 | F6: 87 | G6: 13 | H6: 25 | I6: - | J6: 6 | K6: 95 | L6: 5 | M6: - | N6: - | O6: 5 | P6: - | Q6: - | R6: - | S6: - | T6: - | U6: - | V6: 135 | W6: - | X6: 32 | Y6: 96 | Z6: 8 | AA6: 16 | AB6: 73 | AC6: - | AD6: - | AE6: - | AF6: - | AG6: - | AH6: - | AI6: 73 | AJ6: - | AK6: 4 | AL6: 69 | AM6: 1 | AN6: - | AO6: - | AP6: 78
A7: 飲食店営業 | D7: 12798 | E7: 5703 | F7: 52 | G7: 9 | H7: 19 | I7: - | J7: 5 | K7: 23 | L7: 5 | M7: - | N7: - | O7: 5 | P7: - | Q7: - | R7: - | S7: - | T7: - | U7: - | V7: 53 | W7: - | X7: 25 | Y7: 21 | Z7: 7 | AA7: 1 | AB7: 1 | AC7: - | AD7: - | AE7: - | AF7: - | AG7: - | AH7: - | AI7: 1 | AJ7: - | AK7: - | AL7: 1 | AM7: - | AN7: - | AO7: - | AP7: 66
A8: 調理機能を有する自動販売機 | D8: 4 | E8: - | F8: - | G8: - | H8: - | I8: - | J8: - | K8: - | L8: - | M8: - | N8: - | O8: - | P8: - | Q8: - | R8: - | S8: - | T8: - | U8: - | V8: - | W8: - | X8: - | Y8: - | Z8: - | AA8: - | AB8: - | AC8: - | AD8: - | AE8: - | AF8: - | AG8: - | AH8: - | AI8: - | AJ8: - | AK8: - | AL8: - | AM8: - | AN8: - | AO8: - | AP8: -
A9: 食肉販売業 | D9: 327 | E9: 271 | F9: 2 | G9: - | H9: 2 | I9: - | J9: - | K9: - | L9: - | M9: - | N9: - | O9: - | P9: - | Q9: - | R9: - | S9: - | T9: - | U9: - | V9: 2 | W9: - | X9: 1 | Y9: 1 | Z9: - | AA9: - | AB9: - | AC9: - | AD9: - | AE9: - | AF9: - | AG9: - | AH9: - | AI9: - | AJ9: - | AK9: - | AL9: - | AM9: - | AN9: - | AO9: - | AP9: 3
A10: 魚介類販売業 | D10: 344 | E10: 6673 | F10: 20 | G10: - | H10: 2 | I10: - | J10: 1 | K10: 35 | L10: - | M10: - | N10: - | O10: - | P10: - | Q10: - | R10: - | S10: - | T10: - | U10: - | V10: 38 | W10: - | X10: 1 | Y10: 37 | Z10: - | AA10: 6 | AB10: 12 | AC10: - | AD10: - | AE10: - | AF10: - | AG10: - | AH10: - | AI10: 12 | AJ10: - | AK10: - | AL10: 12 | AM10: - | AN10: - | AO10: - | AP10: 2
A11: 魚介類競り売り営業 | D11: 2 | E11: 1033 | F11: 2 | G11: - | H11: - | I11: - | J11: - | K11: 28 | L11: - | M11: - | N11: - | O11: - | P11: - | Q11: - | R11: - | S11: - | T11: - | U11: - | V11: 28 | W11: - | X11: - | Y11: 28 | Z11: - | AA11: 2 | AB11: 53 | AC11: - | AD11: - | AE11: - | AF11: - | AG11: - | AH11: - | AI11: 53 | AJ11: - | AK11: - | AL11: 53 | AM11: - | AN11: - | AO11: - | AP11: -
A12: 集乳業 | D12: - | E12: - | F12: - | G12: - | H12: - | I12: - | J12: - | K12: - | L12: - | M12: - | N12: - | O12: - | P12: - | Q12: - | R12: - | S12: - | T12: - | U12: - | V12: - | W12: - | X12: - | Y12: - | Z12: - | AA12: - | AB12: - | AC12: - | AD12: - | AE12: - | AF12: - | AG12: - | AH12: - | AI12: - | AJ12: - | AK12: - | AL12: - | AM12: - | AN12: - | AO12: - | AP12: -
A13: 乳処理業 | D13: 1 | E13: - | F13: - | G13: - | H13: - | I13: - | J13: - | K13: - | L13: - | M13: - | N13: - | O13: - | P13: - | Q13: - | R13: - | S13: - | T13: - | U13: - | V13: - | W13: - | X13: - | Y13: - | Z13: - | AA13: - | AB13: - | AC13: - | AD13: - | AE13: - | AF13: - | AG13: - | AH13: - | AI13: - | AJ13: - | AK13: - | AL13: - | AM13: - | AN13: - | AO13: - | AP13: -
A14: 特別牛乳搾取処理業 | D14: - | E14: - | F14: - | G14: - | H14: - | I14: - | J14: - | K14: - | L14: - | M14: - | N14: - | O14: - | P14: - | Q14: - | R14: - | S14: - | T14: - | U14: - | V14: - | W14: - | X14: - | Y14: - | Z14: - | AA14: - | AB14: - | AC14: - | AD14: - | AE14: - | AF14: - | AG14: - | AH14: - | AI14: - | AJ14: - | AK14: - | AL14: - | AM14: - | AN14: - | AO14: - | AP14: -
A15: 食肉処理業 | D15: 17 | E15: 14 | F15: - | G15: - | H15: - | I15: - | J15: - | K15: - | L15: - | M15: - | N15: - | O15: - | P15: - | Q15: - | R15: - | S15: - | T15: - | U15: - | V15: - | W15: - | X15: - | Y15: - | Z15: - | AA15: - | AB15: - | AC15: - | AD15: - | AE15: - | AF15: - | AG15: - | AH15: - | AI15: - | AJ15: - | AK15: - | AL15: - | AM15: - | AN15: - | AO15: - | AP15: -
A16: 食品の放射線照射業 | D16: - | E16: - | F16: - | G16: - | H16: - | I16: - | J16: - | K16: - | L16: - | M16: - | N16: - | O16: - | P16: - | Q16: - | R16: - | S16: - | T16: - | U16: - | V16: - | W16: - | X16: - | Y16: - | Z16: - | AA16: - | AB16: - | AC16: - | AD16: - | AE16: - | AF16: - | AG16: - | AH16: - | AI16: - | AJ16: - | AK16: - | AL16: - | AM16: - | AN16: - | AO16: - | AP16: -
A17: 菓子製造業 | D17: 1178 | E17: 484 | F17: 4 | G17: 3 | H17: 1 | I17: - | J17: - | K17: 1 | L17: - | M17: - | N17: - | O17: - | P17: - | Q17: - | R17: - | S17: - | T17: - | U17: - | V17: 4 | W17: - | X17: 2 | Y17: 2 | Z17: - | AA17: 2 | AB17: 2 | AC17: - | AD17: - | AE17: - | AF17: - | AG17: - | AH17: - | AI17: 2 | AJ17: - | AK17: 1 | AL17: 1 | AM17: - | AN17: - | AO17: - | AP17: 3
A18: アイスクリーム類製造業 | D18: 47 | E18: 32 | F18: - | G18: - | H18: - | I18: - | J18: - | K18: - | L18: - | M18: - | N18: - | O18: - | P18: - | Q18: - | R18: - | S18: - | T18: - | U18: - | V18: - | W18: - | X18: - | Y18: - | Z18: - | AA18: 1 | AB18: 1 | AC18: - | AD18: - | AE18: - | AF18: - | AG18: - | AH18: - | AI18: 1 | AJ18: - | AK18: - | AL18: 1 | AM18: - | AN18: - | AO18: - | AP18: -
A19: 乳製品製造業 | D19: 16 | E19: 14 | F19: - | G19: - | H19: - | I19: - | J19: - | K19: - | L19: - | M19: - | N19: - | O19: - | P19: - | Q19: - | R19: - | S19: - | T19: - | U19: - | V19: - | W19: - | X19: - | Y19: - | Z19: - | AA19: - | AB19: - | AC19: - | AD19: - | AE19: - | AF19: - | AG19: - | AH19: - | AI19: - | AJ19: - | AK19: - | AL19: - | AM19: - | AN19: - | AO19: - | AP19: -
A20: 清涼飲料水製造業 | D20: 14 | E20: 5 | F20: - | G20: - | H20: - | I20: - | J20: - | K20: - | L20: - | M20: - | N20: - | O20: - | P20: - | Q20: - | R20: - | S20: - | T20: - | U20: - | V20: - | W20: - | X20: - | Y20: - | Z20: - | AA20: - | AB20: - | AC20: - | AD20: - | AE20: - | AF20: - | AG20: - | AH20: - | AI20: - | AJ20: - | AK20: - | AL20: - | AM20: - | AN20: - | AO20: - | AP20: -
A21: 食肉製品製造業 | D21: 19 | E21: 21 | F21: - | G21: - | H21: - | I21: - | J21: - | K21: - | L21: - | M21: - | N21: - | O21: - | P21: - | Q21: - | R21: - | S21: - | T21: - | U21: - | V21: - | W21: - | X21: - | Y21: - | Z21: - | AA21: - | AB21: - | AC21: - | AD21: - | AE21: - | AF21: - | AG21: - | AH21: - | AI21: - | AJ21: - | AK21: - | AL21: - | AM21: - | AN21: - | AO21: - | AP21: -
A22: 水産製品製造業 | D22: 181 | E22: 177 | F22: 4 | G22: - | H22: 1 | I22: - | J22: - | K22: 6 | L22: - | M22: - | N22: - | O22: - | P22: - | Q22: - | R22: - | S22: - | T22: - | U22: - | V22: 7 | W22: - | X22: 1 | Y22: 6 | Z22: - | AA22: 3 | AB22: 3 | AC22: - | AD22: - | AE22: - | AF22: - | AG22: - | AH22: - | AI22: 3 | AJ22: - | AK22: 2 | AL22: 1 | AM22: - | AN22: - | AO22: - | AP22: 2
A23: 氷雪製造業 | D23: 2 | E23: - | F23: - | G23: - | H23: - | I23: - | J23: - | K23: - | L23: - | M23: - | N23: - | O23: - | P23: - | Q23: - | R23: - | S23: - | T23: - | U23: - | V23: - | W23: - | X23: - | Y23: - | Z23: - | AA23: - | AB23: - | AC23: - | AD23: - | AE23: - | AF23: - | AG23: - | AH23: - | AI23: - | AJ23: - | AK23: - | AL23: - | AM23: - | AN23: - | AO23: - | AP23: -
A24: 液卵製造業 | D24: 3 | E24: 5 | F24: - | G24: - | H24: - | I24: - | J24: - | K24: - | L24: - | M24: - | N24: - | O24: - | P24: - | Q24: - | R24: - | S24: - | T24: - | U24: - | V24: - | W24: - | X24: - | Y24: - | Z24: - | AA24: - | AB24: - | AC24: - | AD24: - | AE24: - | AF24: - | AG24: - | AH24: - | AI24: - | AJ24: - | AK24: - | AL24: - | AM24: - | AN24: - | AO24: - | AP24: -
A25: 食用油脂製造業 | D25: 2 | E25: - | F25: - | G25: - | H25: - | I25: - | J25: - | K25: - | L25: - | M25: - | N25: - | O25: - | P25: - | Q25: - | R25: - | S25: - | T25: - | U25: - | V25: - | W25: - | X25: - | Y25: - | Z25: - | AA25: - | AB25: - | AC25: - | AD25: - | AE25: - | AF25: - | AG25: - | AH25: - | AI25: - | AJ25: - | AK25: - | AL25: - | AM25: - | AN25: - | AO25: - | AP25: -
A26: みそ又はしょうゆ製造業 | D26: 6 | E26: 3 | F26: - | G26: - | H26: - | I26: - | J26: - | K26: - | L26: - | M26: - | N26: - | O26: - | P26: - | Q26: - | R26: - | S26: - | T26: - | U26: - | V26: - | W26: - | X26: - | Y26: - | Z26: - | AA26: - | AB26: - | AC26: - | AD26: - | AE26: - | AF26: - | AG26: - | AH26: - | AI26: - | AJ26: - | AK26: - | AL26: - | AM26: - | AN26: - | AO26: - | AP26: -
A27: 酒類製造業 | D27: 14 | E27: 6 | F27: - | G27: - | H27: - | I27: - | J27: - | K27: - | L27: - | M27: - | N27: - | O27: - | P27: - | Q27: - | R27: - | S27: - | T27: - | U27: - | V27: - | W27: - | X27: - | Y27: - | Z27: - | AA27: - | AB27: - | AC27: - | AD27: - | AE27: - | AF27: - | AG27: - | AH27: - | AI27: - | AJ27: - | AK27: - | AL27: - | AM27: - | AN27: - | AO27: - | AP27: -
A28: 豆腐製造業 | D28: 8 | E28: 7 | F28: - | G28: - | H28: - | I28: - | J28: - | K28: - | L28: - | M28: - | N28: - | O28: - | P28: - | Q28: - | R28: - | S28: - | T28: - | U28: - | V28: - | W28: - | X28: - | Y28: - | Z28: - | AA28: - | AB28: - | AC28: - | AD28: - | AE28: - | AF28: - | AG28: - | AH28: - | AI28: - | AJ28: - | AK28: - | AL28: - | AM28: - | AN28: - | AO28: - | AP28: -
A29: 納豆製造業 | D29: 1 | E29: 1 | F29: - | G29: - | H29: - | I29: - | J29: - | K29: - | L29: - | M29: - | N29: - | O29: - | P29: - | Q29: - | R29: - | S29: - | T29: - | U29: - | V29: - | W29: - | X29: - | Y29: - | Z29: - | AA29: - | AB29: - | AC29: - | AD29: - | AE29: - | AF29: - | AG29: - | AH29: - | AI29: - | AJ29: - | AK29: - | AL29: - | AM29: - | AN29: - | AO29: - | AP29: -
A30: 麺類製造業 | D30: 51 | E30: 28 | F30: 1 | G30: 1 | H30: - | I30: - | J30: - | K30: - | L30: - | M30: - | N30: - | O30: - | P30: - | Q30: - | R30: - | S30: - | T30: - | U30: - | V30: 1 | W30: - | X30: 1 | Y30: - | Z30: - | AA30: - | AB30: - | AC30: - | AD30: - | AE30: - | AF30: - | AG30: - | AH30: - | AI30: - | AJ30: - | AK30: - | AL30: - | AM30: - | AN30: - | AO30: - | AP30: -
A31: そうざい製造業 | D31: 323 | E31: 149 | F31: 1 | G31: - | H31: - | I31: - | J31: - | K31: 1 | L31: - | M31: - | N31: - | O31: - | P31: - | Q31: - | R31: - | S31: - | T31: - | U31: - | V31: 1 | W31: - | X31: - | Y31: 1 | Z31: - | AA31: - | AB31: - | AC31: - | AD31: - | AE31: - | AF31: - | AG31: - | AH31: - | AI31: - | AJ31: - | AK31: - | AL31: - | AM31: - | AN31: - | AO31: - | AP31: 1
A32: 複合型そうざい製造業 | D32: 11 | E32: 15 | F32: - | G32: - | H32: - | I32: - | J32: - | K32: - | L32: - | M32: - | N32: - | O32: - | P32: - | Q32: - | R32: - | S32: - | T32: - | U32: - | V32: - | W32: - | X32: - | Y32: - | Z32: - | AA32: - | AB32: - | AC32: - | AD32: - | AE32: - | AF32: - | AG32: - | AH32: - | AI32: - | AJ32: - | AK32: - | AL32: - | AM32: - | AN32: - | AO32: - | AP32: -
A33: 冷凍食品製造業 | D33: 167 | E33: 82 | F33: 1 | G33: - | H33: - | I33: - | J33: - | K33: 1 | L33: - | M33: - | N33: - | O33: - | P33: - | Q33: - | R33: - | S33: - | T33: - | U33: - | V33: 1 | W33: - | X33: 1 | Y33: - | Z33: 1 | AA33: 1 | AB33: 1 | AC33: - | AD33: - | AE33: - | AF33: - | AG33: - | AH33: - | AI33: 1 | AJ33: - | AK33: 1 | AL33: - | AM33: 1 | AN33: - | AO33: - | AP33: -
A34: 複合型冷凍食品製造業 | D34: - | E34: - | F34: - | G34: - | H34: - | I34: - | J34: - | K34: - | L34: - | M34: - | N34: - | O34: - | P34: - | Q34: - | R34: - | S34: - | T34: - | U34: - | V34: - | W34: - | X34: - | Y34: - | Z34: - | AA34: - | AB34: - | AC34: - | AD34: - | AE34: - | AF34: - | AG34: - | AH34: - | AI34: - | AJ34: - | AK34: - | AL34: - | AM34: - | AN34: - | AO34: - | AP34: -
A35: 漬物製造業 | D35: 39 | E35: 29 | F35: - | G35: - | H35: - | I35: - | J35: - | K35: - | L35: - | M35: - | N35: - | O35: - | P35: - | Q35: - | R35: - | S35: - | T35: - | U35: - | V35: - | W35: - | X35: - | Y35: - | Z35: - | AA35: - | AB35: - | AC35: - | AD35: - | AE35: - | AF35: - | AG35: - | AH35: - | AI35: - | AJ35: - | AK35: - | AL35: - | AM35: - | AN35: - | AO35: - | AP35: 1
A36: 密封包装食品製造業 | D36: 59 | E36: 27 | F36: - | G36: - | H36: - | I36: - | J36: - | K36: - | L36: - | M36: - | N36: - | O36: - | P36: - | Q36: - | R36: - | S36: - | T36: - | U36: - | V36: - | W36: - | X36: - | Y36: - | Z36: - | AA36: - | AB36: - | AC36: - | AD36: - | AE36: - | AF36: - | AG36: - | AH36: - | AI36: - | AJ36: - | AK36: - | AL36: - | AM36: - | AN36: - | AO36: - | AP36: -
A37: 食品の小分け業 | D37: 39 | E37: 25 | F37: - | G37: - | H37: - | I37: - | J37: - | K37: - | L37: - | M37: - | N37: - | O37: - | P37: - | Q37: - | R37: - | S37: - | T37: - | U37: - | V37: - | W37: - | X37: - | Y37: - | Z37: - | AA37: - | AB37: - | AC37: - | AD37: - | AE37: - | AF37: - | AG37: - | AH37: - | AI37: - | AJ37: - | AK37: - | AL37: - | AM37: - | AN37: - | AO37: - | AP37: -
A38: 添加物製造業 | D38: 3 | E38: 2 | F38: - | G38: - | H38: - | I38: - | J38: - | K38: - | L38: - | M38: - | N38: - | O38: - | P38: - | Q38: - | R38: - | S38: - | T38: - | U38: - | V38: - | W38: - | X38: - | Y38: - | Z38: - | AA38: - | AB38: - | AC38: - | AD38: - | AE38: - | AF38: - | AG38: - | AH38: - | AI38: - | AJ38: - | AK38: - | AL38: - | AM38: - | AN38: - | AO38: - | AP38: -
A39: ※改正された食品衛生法が令和３年６月１日に施行されたことにより、業許可業種の見直しが行われた。施行後に 取得した営業許可である。 | AP39: 資料 保健所食の安全推進課

Sheet ７ 届出を要する施設数 (新法)
A1: ７ 食品衛生法による届出を要する施設数（新法）
Q2: 令和6年度
A3: 区 分 | F3: 営業施設数 | O3: 前年度 末現在 営 業 施設数 | P3: 新規営業届出 施設数 | Q3: 廃 業 施 設 数
D4: 総数 | E4: 中央 | F4: 北 | G4: 東 | H4: 白石 | I4: 厚別 | J4: 豊平 | K4: 清田 | L4: 南 | M4: 西 | N4: 手稲
A5: 総 数 | D5: =SUM(D6:D34) -> 12734 | E5: 3475 | F5: 1451 | G5: 1465 | H5: 1248 | I5: 751 | J5: 1170 | K5: 593 | L5: 634 | M5: 1341 | N5: 606 | O5: 8918 | P5: 7088 | Q5: 3272
A6: 魚介類販売業1) | D6: =SUM(E6:N6) -> 1018 | E6: 248 | F6: 112 | G6: 105 | H6: 135 | I6: 71 | J6: 96 | K6: 45 | L6: 42 | M6: 125 | N6: 39 | O6: 302 | P6: 767 | Q6: 51
A7: 食肉販売業1) | D7: 1213 | E7: 261 | F7: 143 | G7: 141 | H7: 174 | I7: 79 | J7: 119 | K7: 56 | L7: 53 | M7: 146 | N7: 41 | O7: 299 | P7: 968 | Q7: 54
A8: 乳類販売業 | D8: 1546 | E8: 287 | F8: 180 | G8: 185 | H8: 195 | I8: 117 | J8: 163 | K8: 94 | L8: 96 | M8: 164 | N8: 65 | O8: 242 | P8: 1364 | Q8: 60
A9: 氷雪販売業 | D9: 2 | E9: 1 | F9: - | G9: - | H9: - | I9: - | J9: - | K9: - | L9: - | M9: 1 | N9: - | O9: 2 | P9: 1 | Q9: 1
A10: コップ式自動販売機2) | D10: 2160 | E10: 627 | F10: 232 | G10: 306 | H10: 210 | I10: 132 | J10: 181 | K10: 90 | L10: 76 | M10: 183 | N10: 123 | O10: 1575 | P10: 2133 | Q10: 1548
A11: 弁当販売業 | D11: 200 | E11: 82 | F11: 18 | G11: 18 | H11: 11 | I11: 9 | J11: 30 | K11: 5 | L11: 8 | M11: 14 | N11: 5 | O11: 183 | P11: 49 | Q11: 32
A12: 野菜果物販売業 | D12: 572 | E12: 249 | F12: 41 | G12: 50 | H12: 32 | I12: 17 | J12: 40 | K12: 18 | L12: 29 | M12: 75 | N12: 21 | O12: 509 | P12: 115 | Q12: 52
A13: 米穀類販売業 | D13: 159 | E13: 55 | F13: 23 | G13: 12 | H13: 12 | I13: 6 | J13: 16 | K13: 6 | L13: 6 | M13: 13 | N13: 10 | O13: 149 | P13: 34 | Q13: 24
A14: 通信販売・訪問販売による販売業 | D14: 94 | E14: 34 | F14: 18 | G14: 8 | H14: 7 | I14: 1 | J14: 5 | K14: 4 | L14: 3 | M14: 12 | N14: 2 | O14: 105 | P14: 45 | Q14: 56
A15: コンビニエンスストア | D15: 1247 | E15: 340 | F15: 172 | G15: 159 | H15: 117 | I15: 54 | J15: 115 | K15: 42 | L15: 72 | M15: 107 | N15: 69 | O15: 1231 | P15: 324 | Q15: 308
A16: 百貨店、総合スーパー | D16: 276 | E16: 51 | F16: 38 | G16: 36 | H16: 25 | I16: 11 | J16: 29 | K16: 21 | L16: 18 | M16: 28 | N16: 19 | O16: 274 | P16: 122 | Q16: 120
A17: 自動販売機による販売業3) | D17: 374 | E17: 72 | F17: 47 | G17: 49 | H17: 24 | I17: 34 | J17: 29 | K17: 20 | L17: 36 | M17: 36 | N17: 27 | O17: 403 | P17: 104 | Q17: 133
A18: その他の食料・飲料販売業 | D18: 2217 | E18: 802 | F18: 211 | G18: 201 | H18: 137 | I18: 127 | J18: 199 | K18: 111 | L18: 102 | M18: 237 | N18: 90 | O18: 2159 | P18: 744 | Q18: 686
A19: 添加物製造・加工業4) | D19: 1 | E19: - | F19: 1 | G19: - | H19: - | I19: - | J19: - | K19: - | L19: - | M19: - | N19: - | O19: 5 | P19: - | Q19: 4
A20: いわゆる健康食品の 製造・加工業 | D20: 12 | E20: 5 | F20: 1 | G20: - | H20: 1 | I20: - | J20: 1 | K20: 1 | L20: - | M20: 2 | N20: 1 | O20: 11 | P20: 3 | Q20: 2
A21: コーヒー製造・加工業5) | D21: 273 | E21: 76 | F21: 27 | G21: 20 | H21: 19 | I21: 17 | J21: 33 | K21: 7 | L21: 24 | M21: 36 | N21: 14 | O21: 191 | P21: 95 | Q21: 13
A22: 農産保存食料品製造・加工業 | D22: 37 | E22: 10 | F22: 6 | G22: 5 | H22: 4 | I22: - | J22: 4 | K22: 2 | L22: 3 | M22: 1 | N22: 2 | O22: 33 | P22: 5 | Q22: 1
A23: 調味料製造・加工業 | D23: 44 | E23: 24 | F23: 2 | G23: 1 | H23: 3 | I23: 4 | J23: 2 | K23: 1 | L23: 2 | M23: 3 | N23: 2 | O23: 27 | P23: 17 | Q23: -
A24: 糖類製造・加工業 | D24: 2 | E24: 2 | F24: - | G24: - | H24: - | I24: - | J24: - | K24: - | L24: - | M24: - | N24: - | O24: 1 | P24: 1 | Q24: -
A25: 精穀・製粉業 | D25: 12 | E25: 1 | F25: 2 | G25: 1 | H25: 4 | I25: 1 | J25: - | K25: 1 | L25: - | M25: 2 | N25: - | O25: 11 | P25: 1 | Q25: -
A26: 製茶業 | D26: 46 | E26: 8 | F26: 5 | G26: 5 | H26: 7 | I26: 3 | J26: 9 | K26: 5 | L26: - | M26: 2 | N26: 2 | O26: 26 | P26: 24 | Q26: 4
A27: 海藻製造・加工業 | D27: 7 | E27: 2 | F27: - | G27: - | H27: 4 | I27: - | J27: - | K27: 1 | L27: - | M27: - | N27: - | O27: 6 | P27: 3 | Q27: 2
A28: 卵選別包装業 | D28: 1 | E28: - | F28: - | G28: - | H28: - | I28: - | J28: - | K28: 1 | L28: - | M28: - | N28: - | O28: - | P28: 1 | Q28: -
A29: その他の食料品製造・加工業 | D29: 95 | E29: 37 | F29: 8 | G29: 10 | H29: 13 | I29: 5 | J29: 5 | K29: 4 | L29: 7 | M29: 5 | N29: 1 | O29: 85 | P29: 27 | Q29: 17
A30: 行商 | D30: 19 | E30: 11 | F30: 1 | G30: - | H30: 3 | I30: 1 | J30: - | K30: - | L30: - | M30: 3 | N30: - | O30: 15 | P30: 4 | Q30: -
A31: 集団給食施設 | D31: 930 | E31: 114 | F31: 149 | G31: 135 | H31: 93 | I31: 56 | J31: 91 | K31: 54 | L31: 56 | M31: 125 | N31: 57 | O31: 950 | P31: 52 | Q31: 72
A32: 器具、容器包装の 製造・加工業6) | D32: 24 | E32: 1 | F32: 4 | G32: 2 | H32: 2 | I32: - | J32: 1 | K32: 1 | L32: - | M32: 3 | N32: 10 | O32: 24 | P32: 1 | Q32: 1
A33: 露店、仮設店舗等における飲食の提供のうち、営業とみなされないもの | D33: 31 | E33: 21 | F33: 2 | G33: 3 | H33: 2 | I33: 2 | J33: - | K33: - | L33: 1 | M33: - | N33: - | O33: 24 | P33: 13 | Q33: 6
A34: その他7) | D34: 122 | E34: 54 | F34: 8 | G34: 13 | H34: 14 | I34: 4 | J34: 2 | K34: 3 | L34: - | M34: 18 | N34: 6 | O34: 76 | P34: 71 | Q34: 25
A35: ※令和３年６月１日に食品衛生法が改正されたことにより営業許可業種の見直しが、 | Q35: 資料 保健所食の安全推進課
A36: 行われた。新たに営業届出制度が創設され、従前の食品衛生法による許可を要しない施設は、届出の対象となった。
A37: 1)包装済み品のみ販売。 2)自動洗浄・屋内設置。 3)コップ式自動販売機（自動洗浄・屋内設置）及び営業許可の対象となる自動販売機を除く。
A38: 4)法第 13 条第１項の規定により規格が定められた添加物の製造を除く。 5)飲料の製造を除く。6)合成樹脂が使用された器具又は容器包装の製造、加工に限る。
A39: 7)改正法による改正後の法第 54 条に規定する営業及び公衆衛生に与える影響が少ない営業は除く。

Sheet ８ 届出を要する施設に対する監視指導 (新法)
A1: ８ 届出を要する施設に対する調査・監視指導延施設数
P2: 令和6年度
A3: 区 分 | D3: 年度末 現在 営業 施設数 | E3: 調査・監視指導延施設数 | P3: 前年度 調査・ 監 視 指導延 施設数
E4: 総数 | F4: 中央 | G4: 北 | H4: 東 | I4: 白石 | J4: 厚別 | K4: 豊平 | L4: 清田 | M4: 南 | N4: 西 | O4: 手稲
A5: 総 数 | D5: 12734 | E5: 9918 | F5: 8901 | G5: 178 | H5: 123 | I5: 184 | J5: 47 | K5: 136 | L5: 62 | M5: 53 | N5: 128 | O5: 106 | P5: 15777
A6: 魚介類販売業1) | D6: 1018 | E6: 310 | F6: 278 | G6: 10 | H6: 5 | I6: 12 | J6: - | K6: - | L6: - | M6: 1 | N6: 2 | O6: 2 | P6: 69
A7: 食肉販売業1) | D7: 1213 | E7: 4809 | F7: 4765 | G7: 12 | H7: 5 | I7: 9 | J7: - | K7: - | L7: - | M7: 1 | N7: 14 | O7: 3 | P7: 4893
A8: 乳類販売業 | D8: 1546 | E8: 1124 | F8: 1058 | G8: 14 | H8: 7 | I8: 8 | J8: 7 | K8: 3 | L8: - | M8: 7 | N8: 7 | O8: 13 | P8: 1114
A9: 氷雪販売業 | D9: 2 | E9: 9 | F9: - | G9: - | H9: - | I9: - | J9: - | K9: - | L9: 9 | M9: - | N9: - | O9: - | P9: -
A10: コップ式自動販売機2) | D10: 2160 | E10: 4 | F10: - | G10: - | H10: - | I10: - | J10: - | K10: - | L10: - | M10: - | N10: - | O10: 4 | P10: 3
A11: 弁当販売業 | D11: 200 | E11: 5 | F11: - | G11: - | H11: - | I11: 2 | J11: 1 | K11: 1 | L11: - | M11: - | N11: - | O11: 1 | P11: 4
A12: 野菜果物販売業 | D12: 572 | E12: 558 | F12: 533 | G12: - | H12: - | I12: 4 | J12: - | K12: - | L12: 3 | M12: - | N12: 13 | O12: 5 | P12: 558
A13: 米穀類販売業 | D13: 159 | E13: 6 | F13: - | G13: - | H13: - | I13: 2 | J13: - | K13: - | L13: - | M13: - | N13: - | O13: 4 | P13: 4
A14: 通信販売・訪問販売による販売業 | D14: 94 | E14: - | F14: - | G14: - | H14: - | I14: - | J14: - | K14: - | L14: - | M14: - | N14: - | O14: - | P14: -
A15: コンビニエンスストア | D15: 1247 | E15: 107 | F15: 6 | G15: 10 | H15: 20 | I15: 29 | J15: 11 | K15: 8 | L15: 6 | M15: 7 | N15: 3 | O15: 7 | P15: 72
A16: 百貨店、総合スーパー | D16: 276 | E16: 389 | F16: 48 | G16: 65 | H16: 62 | I16: 32 | J16: 15 | K16: 38 | L16: 28 | M16: 14 | N16: 42 | O16: 45 | P16: 485
A17: 自動販売機による販売業3) | D17: 374 | E17: 2 | F17: - | G17: 1 | H17: 1 | I17: - | J17: - | K17: - | L17: - | M17: - | N17: - | O17: - | P17: -
A18: その他の食料・飲料販売業 | D18: 2217 | E18: 2386 | F18: 2198 | G18: 5 | H18: 7 | I18: 67 | J18: 1 | K18: 69 | L18: 6 | M18: 6 | N18: 12 | O18: 15 | P18: 8377
A19: 添加物製造・加工業4) | D19: 1 | E19: - | F19: - | G19: - | H19: - | I19: - | J19: - | K19: - | L19: - | M19: - | N19: - | O19: - | P19: -
A20: いわゆる健康食品の 製造・加工業 | D20: 12 | E20: 6 | F20: - | G20: 2 | H20: - | I20: - | J20: - | K20: - | L20: 2 | M20: - | N20: - | O20: 2 | P20: -
A21: コーヒー製造・加工業5) | D21: 273 | E21: 2 | F21: - | G21: - | H21: - | I21: - | J21: - | K21: - | L21: - | M21: 2 | N21: - | O21: - | P21: 1
A22: 農産保存食料品製造・加工業 | D22: 37 | E22: - | F22: - | G22: - | H22: - | I22: - | J22: - | K22: - | L22: - | M22: - | N22: - | O22: - | P22: -
A23: 調味料製造・加工業 | D23: 44 | E23: - | F23: - | G23: - | H23: - | I23: - | J23: - | K23: - | L23: - | M23: - | N23: - | O23: - | P23: -
A24: 糖類製造・加工業 | D24: 2 | E24: - | F24: - | G24: - | H24: - | I24: - | J24: - | K24: - | L24: - | M24: - | N24: - | O24: - | P24: -
A25: 精穀・製粉業 | D25: 12 | E25: - | F25: - | G25: - | H25: - | I25: - | J25: - | K25: - | L25: - | M25: - | N25: - | O25: - | P25: -
A26: 製茶業 | D26: 46 | E26: 2 | F26: - | G26: - | H26: - | I26: 1 | J26: - | K26: - | L26: 1 | M26: - | N26: - | O26: - | P26: 1
A27: 海藻製造・加工業 | D27: 7 | E27: - | F27: - | G27: - | H27: - | I27: - | J27: - | K27: - | L27: - | M27: - | N27: - | O27: - | P27: 1
A28: 卵選別包装業 | D28: 1 | E28: - | F28: - | G28: - | H28: - | I28: - | J28: - | K28: - | L28: - | M28: - | N28: - | O28: - | P28: -
A29: その他の食料品製造・加工業 | D29: 95 | E29: 5 | F29: 1 | G29: - | H29: - | I29: - | J29: - | K29: 3 | L29: - | M29: - | N29: 1 | O29: - | P29: 1
A30: 行商 | D30: 19 | E30: - | F30: - | G30: - | H30: - | I30: - | J30: - | K30: - | L30: - | M30: - | N30: - | O30: - | P30: -
A31: 集団給食施設 | D31: 930 | E31: 193 | F31: 14 | G31: 59 | H31: 16 | I31: 17 | J31: 12 | K31: 14 | L31: 7 | M31: 15 | N31: 34 | O31: 5 | P31: 183
A32: 器具、容器包装の 製造・加工業6) | D32: 24 | E32: - | F32: - | G32: - | H32: - | I32: - | J32: - | K32: - | L32: - | M32: - | N32: - | O32: - | P32: -
A33: 露店、仮設店舗等における飲食の提供のうち、営業とみなされないもの | D33: 31 | E33: - | F33: - | G33: - | H33: - | I33: - | J33: - | K33: - | L33: - | M33: - | N33: - | O33: - | P33: 8
A34: その他7) | D34: 122 | E34: 1 | F34: - | G34: - | H34: - | I34: 1 | J34: - | K34: - | L34: - | M34: - | N34: - | O34: - | P34: 3
A35: ※令和３年６月１日に食品衛生法が改正されたことにより営業許可業種の見直しが、行われた。 | P35: 資料 保健所食の安全推進課
A36: 新たに営業届出制度が創設され、従前の食品衛生法による許可を要しない施設は、届出の対象となった。
A37: 1)包装済み品のみ販売。 2)自動洗浄・屋内設置。 3)コップ式自動販売機（自動洗浄・屋内設置）及び営業許可の対象となる自動販売機を除く。
A38: 4)法第 13 条第１項の規定により規格が定められた添加物の製造を除く。 5)飲料の製造を除く。6)合成樹脂が使用された器具又は容器包装の製造、加工に限る。
A39: 7)改正法による改正後の法第 54 条に規定する営業及び公衆衛生に与える影響が少ない営業は除く。

Sheet ９ 許可を要しない施設に対する監視指導結果 (新法) (2)
A1: ９ 届出を要する施設に対する監視指導結果
AM2: 令和6年度
A3: 区 分 | D3: 年度末現在営業施設数 | E3: 監視指導延施設数 | F3: 食品衛生法 | Y3: 食品表示法
G4: 違反理由(延数) | M4: 処分内容(延数) | U4: 措置内容（延数） | AB4: 処分内容(延数) | AH4: 措置内容（延数）
F5: 違反発見施設数 | G5: 施設基準 | H5: 公衆衛生上必要な措置の基準 | I5: 規格基準 | J5: 法第六条 | K5: その他 | L5: 処分件数（実数） | M5: 営業の禁止 | N5: 営業の停止 | O5: 食品の廃棄 | P5: 食品の販売禁止 | Q5: 食品の使用禁止 | R5: 食品の回収 | S5: その他 | T5: 処分以外の措置件数 （実数） | U5: 始末書徴収 | V5: 指導票交付 | W5: 口頭説諭 | X5: その他 | Y5: 違反発見施設数 | Z5: 表示基準違反件数 （延数） | AA5: 処分件数（実数） | AB5: 業務停止 | AC5: 回収命令 | AD5: 廃棄命令 | AE5: 販売禁止命令 | AF5: その他 | AG5: 処分以外の措置件数 （実数） | AH5: 始末書徴収 | AI5: 指導票交付 | AJ5: 口頭説諭 | AK5: その他 | AL5: 告発件数 | AM5: 苦情件数
A6: 総 数 | D6: 12734 | E6: 9918 | F6: 6 | G6: - | H6: 2 | I6: - | J6: - | K6: 5 | L6: - | M6: - | N6: - | O6: - | P6: - | Q6: - | R6: - | S6: - | T6: 6 | U6: 1 | V6: 3 | W6: 3 | X6: - | Y6: 5 | Z6: 7 | AA6: - | AB6: - | AC6: - | AD6: - | AE6: - | AF6: - | AG6: 7 | AH6: 1 | AI6: 3 | AJ6: 4 | AK6: - | AL6: - | AM6: 16
A7: 魚介類販売業1) | D7: 1018 | E7: 310 | F7: - | G7: - | H7: - | I7: - | J7: - | K7: - | L7: - | M7: - | N7: - | O7: - | P7: - | Q7: - | R7: - | S7: - | T7: - | U7: - | V7: - | W7: - | X7: - | Y7: 1 | Z7: 1 | AA7: - | AB7: - | AC7: - | AD7: - | AE7: - | AF7: - | AG7: 1 | AH7: - | AI7: 1 | AJ7: - | AK7: - | AL7: - | AM7: -
A8: 食肉販売業1) | D8: 1213 | E8: 4809 | F8: 1 | G8: - | H8: - | I8: - | J8: - | K8: 1 | L8: - | M8: - | N8: - | O8: - | P8: - | Q8: - | R8: - | S8: - | T8: 1 | U8: - | V8: 1 | W8: - | X8: - | Y8: 1 | Z8: 3 | AA8: - | AB8: - | AC8: - | AD8: - | AE8: - | AF8: - | AG8: 3 | AH8: - | AI8: 1 | AJ8: 2 | AK8: - | AL8: - | AM8: 1
A9: 乳類販売業 | D9: 1546 | E9: 1124 | F9: - | G9: - | H9: - | I9: - | J9: - | K9: - | L9: - | M9: - | N9: - | O9: - | P9: - | Q9: - | R9: - | S9: - | T9: - | U9: - | V9: - | W9: - | X9: - | Y9: - | Z9: - | AA9: - | AB9: - | AC9: - | AD9: - | AE9: - | AF9: - | AG9: - | AH9: - | AI9: - | AJ9: - | AK9: - | AL9: - | AM9: -
A10: 氷雪販売業 | D10: 2 | E10: 9 | F10: - | G10: - | H10: - | I10: - | J10: - | K10: - | L10: - | M10: - | N10: - | O10: - | P10: - | Q10: - | R10: - | S10: - | T10: - | U10: - | V10: - | W10: - | X10: - | Y10: - | Z10: - | AA10: - | AB10: - | AC10: - | AD10: - | AE10: - | AF10: - | AG10: - | AH10: - | AI10: - | AJ10: - | AK10: - | AL10: - | AM10: -
A11: コップ式自動販売機2) | D11: 2160 | E11: 4 | F11: - | G11: - | H11: - | I11: - | J11: - | K11: - | L11: - | M11: - | N11: - | O11: - | P11: - | Q11: - | R11: - | S11: - | T11: - | U11: - | V11: - | W11: - | X11: - | Y11: - | Z11: - | AA11: - | AB11: - | AC11: - | AD11: - | AE11: - | AF11: - | AG11: - | AH11: - | AI11: - | AJ11: - | AK11: - | AL11: - | AM11: -
A12: 弁当販売業 | D12: 200 | E12: 5 | F12: - | G12: - | H12: - | I12: - | J12: - | K12: - | L12: - | M12: - | N12: - | O12: - | P12: - | Q12: - | R12: - | S12: - | T12: - | U12: - | V12: - | W12: - | X12: - | Y12: - | Z12: - | AA12: - | AB12: - | AC12: - | AD12: - | AE12: - | AF12: - | AG12: - | AH12: - | AI12: - | AJ12: - | AK12: - | AL12: - | AM12: -
A13: 野菜果物販売業 | D13: 572 | E13: 558 | F13: - | G13: - | H13: - | I13: - | J13: - | K13: - | L13: - | M13: - | N13: - | O13: - | P13: - | Q13: - | R13: - | S13: - | T13: - | U13: - | V13: - | W13: - | X13: - | Y13: - | Z13: - | AA13: - | AB13: - | AC13: - | AD13: - | AE13: - | AF13: - | AG13: - | AH13: - | AI13: - | AJ13: - | AK13: - | AL13: - | AM13: 1
A14: 米穀類販売業 | D14: 159 | E14: 6 | F14: - | G14: - | H14: - | I14: - | J14: - | K14: - | L14: - | M14: - | N14: - | O14: - | P14: - | Q14: - | R14: - | S14: - | T14: - | U14: - | V14: - | W14: - | X14: - | Y14: - | Z14: - | AA14: - | AB14: - | AC14: - | AD14: - | AE14: - | AF14: - | AG14: - | AH14: - | AI14: - | AJ14: - | AK14: - | AL14: - | AM14: -
A15: 通信販売・訪問販売による販売業 | D15: 94 | E15: - | F15: - | G15: - | H15: - | I15: - | J15: - | K15: - | L15: - | M15: - | N15: - | O15: - | P15: - | Q15: - | R15: - | S15: - | T15: - | U15: - | V15: - | W15: - | X15: - | Y15: - | Z15: - | AA15: - | AB15: - | AC15: - | AD15: - | AE15: - | AF15: - | AG15: - | AH15: - | AI15: - | AJ15: - | AK15: - | AL15: - | AM15: -
A16: コンビニエンスストア | D16: 1247 | E16: 107 | F16: - | G16: - | H16: - | I16: - | J16: - | K16: - | L16: - | M16: - | N16: - | O16: - | P16: - | Q16: - | R16: - | S16: - | T16: - | U16: - | V16: - | W16: - | X16: - | Y16: - | Z16: - | AA16: - | AB16: - | AC16: - | AD16: - | AE16: - | AF16: - | AG16: - | AH16: - | AI16: - | AJ16: - | AK16: - | AL16: - | AM16: 2
A17: 百貨店、総合スーパー | D17: 276 | E17: 389 | F17: 2 | G17: - | H17: 2 | I17: - | J17: - | K17: - | L17: - | M17: - | N17: - | O17: - | P17: - | Q17: - | R17: - | S17: - | T17: 2 | U17: - | V17: - | W17: 2 | X17: - | Y17: 2 | Z17: 2 | AA17: - | AB17: - | AC17: - | AD17: - | AE17: - | AF17: - | AG17: 2 | AH17: - | AI17: - | AJ17: 2 | AK17: - | AL17: - | AM17: 8
A18: 自動販売機による販売業3) | D18: 374 | E18: 2 | F18: 1 | G18: - | H18: - | I18: - | J18: - | K18: 1 | L18: - | M18: - | N18: - | O18: - | P18: - | Q18: - | R18: - | S18: - | T18: 1 | U18: - | V18: 1 | W18: - | X18: - | Y18: - | Z18: - | AA18: - | AB18: - | AC18: - | AD18: - | AE18: - | AF18: - | AG18: - | AH18: - | AI18: - | AJ18: - | AK18: - | AL18: - | AM18: -
A19: その他の食料・飲料販売業 | D19: 2217 | E19: 2386 | F19: 2 | G19: - | H19: - | I19: - | J19: - | K19: 3 | L19: - | M19: - | N19: - | O19: - | P19: - | Q19: - | R19: - | S19: - | T19: 2 | U19: 1 | V19: 1 | W19: 1 | X19: - | Y19: 1 | Z19: 1 | AA19: - | AB19: - | AC19: - | AD19: - | AE19: - | AF19: - | AG19: 1 | AH19: 1 | AI19: 1 | AJ19: - | AK19: - | AL19: - | AM19: 4
A20: 添加物製造・加工業4) | D20: 1 | E20: - | F20: - | G20: - | H20: - | I20: - | J20: - | K20: - | L20: - | M20: - | N20: - | O20: - | P20: - | Q20: - | R20: - | S20: - | T20: - | U20: - | V20: - | W20: - | X20: - | Y20: - | Z20: - | AA20: - | AB20: - | AC20: - | AD20: - | AE20: - | AF20: - | AG20: - | AH20: - | AI20: - | AJ20: - | AK20: - | AL20: - | AM20: -
A21: いわゆる健康食品の 製造・加工業 | D21: 12 | E21: 6 | F21: - | G21: - | H21: - | I21: - | J21: - | K21: - | L21: - | M21: - | N21: - | O21: - | P21: - | Q21: - | R21: - | S21: - | T21: - | U21: - | V21: - | W21: - | X21: - | Y21: - | Z21: - | AA21: - | AB21: - | AC21: - | AD21: - | AE21: - | AF21: - | AG21: - | AH21: - | AI21: - | AJ21: - | AK21: - | AL21: - | AM21: -
A22: コーヒー製造・加工業5) | D22: 273 | E22: 2 | F22: - | G22: - | H22: - | I22: - | J22: - | K22: - | L22: - | M22: - | N22: - | O22: - | P22: - | Q22: - | R22: - | S22: - | T22: - | U22: - | V22: - | W22: - | X22: - | Y22: - | Z22: - | AA22: - | AB22: - | AC22: - | AD22: - | AE22: - | AF22: - | AG22: - | AH22: - | AI22: - | AJ22: - | AK22: - | AL22: - | AM22: -
A23: 農産保存食料品製造・加工業 | D23: 37 | E23: - | F23: - | G23: - | H23: - | I23: - | J23: - | K23: - | L23: - | M23: - | N23: - | O23: - | P23: - | Q23: - | R23: - | S23: - | T23: - | U23: - | V23: - | W23: - | X23: - | Y23: - | Z23: - | AA23: - | AB23: - | AC23: - | AD23: - | AE23: - | AF23: - | AG23: - | AH23: - | AI23: - | AJ23: - | AK23: - | AL23: - | AM23: -
A24: 調味料製造・加工業 | D24: 44 | E24: - | F24: - | G24: - | H24: - | I24: - | J24: - | K24: - | L24: - | M24: - | N24: - | O24: - | P24: - | Q24: - | R24: - | S24: - | T24: - | U24: - | V24: - | W24: - | X24: - | Y24: - | Z24: - | AA24: - | AB24: - | AC24: - | AD24: - | AE24: - | AF24: - | AG24: - | AH24: - | AI24: - | AJ24: - | AK24: - | AL24: - | AM24: -
A25: 糖類製造・加工業 | D25: 2 | E25: - | F25: - | G25: - | H25: - | I25: - | J25: - | K25: - | L25: - | M25: - | N25: - | O25: - | P25: - | Q25: - | R25: - | S25: - | T25: - | U25: - | V25: - | W25: - | X25: - | Y25: - | Z25: - | AA25: - | AB25: - | AC25: - | AD25: - | AE25: - | AF25: - | AG25: - | AH25: - | AI25: - | AJ25: - | AK25: - | AL25: - | AM25: -
A26: 精穀・製粉業 | D26: 12 | E26: - | F26: - | G26: - | H26: - | I26: - | J26: - | K26: - | L26: - | M26: - | N26: - | O26: - | P26: - | Q26: - | R26: - | S26: - | T26: - | U26: - | V26: - | W26: - | X26: - | Y26: - | Z26: - | AA26: - | AB26: - | AC26: - | AD26: - | AE26: - | AF26: - | AG26: - | AH26: - | AI26: - | AJ26: - | AK26: - | AL26: - | AM26: -
A27: 製茶業 | D27: 46 | E27: 2 | F27: - | G27: - | H27: - | I27: - | J27: - | K27: - | L27: - | M27: - | N27: - | O27: - | P27: - | Q27: - | R27: - | S27: - | T27: - | U27: - | V27: - | W27: - | X27: - | Y27: - | Z27: - | AA27: - | AB27: - | AC27: - | AD27: - | AE27: - | AF27: - | AG27: - | AH27: - | AI27: - | AJ27: - | AK27: - | AL27: - | AM27: -
A28: 海藻製造・加工業 | D28: 7 | E28: - | F28: - | G28: - | H28: - | I28: - | J28: - | K28: - | L28: - | M28: - | N28: - | O28: - | P28: - | Q28: - | R28: - | S28: - | T28: - | U28: - | V28: - | W28: - | X28: - | Y28: - | Z28: - | AA28: - | AB28: - | AC28: - | AD28: - | AE28: - | AF28: - | AG28: - | AH28: - | AI28: - | AJ28: - | AK28: - | AL28: - | AM28: -
A29: 卵選別包装業 | D29: 1 | E29: - | F29: - | G29: - | H29: - | I29: - | J29: - | K29: - | L29: - | M29: - | N29: - | O29: - | P29: - | Q29: - | R29: - | S29: - | T29: - | U29: - | V29: - | W29: - | X29: - | Y29: - | Z29: - | AA29: - | AB29: - | AC29: - | AD29: - | AE29: - | AF29: - | AG29: - | AH29: - | AI29: - | AJ29: - | AK29: - | AL29: - | AM29: -
A30: その他の食料品製造・加工業 | D30: 95 | E30: 5 | F30: - | G30: - | H30: - | I30: - | J30: - | K30: - | L30: - | M30: - | N30: - | O30: - | P30: - | Q30: - | R30: - | S30: - | T30: - | U30: - | V30: - | W30: - | X30: - | Y30: - | Z30: - | AA30: - | AB30: - | AC30: - | AD30: - | AE30: - | AF30: - | AG30: - | AH30: - | AI30: - | AJ30: - | AK30: - | AL30: - | AM30: -
A31: 行商 | D31: 19 | E31: - | F31: - | G31: - | H31: - | I31: - | J31: - | K31: - | L31: - | M31: - | N31: - | O31: - | P31: - | Q31: - | R31: - | S31: - | T31: - | U31: - | V31: - | W31: - | X31: - | Y31: - | Z31: - | AA31: - | AB31: - | AC31: - | AD31: - | AE31: - | AF31: - | AG31: - | AH31: - | AI31: - | AJ31: - | AK31: - | AL31: - | AM31: -
A32: 集団給食施設 | D32: 930 | E32: 193 | F32: - | G32: - | H32: - | I32: - | J32: - | K32: - | L32: - | M32: - | N32: - | O32: - | P32: - | Q32: - | R32: - | S32: - | T32: - | U32: - | V32: - | W32: - | X32: - | Y32: - | Z32: - | AA32: - | AB32: - | AC32: - | AD32: - | AE32: - | AF32: - | AG32: - | AH32: - | AI32: - | AJ32: - | AK32: - | AL32: - | AM32: -
A33: 器具、容器包装の 製造・加工業6) | D33: 24 | E33: - | F33: - | G33: - | H33: - | I33: - | J33: - | K33: - | L33: - | M33: - | N33: - | O33: - | P33: - | Q33: - | R33: - | S33: - | T33: - | U33: - | V33: - | W33: - | X33: - | Y33: - | Z33: - | AA33: - | AB33: - | AC33: - | AD33: - | AE33: - | AF33: - | AG33: - | AH33: - | AI33: - | AJ33: - | AK33: - | AL33: - | AM33: -
A34: 露店、仮設店舗等における飲食の提供のうち、営業とみなされないもの | D34: 31 | E34: - | F34: - | G34: - | H34: - | I34: - | J34: - | K34: - | L34: - | M34: - | N34: - | O34: - | P34: - | Q34: - | R34: - | S34: - | T34: - | U34: - | V34: - | W34: - | X34: - | Y34: - | Z34: - | AA34: - | AB34: - | AC34: - | AD34: - | AE34: - | AF34: - | AG34: - | AH34: - | AI34: - | AJ34: - | AK34: - | AL34: - | AM34: -
A35: その他7) | D35: 122 | E35: 1 | F35: - | G35: - | H35: - | I35: - | J35: - | K35: - | L35: - | M35: - | N35: - | O35: - | P35: - | Q35: - | R35: - | S35: - | T35: - | U35: - | V35: - | W35: - | X35: - | Y35: - | Z35: - | AA35: - | AB35: - | AC35: - | AD35: - | AE35: - | AF35: - | AG35: - | AH35: - | AI35: - | AJ35: - | AK35: - | AL35: - | AM35: -
A36: ※令和３年６月１日に食品衛生法が改正されたことにより営業許可業種の見直しが、行われた。新たに営業届出制度が創設され、従前の食品衛生法による許可を要しない | AM36: 資料 保健所食の安全推進課
A37: 施設は、届出の対象となった。
A38: 1)包装済み品のみ販売。 2)自動洗浄・屋内設置。 3)コップ式自動販売機（自動洗浄・屋内設置）及び営業許可の対象となる自動販売機を除く。
A39: 4)法第 13 条第１項の規定により規格が定められた添加物の製造を除く。 5)飲料の製造を除く。6)合成樹脂が使用された器具又は容器包装の製造、加工に限る。
A40: 7)改正法による改正後の法第 54 条に規定する営業及び公衆衛生に与える影響が少ない営業は除く。

Sheet 10 区別収去検査
A1: 10 区別収去検査状況
S2: 令和6年度
A3: 区 分 | B3: 検 査 機 関
B4: 総 数 | H4: 衛生研究所 | N4: 保健所
B6: 収去検体数 | C6: 違反検体数 | D6: 微生物学 的検査 | F6: 理化学 的検査 | H6: 収去検体数 | I6: 違反検体数 | J6: 微生物学 的検査 | L6: 理化学 的検査 | N6: 収去検体数 | O6: 違反検体数 | P6: 微生物学 的検査 | R6: 理化学 的検査
D7: 検体数 | E7: 違反数 | F7: 検体数 | G7: 違反数 | J7: 検体数 | K7: 違反数 | L7: 検体数 | M7: 違反数 | P7: 検体数 | Q7: 違反数 | R7: 検体数 | S7: 違反数
A8: 総 数 | B8: 657 | C8: 1 | D8: 339 | E8: 1 | F8: 558 | G8: - | H8: 364 | I8: - | J8: 99 | K8: - | L8: 213 | M8: - | N8: 293 | O8: 1 | P8: 240 | Q8: 1 | R8: 78 | S8: -
A9: 中 央 | B9: 412 | C9: 1 | D9: 262 | E9: 1 | F9: 327 | G9: - | H9: 125 | I9: - | J9: 22 | K9: - | L9: 92 | M9: - | N9: 287 | O9: 1 | P9: 240 | Q9: 1 | R9: 72 | S9: -
A10: 北 | B10: 31 | C10: - | D10: 9 | E10: - | F10: 25 | G10: - | H10: 31 | I10: - | J10: 9 | K10: - | L10: 17 | M10: - | N10: - | O10: - | P10: - | Q10: - | R10: - | S10: -
A11: 東 | B11: 44 | C11: - | D11: 24 | E11: - | F11: 40 | G11: - | H11: 42 | I11: - | J11: 24 | K11: - | L11: 31 | M11: - | N11: 2 | O11: - | P11: - | Q11: - | R11: 2 | S11: -
A12: 白 石 | B12: 29 | C12: - | D12: 6 | E12: - | F12: 29 | G12: - | H12: 29 | I12: - | J12: 6 | K12: - | L12: 16 | M12: - | N12: - | O12: - | P12: - | Q12: - | R12: - | S12: -
A13: 厚 別 | B13: 24 | C13: - | D13: 14 | E13: - | F13: 25 | G13: - | H13: 24 | I13: - | J13: 14 | K13: - | L13: 13 | M13: - | N13: - | O13: - | P13: - | Q13: - | R13: - | S13: -
A14: 豊 平 | B14: 17 | C14: - | D14: 7 | E14: - | F14: 17 | G14: - | H14: 17 | I14: - | J14: 7 | K14: - | L14: 4 | M14: - | N14: - | O14: - | P14: - | Q14: - | R14: - | S14: -
A15: 清 田 | B15: 21 | C15: - | D15: 1 | E15: - | F15: 21 | G15: - | H15: 21 | I15: - | J15: 1 | K15: - | L15: 12 | M15: - | N15: - | O15: - | P15: - | Q15: - | R15: - | S15: -
A16: 南 | B16: 17 | C16: - | D16: 4 | E16: - | F16: 15 | G16: - | H16: 17 | I16: - | J16: 4 | K16: - | L16: 9 | M16: - | N16: - | O16: - | P16: - | Q16: - | R16: - | S16: -
A17: 西 | B17: 39 | C17: - | D17: 10 | E17: - | F17: 37 | G17: - | H17: 37 | I17: - | J17: 10 | K17: - | L17: 9 | M17: - | N17: 2 | O17: - | P17: - | Q17: - | R17: 2 | S17: -
A18: 手 稲 | B18: 23 | C18: - | D18: 2 | E18: - | F18: 22 | G18: - | H18: 21 | I18: - | J18: 2 | K18: - | L18: 10 | M18: - | N18: 2 | O18: - | P18: - | Q18: - | R18: 2 | S18: -
A19: ※ 本表の違反検体数は、法に違反するもの（表示基準違反を除く。）を計上している。
S20: 資料 保健所食の安全推進課

Sheet 11 食品等の収去検査
A1: 11 食品等（乳等を除く）の収去試験検査結果
BA2: 令和6年度
A3: 区 分 | D3: 収去検体数（実数） | E3: 違反検体数（実数） | F3: 微生物学的検査 | W3: 理化学的検査
F4: 検査検体数（実数） | G4: 違反検体数（実数） | H4: 検査項目(延数） | W4: 検査検体数（実数） | X4: 違反検体数（実数） | Y4: 検査項目(延数）
H5: 細菌数 | I5: 大腸菌群 | J5: Ｅ・Ｃｏｌｉ | K5: クロストリジウム | L5: リステリア菌 | M5: サルモネラ属菌 | N5: 黄色ブドウ球菌 | O5: 腸炎ビブリオ | P5: ナグ・ビブリオ | Q5: ビブリオフルビアリス | R5: ウエルシュ菌 | S5: セレウス菌 | T5: 腸管出血性大腸菌 | U5: 貝毒 | V5: その他 | Y5: 添加物検査 | AJ5: その他の理化学的検査
Y6: ソルビン酸 | Z6: 安息香酸 | AA6: 過酸化水素 | AB6: 亜硝酸 | AC6: 亜硫酸 | AD6: サッカリンNa | AE6: タール色素 | AF6: 防ばい剤 | AG6: リン酸塩 | AH6: 法定外添加物 | AI6: その他 | AJ6: 重金属等 | AK6: 過酸化物価 酸化・ | AL6: 抗菌性物質 | AM6: T B T O T P T O | AN6: 残留農薬等 | AO6: ＰＣＢ | AP6: 容器包装規格 | AQ6: 油脂分 | AR6: 異物 | AS6: 鮮度試験 | AT6: メタノール | AU6: ヒスタミン | AV6: 塩分 | AW6: ｐ Ｈ | AX6: 水分活性 | AY6: 遺伝子組換試験 | AZ6: 放射能 | BA6: その他
A7: 総数 | D7: 617 | E7: 1 | F7: 301 | G7: 1 | H7: 247 | I7: 262 | J7: 101 | K7: - | L7: 1 | M7: 40 | N7: 269 | O7: 95 | P7: - | Q7: - | R7: - | S7: 37 | T7: 202 | U7: - | V7: 227 | W7: 515 | X7: - | Y7: 187 | Z7: 141 | AA7: 8 | AB7: 34 | AC7: 46 | AD7: 139 | AE7: 696 | AF7: 38 | AG7: - | AH7: 175 | AI7: 9 | AJ7: 2 | AK7: - | AL7: 780 | AM7: - | AN7: 14607 | AO7: - | AP7: - | AQ7: - | AR7: 2 | AS7: 21 | AT7: 3 | AU7: 43 | AV7: 10 | AW7: 11 | AX7: 1 | AY7: 21 | AZ7: 93 | BA7: 83
A8: 魚介類 | D8: 99 | E8: - | F8: 86 | G8: - | H8: 86 | I8: 73 | J8: 13 | K8: - | L8: - | M8: 1 | N8: 78 | O8: 1 | P8: - | Q8: - | R8: - | S8: - | T8: 79 | U8: - | V8: 130 | W8: 52 | X8: - | Y8: - | Z8: - | AA8: - | AB8: - | AC8: - | AD8: - | AE8: - | AF8: - | AG8: - | AH8: - | AI8: - | AJ8: - | AK8: - | AL8: 215 | AM8: - | AN8: - | AO8: - | AP8: - | AQ8: - | AR8: - | AS8: 21 | AT8: - | AU8: 28 | AV8: 10 | AW8: 10 | AX8: - | AY8: - | AZ8: 15 | BA8: -
B9: 生食用かき | D9: 13 | E9: - | F9: 13 | G9: - | H9: 13 | I9: - | J9: 13 | K9: - | L9: - | M9: - | N9: 10 | O9: - | P9: - | Q9: - | R9: - | S9: - | T9: - | U9: - | V9: 13 | W9: 10 | X9: - | Y9: - | Z9: - | AA9: - | AB9: - | AC9: - | AD9: - | AE9: - | AF9: - | AG9: - | AH9: - | AI9: - | AJ9: - | AK9: - | AL9: - | AM9: - | AN9: - | AO9: - | AP9: - | AQ9: - | AR9: - | AS9: 20 | AT9: - | AU9: - | AV9: 10 | AW9: 10 | AX9: - | AY9: - | AZ9: - | BA9: -
B10: その他 | D10: 86 | E10: - | F10: 73 | G10: - | H10: 73 | I10: 73 | J10: - | K10: - | L10: - | M10: 1 | N10: 68 | O10: 1 | P10: - | Q10: - | R10: - | S10: - | T10: 79 | U10: - | V10: 117 | W10: 42 | X10: - | Y10: - | Z10: - | AA10: - | AB10: - | AC10: - | AD10: - | AE10: - | AF10: - | AG10: - | AH10: - | AI10: - | AJ10: - | AK10: - | AL10: 215 | AM10: - | AN10: - | AO10: - | AP10: - | AQ10: - | AR10: - | AS10: 1 | AT10: - | AU10: 28 | AV10: - | AW10: - | AX10: - | AY10: - | AZ10: 15 | BA10: -
A11: 魚介類加工品 | D11: 163 | E11: 1 | F11: 120 | G11: 1 | H11: 88 | I11: 120 | J11: 15 | K11: - | L11: - | M11: - | N11: 112 | O11: 73 | P11: - | Q11: - | R11: - | S11: 15 | T11: 36 | U11: - | V11: 36 | W11: 159 | X11: - | Y11: 98 | Z11: 88 | AA11: 8 | AB11: 23 | AC11: 14 | AD11: 98 | AE11: 168 | AF11: - | AG11: - | AH11: - | AI11: - | AJ11: - | AK11: - | AL11: 12 | AM11: - | AN11: - | AO11: - | AP11: - | AQ11: - | AR11: - | AS11: - | AT11: - | AU11: 15 | AV11: - | AW11: - | AX11: - | AY11: - | AZ11: 3 | BA11: 2
B12: 魚肉練り製品 | D12: 22 | E12: - | F12: 21 | G12: - | H12: - | I12: 21 | J12: - | K12: - | L12: - | M12: - | N12: 13 | O12: - | P12: - | Q12: - | R12: - | S12: - | T12: - | U12: - | V12: - | W12: 22 | X12: - | Y12: 21 | Z12: 13 | AA12: - | AB12: 2 | AC12: - | AD12: 21 | AE12: 48 | AF12: - | AG12: - | AH12: - | AI12: - | AJ12: - | AK12: - | AL12: - | AM12: - | AN12: - | AO12: - | AP12: - | AQ12: - | AR12: - | AS12: - | AT12: - | AU12: - | AV12: - | AW12: - | AX12: - | AY12: - | AZ12: - | BA12: 2
B13: 魚卵製品 | D13: 31 | E13: - | F13: 17 | G13: - | H13: 17 | I13: 17 | J13: - | K13: - | L13: - | M13: - | N13: 17 | O13: 17 | P13: - | Q13: - | R13: - | S13: - | T13: 36 | U13: - | V13: 36 | W13: 31 | X13: - | Y13: 5 | Z13: 5 | AA13: 6 | AB13: 20 | AC13: - | AD13: 5 | AE13: 108 | AF13: - | AG13: - | AH13: - | AI13: - | AJ13: - | AK13: - | AL13: - | AM13: - | AN13: - | AO13: - | AP13: - | AQ13: - | AR13: - | AS13: - | AT13: - | AU13: - | AV13: - | AW13: - | AX13: - | AY13: - | AZ13: - | BA13: -
B14: 魚介乾製品 | D14: 36 | E14: - | F14: 22 | G14: - | H14: 22 | I14: 22 | J14: - | K14: - | L14: - | M14: - | N14: 22 | O14: - | P14: - | Q14: - | R14: - | S14: - | T14: - | U14: - | V14: - | W14: 36 | X14: - | Y14: 27 | Z14: 27 | AA14: - | AB14: - | AC14: - | AD14: 27 | AE14: - | AF14: - | AG14: - | AH14: - | AI14: - | AJ14: - | AK14: - | AL14: - | AM14: - | AN14: - | AO14: - | AP14: - | AQ14: - | AR14: - | AS14: - | AT14: - | AU14: 9 | AV14: - | AW14: - | AX14: - | AY14: - | AZ14: - | BA14: -
B15: 魚介漬物 | D15: 2 | E15: - | F15: 1 | G15: 0 | H15: 1 | I15: 1 | J15: - | K15: - | L15: - | M15: - | N15: 1 | O15: 1 | P15: - | Q15: - | R15: - | S15: - | T15: - | U15: - | V15: - | W15: 2 | X15: - | Y15: 2 | Z15: 2 | AA15: - | AB15: - | AC15: - | AD15: 2 | AE15: - | AF15: - | AG15: - | AH15: - | AI15: - | AJ15: - | AK15: - | AL15: - | AM15: - | AN15: - | AO15: - | AP15: - | AQ15: - | AR15: - | AS15: - | AT15: - | AU15: - | AV15: - | AW15: - | AX15: - | AY15: - | AZ15: - | BA15: -
B16: その他 | D16: 72 | E16: 1 | F16: 59 | G16: 1 | H16: 48 | I16: 59 | J16: 15 | K16: - | L16: - | M16: - | N16: 59 | O16: 55 | P16: - | Q16: - | R16: - | S16: 15 | T16: - | U16: - | V16: - | W16: 68 | X16: - | Y16: 43 | Z16: 41 | AA16: 2 | AB16: 1 | AC16: 14 | AD16: 43 | AE16: 12 | AF16: - | AG16: - | AH16: - | AI16: - | AJ16: - | AK16: - | AL16: 12 | AM16: - | AN16: - | AO16: - | AP16: - | AQ16: - | AR16: - | AS16: - | AT16: - | AU16: 6 | AV16: - | AW16: - | AX16: - | AY16: - | AZ16: 3 | BA16: -
A17: 肉卵類･その加工品 | D17: 39 | E17: - | F17: 17 | G17: - | H17: 6 | I17: 6 | J17: 17 | K17: - | L17: 1 | M17: 17 | N17: 17 | O17: - | P17: - | Q17: - | R17: - | S17: 6 | T17: 11 | U17: - | V17: - | W17: 39 | X17: - | Y17: 17 | Z17: 6 | AA17: - | AB17: 11 | AC17: - | AD17: 6 | AE17: - | AF17: - | AG17: - | AH17: - | AI17: - | AJ17: - | AK17: - | AL17: 551 | AM17: - | AN17: - | AO17: - | AP17: - | AQ17: - | AR17: - | AS17: - | AT17: - | AU17: - | AV17: - | AW17: 1 | AX17: 1 | AY17: - | AZ17: - | BA17: 2
B18: 食肉 | D18: 17 | E18: - | F18: - | G18: - | H18: - | I18: - | J18: - | K18: - | L18: - | M18: - | N18: - | O18: - | P18: - | Q18: - | R18: - | S18: - | T18: - | U18: - | V18: - | W18: 17 | X18: - | Y18: - | Z18: - | AA18: - | AB18: - | AC18: - | AD18: - | AE18: - | AF18: - | AG18: - | AH18: - | AI18: - | AJ18: - | AK18: - | AL18: 447 | AM18: - | AN18: - | AO18: - | AP18: - | AQ18: - | AR18: - | AS18: - | AT18: - | AU18: - | AV18: - | AW18: - | AX18: - | AY18: - | AZ18: - | BA18: -
B19: 食肉製品 | D19: 11 | E19: - | F19: 11 | G19: - | H19: - | I19: - | J19: 11 | K19: - | L19: 1 | M19: 11 | N19: 11 | O19: - | P19: - | Q19: - | R19: - | S19: - | T19: 11 | U19: - | V19: - | W19: 11 | X19: - | Y19: 11 | Z19: - | AA19: - | AB19: 11 | AC19: - | AD19: - | AE19: - | AF19: - | AG19: - | AH19: - | AI19: - | AJ19: - | AK19: - | AL19: - | AM19: - | AN19: - | AO19: - | AP19: - | AQ19: - | AR19: - | AS19: - | AT19: - | AU19: - | AV19: - | AW19: 1 | AX19: 1 | AY19: - | AZ19: - | BA19: -
B20: その他 | D20: 11 | E20: - | F20: 6 | G20: - | H20: 6 | I20: 6 | J20: 6 | K20: - | L20: - | M20: 6 | N20: 6 | O20: - | P20: - | Q20: - | R20: - | S20: 6 | T20: - | U20: - | V20: - | W20: 11 | X20: - | Y20: 6 | Z20: 6 | AA20: - | AB20: - | AC20: - | AD20: 6 | AE20: - | AF20: - | AG20: - | AH20: - | AI20: - | AJ20: - | AK20: - | AL20: 104 | AM20: - | AN20: - | AO20: - | AP20: - | AQ20: - | AR20: - | AS20: - | AT20: - | AU20: - | AV20: - | AW20: - | AX20: - | AY20: - | AZ20: - | BA20: 2
A21: 穀類・その加工品 | D21: 22 | E21: - | F21: - | G21: - | H21: - | I21: - | J21: - | K21: - | L21: - | M21: - | N21: - | O21: - | P21: - | Q21: - | R21: - | S21: - | T21: - | U21: - | V21: - | W21: 22 | X21: - | Y21: - | Z21: - | AA21: - | AB21: - | AC21: - | AD21: - | AE21: - | AF21: - | AG21: - | AH21: - | AI21: - | AJ21: - | AK21: - | AL21: - | AM21: - | AN21: 268 | AO21: - | AP21: - | AQ21: - | AR21: - | AS21: - | AT21: - | AU21: - | AV21: - | AW21: - | AX21: - | AY21: 21 | AZ21: 6 | BA21: 10
B22: 米 | D22: - | E22: - | F22: - | G22: - | H22: - | I22: - | J22: - | K22: - | L22: - | M22: - | N22: - | O22: - | P22: - | Q22: - | R22: - | S22: - | T22: - | U22: - | V22: - | W22: - | X22: - | Y22: - | Z22: - | AA22: - | AB22: - | AC22: - | AD22: - | AE22: - | AF22: - | AG22: - | AH22: - | AI22: - | AJ22: - | AK22: - | AL22: - | AM22: - | AN22: - | AO22: - | AP22: - | AQ22: - | AR22: - | AS22: - | AT22: - | AU22: - | AV22: - | AW22: - | AX22: - | AY22: - | AZ22: - | BA22: -
B23: トウモロコシ | D23: 2 | E23: - | F23: - | G23: - | H23: - | I23: - | J23: - | K23: - | L23: - | M23: - | N23: - | O23: - | P23: - | Q23: - | R23: - | S23: - | T23: - | U23: - | V23: - | W23: 2 | X23: - | Y23: - | Z23: - | AA23: - | AB23: - | AC23: - | AD23: - | AE23: - | AF23: - | AG23: - | AH23: - | AI23: - | AJ23: - | AK23: - | AL23: - | AM23: - | AN23: 268 | AO23: - | AP23: - | AQ23: - | AR23: - | AS23: - | AT23: - | AU23: - | AV23: - | AW23: - | AX23: - | AY23: - | AZ23: - | BA23: -
B24: 大豆 | D24: - | E24: - | F24: - | G24: - | H24: - | I24: - | J24: - | K24: - | L24: - | M24: - | N24: - | O24: - | P24: - | Q24: - | R24: - | S24: - | T24: - | U24: - | V24: - | W24: - | X24: - | Y24: - | Z24: - | AA24: - | AB24: - | AC24: - | AD24: - | AE24: - | AF24: - | AG24: - | AH24: - | AI24: - | AJ24: - | AK24: - | AL24: - | AM24: - | AN24: - | AO24: - | AP24: - | AQ24: - | AR24: - | AS24: - | AT24: - | AU24: - | AV24: - | AW24: - | AX24: - | AY24: - | AZ24: - | BA24: -
B25: その他穀類 | D25: - | E25: - | F25: - | G25: - | H25: - | I25: - | J25: - | K25: - | L25: - | M25: - | N25: - | O25: - | P25: - | Q25: - | R25: - | S25: - | T25: - | U25: - | V25: - | W25: - | X25: - | Y25: - | Z25: - | AA25: - | AB25: - | AC25: - | AD25: - | AE25: - | AF25: - | AG25: - | AH25: - | AI25: - | AJ25: - | AK25: - | AL25: - | AM25: - | AN25: - | AO25: - | AP25: - | AQ25: - | AR25: - | AS25: - | AT25: - | AU25: - | AV25: - | AW25: - | AX25: - | AY25: - | AZ25: - | BA25: -
B26: めん類 | D26: 2 | E26: - | F26: - | G26: - | H26: - | I26: - | J26: - | K26: - | L26: - | M26: - | N26: - | O26: - | P26: - | Q26: - | R26: - | S26: - | T26: - | U26: - | V26: - | W26: 2 | X26: - | Y26: - | Z26: - | AA26: - | AB26: - | AC26: - | AD26: - | AE26: - | AF26: - | AG26: - | AH26: - | AI26: - | AJ26: - | AK26: - | AL26: - | AM26: - | AN26: - | AO26: - | AP26: - | AQ26: - | AR26: - | AS26: - | AT26: - | AU26: - | AV26: - | AW26: - | AX26: - | AY26: - | AZ26: - | BA26: 4
B27: その他穀類加工品 | D27: 18 | E27: - | F27: - | G27: - | H27: - | I27: - | J27: - | K27: - | L27: - | M27: - | N27: - | O27: - | P27: - | Q27: - | R27: - | S27: - | T27: - | U27: - | V27: - | W27: 18 | X27: - | Y27: - | Z27: - | AA27: - | AB27: - | AC27: - | AD27: - | AE27: - | AF27: - | AG27: - | AH27: - | AI27: - | AJ27: - | AK27: - | AL27: - | AM27: - | AN27: - | AO27: - | AP27: - | AQ27: - | AR27: - | AS27: - | AT27: - | AU27: - | AV27: - | AW27: - | AX27: - | AY27: 21 | AZ27: 6 | BA27: 6
A28: 野菜・果物・その加工品 （かん詰、びん詰を除く） | D28: 151 | E28: - | F28: 14 | G28: - | H28: 5 | I28: 5 | J28: 9 | K28: - | L28: - | M28: - | N28: 8 | O28: 2 | P28: - | Q28: - | R28: - | S28: - | T28: 30 | U28: - | V28: 24 | W28: 151 | X28: - | Y28: 27 | Z28: 11 | AA28: - | AB28: - | AC28: 22 | AD28: 16 | AE28: 24 | AF28: 38 | AG28: - | AH28: 3 | AI28: 9 | AJ28: - | AK28: - | AL28: - | AM28: - | AN28: 14041 | AO28: - | AP28: - | AQ28: - | AR28: - | AS28: - | AT28: - | AU28: - | AV28: - | AW28: - | AX28: - | AY28: - | AZ28: 63 | BA28: -
B29: 生鮮野菜・果実等 | D29: 116 | E29: - | F29: - | G29: - | H29: - | I29: - | J29: - | K29: - | L29: - | M29: - | N29: - | O29: - | P29: - | Q29: - | R29: - | S29: - | T29: - | U29: - | V29: - | W29: 116 | X29: - | Y29: - | Z29: - | AA29: - | AB29: - | AC29: - | AD29: - | AE29: - | AF29: 38 | AG29: - | AH29: - | AI29: - | AJ29: - | AK29: - | AL29: - | AM29: - | AN29: 13773 | AO29: - | AP29: - | AQ29: - | AR29: - | AS29: - | AT29: - | AU29: - | AV29: - | AW29: - | AX29: - | AY29: - | AZ29: 63 | BA29: -
B30: 豆類 | D30: 2 | E30: - | F30: - | G30: - | H30: - | I30: - | J30: - | K30: - | L30: - | M30: - | N30: - | O30: - | P30: - | Q30: - | R30: - | S30: - | T30: - | U30: - | V30: - | W30: 2 | X30: - | Y30: - | Z30: - | AA30: - | AB30: - | AC30: - | AD30: - | AE30: - | AF30: - | AG30: - | AH30: - | AI30: - | AJ30: - | AK30: - | AL30: - | AM30: - | AN30: 268 | AO30: - | AP30: - | AQ30: - | AR30: - | AS30: - | AT30: - | AU30: - | AV30: - | AW30: - | AX30: - | AY30: - | AZ30: - | BA30: -
B31: 豆腐類 | D31: - | E31: - | F31: - | G31: - | H31: - | I31: - | J31: - | K31: - | L31: - | M31: - | N31: - | O31: - | P31: - | Q31: - | R31: - | S31: - | T31: - | U31: - | V31: - | W31: - | X31: - | Y31: - | Z31: - | AA31: - | AB31: - | AC31: - | AD31: - | AE31: - | AF31: - | AG31: - | AH31: - | AI31: - | AJ31: - | AK31: - | AL31: - | AM31: - | AN31: - | AO31: - | AP31: - | AQ31: - | AR31: - | AS31: - | AT31: - | AU31: - | AV31: - | AW31: - | AX31: - | AY31: - | AZ31: - | BA31: -
B32: あん類 | D32: - | E32: - | F32: - | G32: - | H32: - | I32: - | J32: - | K32: - | L32: - | M32: - | N32: - | O32: - | P32: - | Q32: - | R32: - | S32: - | T32: - | U32: - | V32: - | W32: - | X32: - | Y32: - | Z32: - | AA32: - | AB32: - | AC32: - | AD32: - | AE32: - | AF32: - | AG32: - | AH32: - | AI32: - | AJ32: - | AK32: - | AL32: - | AM32: - | AN32: - | AO32: - | AP32: - | AQ32: - | AR32: - | AS32: - | AT32: - | AU32: - | AV32: - | AW32: - | AX32: - | AY32: - | AZ32: - | BA32: -
B33: みそ | D33: - | E33: - | F33: - | G33: - | H33: - | I33: - | J33: - | K33: - | L33: - | M33: - | N33: - | O33: - | P33: - | Q33: - | R33: - | S33: - | T33: - | U33: - | V33: - | W33: - | X33: - | Y33: - | Z33: - | AA33: - | AB33: - | AC33: - | AD33: - | AE33: - | AF33: - | AG33: - | AH33: - | AI33: - | AJ33: - | AK33: - | AL33: - | AM33: - | AN33: - | AO33: - | AP33: - | AQ33: - | AR33: - | AS33: - | AT33: - | AU33: - | AV33: - | AW33: - | AX33: - | AY33: - | AZ33: - | BA33: -
B34: 漬物 | D34: 17 | E34: - | F34: 14 | G34: - | H34: 5 | I34: 5 | J34: 9 | K34: - | L34: - | M34: - | N34: 8 | O34: 2 | P34: - | Q34: - | R34: - | S34: - | T34: 30 | U34: - | V34: 24 | W34: 17 | X34: - | Y34: 17 | Z34: 11 | AA34: - | AB34: - | AC34: 6 | AD34: 14 | AE34: 24 | AF34: - | AG34: - | AH34: 3 | AI34: 9 | AJ34: - | AK34: - | AL34: - | AM34: - | AN34: - | AO34: - | AP34: - | AQ34: - | AR34: - | AS34: - | AT34: - | AU34: - | AV34: - | AW34: - | AX34: - | AY34: - | AZ34: - | BA34: -
B35: 煮豆・佃煮 | D35: 2 | E35: - | F35: - | G35: - | H35: - | I35: - | J35: - | K35: - | L35: - | M35: - | N35: - | O35: - | P35: - | Q35: - | R35: - | S35: - | T35: - | U35: - | V35: - | W35: 2 | X35: - | Y35: 2 | Z35: - | AA35: - | AB35: - | AC35: 2 | AD35: 2 | AE35: - | AF35: - | AG35: - | AH35: - | AI35: - | AJ35: - | AK35: - | AL35: - | AM35: - | AN35: - | AO35: - | AP35: - | AQ35: - | AR35: - | AS35: - | AT35: - | AU35: - | AV35: - | AW35: - | AX35: - | AY35: - | AZ35: - | BA35: -
B36: その他 | D36: 14 | E36: - | F36: - | G36: - | H36: - | I36: - | J36: - | K36: - | L36: - | M36: - | N36: - | O36: - | P36: - | Q36: - | R36: - | S36: - | T36: - | U36: - | V36: - | W36: 14 | X36: - | Y36: 8 | Z36: - | AA36: - | AB36: - | AC36: 14 | AD36: - | AE36: - | AF36: - | AG36: - | AH36: - | AI36: - | AJ36: - | AK36: - | AL36: - | AM36: - | AN36: - | AO36: - | AP36: - | AQ36: - | AR36: - | AS36: - | AT36: - | AU36: - | AV36: - | AW36: - | AX36: - | AY36: - | AZ36: - | BA36: -
A37: 冷凍食品 | D37: 18 | E37: - | F37: 16 | G37: - | H37: 16 | I37: 12 | J37: 6 | K37: - | L37: - | M37: - | N37: 9 | O37: - | P37: - | Q37: - | R37: - | S37: - | T37: 27 | U37: - | V37: 33 | W37: 8 | X37: - | Y37: - | Z37: - | AA37: - | AB37: - | AC37: 4 | AD37: - | AE37: - | AF37: - | AG37: - | AH37: - | AI37: - | AJ37: - | AK37: - | AL37: - | AM37: - | AN37: 298 | AO37: - | AP37: - | AQ37: - | AR37: - | AS37: - | AT37: - | AU37: - | AV37: - | AW37: - | AX37: - | AY37: - | AZ37: - | BA37: 4
A38: 菓子類 | D38: 53 | E38: - | F38: - | G38: - | H38: - | I38: - | J38: - | K38: - | L38: - | M38: - | N38: - | O38: - | P38: - | Q38: - | R38: - | S38: - | T38: - | U38: - | V38: - | W38: 53 | X38: - | Y38: 26 | Z38: 26 | AA38: - | AB38: - | AC38: - | AD38: 12 | AE38: 456 | AF38: - | AG38: - | AH38: 156 | AI38: - | AJ38: - | AK38: - | AL38: - | AM38: - | AN38: - | AO38: - | AP38: - | AQ38: - | AR38: - | AS38: - | AT38: - | AU38: - | AV38: - | AW38: - | AX38: - | AY38: - | AZ38: - | BA38: 29
A39: 清涼飲料水・酒精飲料 | D39: 11 | E39: - | F39: 2 | G39: - | H39: - | I39: 2 | J39: - | K39: - | L39: - | M39: - | N39: - | O39: - | P39: - | Q39: - | R39: - | S39: - | T39: - | U39: - | V39: 4 | W39: 11 | X39: - | Y39: 9 | Z39: - | AA39: - | AB39: - | AC39: 6 | AD39: - | AE39: 36 | AF39: - | AG39: - | AH39: 9 | AI39: - | AJ39: 2 | AK39: - | AL39: - | AM39: - | AN39: - | AO39: - | AP39: - | AQ39: - | AR39: 2 | AS39: - | AT39: 3 | AU39: - | AV39: - | AW39: - | AX39: - | AY39: - | AZ39: - | BA39: 30
A40: 氷雪 | D40: 1 | E40: - | F40: 1 | G40: - | H40: 1 | I40: 1 | J40: - | K40: - | L40: - | M40: - | N40: - | O40: - | P40: - | Q40: - | R40: - | S40: - | T40: 1 | U40: - | V40: - | W40: - | X40: - | Y40: - | Z40: - | AA40: - | AB40: - | AC40: - | AD40: - | AE40: - | AF40: - | AG40: - | AH40: - | AI40: - | AJ40: - | AK40: - | AL40: - | AM40: - | AN40: - | AO40: - | AP40: - | AQ40: - | AR40: - | AS40: - | AT40: - | AU40: - | AV40: - | AW40: - | AX40: - | AY40: - | AZ40: - | BA40: -
A41: レトルト食品 | D41: - | E41: - | F41: - | G41: - | H41: - | I41: - | J41: - | K41: - | L41: - | M41: - | N41: - | O41: - | P41: - | Q41: - | R41: - | S41: - | T41: - | U41: - | V41: - | W41: - | X41: - | Y41: - | Z41: - | AA41: - | AB41: - | AC41: - | AD41: - | AE41: - | AF41: - | AG41: - | AH41: - | AI41: - | AJ41: - | AK41: - | AL41: - | AM41: - | AN41: - | AO41: - | AP41: - | AQ41: - | AR41: - | AS41: - | AT41: - | AU41: - | AV41: - | AW41: - | AX41: - | AY41: - | AZ41: - | BA41: -
A42: 健康食品 | D42: - | E42: - | F42: - | G42: - | H42: - | I42: - | J42: - | K42: - | L42: - | M42: - | N42: - | O42: - | P42: - | Q42: - | R42: - | S42: - | T42: - | U42: - | V42: - | W42: - | X42: - | Y42: - | Z42: - | AA42: - | AB42: - | AC42: - | AD42: - | AE42: - | AF42: - | AG42: - | AH42: - | AI42: - | AJ42: - | AK42: - | AL42: - | AM42: - | AN42: - | AO42: - | AP42: - | AQ42: - | AR42: - | AS42: - | AT42: - | AU42: - | AV42: - | AW42: - | AX42: - | AY42: - | AZ42: - | BA42: -
A43: かん詰・びん詰食品 | D43: 2 | E43: - | F43: - | G43: - | H43: - | I43: - | J43: - | K43: - | L43: - | M43: - | N43: - | O43: - | P43: - | Q43: - | R43: - | S43: - | T43: - | U43: - | V43: - | W43: 2 | X43: - | Y43: 2 | Z43: 2 | AA43: - | AB43: - | AC43: - | AD43: 2 | AE43: - | AF43: - | AG43: - | AH43: - | AI43: - | AJ43: - | AK43: - | AL43: - | AM43: - | AN43: - | AO43: - | AP43: - | AQ43: - | AR43: - | AS43: - | AT43: - | AU43: - | AV43: - | AW43: - | AX43: - | AY43: - | AZ43: - | BA43: -
A44: そうざい類 | D44: 46 | E44: - | F44: 45 | G44: - | H44: 45 | I44: 43 | J44: 41 | K44: - | L44: - | M44: 22 | N44: 45 | O44: 19 | P44: - | Q44: - | R44: - | S44: 16 | T44: 18 | U44: - | V44: - | W44: 6 | X44: - | Y44: 5 | Z44: 5 | AA44: - | AB44: - | AC44: - | AD44: 5 | AE44: 12 | AF44: - | AG44: - | AH44: - | AI44: - | AJ44: - | AK44: - | AL44: 2 | AM44: - | AN44: - | AO44: - | AP44: - | AQ44: - | AR44: - | AS44: - | AT44: - | AU44: - | AV44: - | AW44: - | AX44: - | AY44: - | AZ44: - | BA44: -
A45: 弁当類 | D45: - | E45: - | F45: - | G45: - | H45: - | I45: - | J45: - | K45: - | L45: - | M45: - | N45: - | O45: - | P45: - | Q45: - | R45: - | S45: - | T45: - | U45: - | V45: - | W45: - | X45: - | Y45: - | Z45: - | AA45: - | AB45: - | AC45: - | AD45: - | AE45: - | AF45: - | AG45: - | AH45: - | AI45: - | AJ45: - | AK45: - | AL45: - | AM45: - | AN45: - | AO45: - | AP45: - | AQ45: - | AR45: - | AS45: - | AT45: - | AU45: - | AV45: - | AW45: - | AX45: - | AY45: - | AZ45: - | BA45: -
A46: 調味料・香料 | D46: 3 | E46: - | F46: - | G46: - | H46: - | I46: - | J46: - | K46: - | L46: - | M46: - | N46: - | O46: - | P46: - | Q46: - | R46: - | S46: - | T46: - | U46: - | V46: - | W46: 3 | X46: - | Y46: 3 | Z46: 3 | AA46: - | AB46: - | AC46: - | AD46: - | AE46: - | AF46: - | AG46: - | AH46: 6 | AI46: - | AJ46: - | AK46: - | AL46: - | AM46: - | AN46: - | AO46: - | AP46: - | AQ46: - | AR46: - | AS46: - | AT46: - | AU46: - | AV46: - | AW46: - | AX46: - | AY46: - | AZ46: - | BA46: -
A47: その他の食品 | D47: 9 | E47: - | F47: - | G47: - | H47: - | I47: - | J47: - | K47: - | L47: - | M47: - | N47: - | O47: - | P47: - | Q47: - | R47: - | S47: - | T47: - | U47: - | V47: - | W47: 9 | X47: - | Y47: - | Z47: - | AA47: - | AB47: - | AC47: - | AD47: - | AE47: - | AF47: - | AG47: - | AH47: 1 | AI47: - | AJ47: - | AK47: - | AL47: - | AM47: - | AN47: - | AO47: - | AP47: - | AQ47: - | AR47: - | AS47: - | AT47: - | AU47: - | AV47: - | AW47: - | AX47: - | AY47: - | AZ47: 6 | BA47: 6
A48: おもちゃ | D48: - | E48: - | F48: - | G48: - | H48: - | I48: - | J48: - | K48: - | L48: - | M48: - | N48: - | O48: - | P48: - | Q48: - | R48: - | S48: - | T48: - | U48: - | V48: - | W48: - | X48: - | Y48: - | Z48: - | AA48: - | AB48: - | AC48: - | AD48: - | AE48: - | AF48: - | AG48: - | AH48: - | AI48: - | AJ48: - | AK48: - | AL48: - | AM48: - | AN48: - | AO48: - | AP48: - | AQ48: - | AR48: - | AS48: - | AT48: - | AU48: - | AV48: - | AW48: - | AX48: - | AY48: - | AZ48: - | BA48: -
A49: 器具・容器包装 | D49: - | E49: - | F49: - | G49: - | H49: - | I49: - | J49: - | K49: - | L49: - | M49: - | N49: - | O49: - | P49: - | Q49: - | R49: - | S49: - | T49: - | U49: - | V49: - | W49: - | X49: - | Y49: - | Z49: - | AA49: - | AB49: - | AC49: - | AD49: - | AE49: - | AF49: - | AG49: - | AH49: - | AI49: - | AJ49: - | AK49: - | AL49: - | AM49: - | AN49: - | AO49: - | AP49: - | AQ49: - | AR49: - | AS49: - | AT49: - | AU49: - | AV49: - | AW49: - | AX49: - | AY49: - | AZ49: - | BA49: -
A50: ※ 本表の違反検体数は、法に違反するもの（表示基準違反を除く。）を計上している。 | BA50: 資料 保健所食の安全推進課
A51: ※ 抗菌性物質には、合成抗菌剤・抗生物質・内寄生虫用剤等動物医薬品を含めて計上している。
A52: ※ 検査項目別の違反件数は、（ ）内に計上している。

Sheet 12 輸入食品等の収去検査 (2)
A1: 12 輸入食品等の収去試験検査結果（再掲）
AU2: 令和6年度
A3: 区 分 | D3: 収去検体数（実数） | E3: 違反検体数（実数） | F3: 微生物学的検査 | Y3: 理化学的検査
F4: 検査検体数（実数） | G4: 違反検体数（実数） | H4: 検査項目(延数） | S4: 検査検体数（実数） | T4: 違反検体数（実数） | U4: 検査項目(延数）
H5: 細菌数 | I5: 大腸菌群 | J5: Ｅ・Ｃｏｌｉ | K5: 黄色ブドウ球菌 | L5: 腸炎ビブリオ | M5: ナグ・ビブリオ | N5: ビブリオフルビアリス | O5: サルモネラ属菌 | P5: リステリア菌 | Q5: 腸管出血性大腸菌 | R5: その他 | U5: 乳・乳製品規格 | V5: 器具容器包装規格 | W5: 添加物検査 | AK5: その他の理化学的検査
W6: ソルビン酸 | X6: 安息香酸 | Y6: Ｐ安息香酸 | Z6: プロピオン酸 | AA6: デヒドロ酢酸 | AB6: 亜硝酸 | AC6: 亜硫酸 | AD6: サッカリンNa | AE6: タール色素 | AF6: 防ばい剤 | AG6: 過酸化水素 | AH6: ピペロニルブトキシド | AI6: 法定外添加物 | AJ6: その他 | AK6: 重金属等 | AL6: 抗菌性物質 | AM6: 残留農薬等 | AN6: 異物等 | AO6: 鮮度試験 | AP6: 遺伝子組換試験 | AQ6: 放射能 | AR6: メタノール | AS6: ヒスタミン | AT6: ｐＨ | AU6: その他
A7: 総数 | D7: 137 | E7: - | F7: 33 | G7: - | H7: 29 | I7: 27 | J7: 9 | K7: 28 | L7: 6 | M7: - | N7: - | O7: 1 | P7: 2 | Q7: 43 | R7: 56 | S7: 115 | T7: - | U7: - | V7: - | W7: 48 | X7: 35 | Y7: - | Z7: - | AA7: - | AB7: 1 | AC7: 13 | AD7: 3 | AE7: 348 | AF7: 34 | AG7: - | AH7: - | AI7: 175 | AJ7: 3 | AK7: 2 | AL7: 464 | AM7: 4065 | AN7: 1 | AO7: - | AP7: 8 | AQ7: - | AR7: 3 | AS7: 3 | AT7: - | AU7: 16
A8: 乳・乳製品等 | D8: 4 | E8: - | F8: 2 | G8: - | H8: - | I8: - | J8: - | K8: - | L8: - | M8: - | N8: - | O8: - | P8: 2 | Q8: - | R8: - | S8: 2 | T8: - | U8: - | V8: - | W8: - | X8: - | Y8: - | Z8: - | AA8: - | AB8: - | AC8: - | AD8: - | AE8: - | AF8: - | AG8: - | AH8: - | AI8: - | AJ8: - | AK8: - | AL8: - | AM8: - | AN8: - | AO8: - | AP8: - | AQ8: - | AR8: - | AS8: - | AT8: - | AU8: 2
B9: チーズ | D9: 4 | E9: - | F9: 2 | G9: - | H9: - | I9: - | J9: - | K9: - | L9: - | M9: - | N9: - | O9: - | P9: 2 | Q9: - | R9: - | S9: 2 | T9: - | U9: - | V9: - | W9: - | X9: - | Y9: - | Z9: - | AA9: - | AB9: - | AC9: - | AD9: - | AE9: - | AF9: - | AG9: - | AH9: - | AI9: - | AJ9: - | AK9: - | AL9: - | AM9: - | AN9: - | AO9: - | AP9: - | AQ9: - | AR9: - | AS9: - | AT9: - | AU9: 2
B10: その他 | D10: - | E10: - | F10: - | G10: - | H10: - | I10: - | J10: - | K10: - | L10: - | M10: - | N10: - | O10: - | P10: - | Q10: - | R10: - | S10: - | T10: - | U10: - | V10: - | W10: - | X10: - | Y10: - | Z10: - | AA10: - | AB10: - | AC10: - | AD10: - | AE10: - | AF10: - | AG10: - | AH10: - | AI10: - | AJ10: - | AK10: - | AL10: - | AM10: - | AN10: - | AO10: - | AP10: - | AQ10: - | AR10: - | AS10: - | AT10: - | AU10: -
A11: 魚介類 | D11: 18 | E11: - | F11: 14 | G11: - | H11: 14 | I11: 14 | J11: - | K11: 14 | L11: - | M11: - | N11: - | O11: - | P11: - | Q11: 21 | R11: 29 | S11: 7 | T11: - | U11: - | V11: - | W11: - | X11: - | Y11: - | Z11: - | AA11: - | AB11: - | AC11: - | AD11: - | AE11: - | AF11: - | AG11: - | AH11: - | AI11: - | AJ11: - | AK11: - | AL11: 112 | AM11: - | AN11: - | AO11: - | AP11: - | AQ11: - | AR11: - | AS11: 3 | AT11: - | AU11: -
B12: 生食用かき | D12: - | E12: - | F12: - | G12: - | H12: - | I12: - | J12: - | K12: - | L12: - | M12: - | N12: - | O12: - | P12: - | Q12: - | R12: - | S12: - | T12: - | U12: - | V12: - | W12: - | X12: - | Y12: - | Z12: - | AA12: - | AB12: - | AC12: - | AD12: - | AE12: - | AF12: - | AG12: - | AH12: - | AI12: - | AJ12: - | AK12: - | AL12: - | AM12: - | AN12: - | AO12: - | AP12: - | AQ12: - | AR12: - | AS12: - | AT12: - | AU12: -
B13: その他 | D13: 18 | E13: - | F13: 14 | G13: - | H13: 14 | I13: 14 | J13: - | K13: 14 | L13: - | M13: - | N13: - | O13: - | P13: - | Q13: 21 | R13: 29 | S13: 7 | T13: - | U13: - | V13: - | W13: - | X13: - | Y13: - | Z13: - | AA13: - | AB13: - | AC13: - | AD13: - | AE13: - | AF13: - | AG13: - | AH13: - | AI13: - | AJ13: - | AK13: - | AL13: 112 | AM13: - | AN13: - | AO13: - | AP13: - | AQ13: - | AR13: - | AS13: 3 | AT13: - | AU13: -
A14: 魚介類加工品 | D14: 9 | E14: - | F14: 3 | G14: - | H14: 3 | I14: 3 | J14: - | K14: 3 | L14: 3 | M14: - | N14: - | O14: - | P14: - | Q14: - | R14: - | S14: 6 | T14: - | U14: - | V14: - | W14: 3 | X14: 3 | Y14: - | Z14: - | AA14: - | AB14: - | AC14: - | AD14: 3 | AE14: - | AF14: - | AG14: - | AH14: - | AI14: - | AJ14: - | AK14: - | AL14: 12 | AM14: - | AN14: - | AO14: - | AP14: - | AQ14: - | AR14: - | AS14: - | AT14: - | AU14: -
B15: 魚卵製品 | D15: - | E15: - | F15: - | G15: - | H15: - | I15: - | J15: - | K15: - | L15: - | M15: - | N15: - | O15: - | P15: - | Q15: - | R15: - | S15: - | T15: - | U15: - | V15: - | W15: - | X15: - | Y15: - | Z15: - | AA15: - | AB15: - | AC15: - | AD15: - | AE15: - | AF15: - | AG15: - | AH15: - | AI15: - | AJ15: - | AK15: - | AL15: - | AM15: - | AN15: - | AO15: - | AP15: - | AQ15: - | AR15: - | AS15: - | AT15: - | AU15: -
B16: その他 | D16: 9 | E16: - | F16: 3 | G16: - | H16: 3 | I16: 3 | J16: - | K16: 3 | L16: 3 | M16: - | N16: - | O16: - | P16: - | Q16: - | R16: - | S16: 6 | T16: - | U16: - | V16: - | W16: 3 | X16: 3 | Y16: - | Z16: - | AA16: - | AB16: - | AC16: - | AD16: 3 | AE16: - | AF16: - | AG16: - | AH16: - | AI16: - | AJ16: - | AK16: - | AL16: 12 | AM16: - | AN16: - | AO16: - | AP16: - | AQ16: - | AR16: - | AS16: - | AT16: - | AU16: -
A17: 肉卵類･その加工品 | D17: 14 | E17: - | F17: 1 | G17: - | H17: - | I17: - | J17: 1 | K17: 1 | L17: - | M17: - | N17: - | O17: 1 | P17: - | Q17: 1 | R17: - | S17: 14 | T17: - | U17: - | V17: - | W17: 1 | X17: - | Y17: - | Z17: - | AA17: - | AB17: 1 | AC17: - | AD17: - | AE17: - | AF17: - | AG17: - | AH17: - | AI17: - | AJ17: - | AK17: - | AL17: 340 | AM17: - | AN17: - | AO17: - | AP17: - | AQ17: - | AR17: - | AS17: - | AT17: - | AU17: -
B18: 食肉 | D18: 13 | E18: - | F18: - | G18: - | H18: - | I18: - | J18: - | K18: - | L18: - | M18: - | N18: - | O18: - | P18: - | Q18: - | R18: - | S18: 13 | T18: - | U18: - | V18: - | W18: - | X18: - | Y18: - | Z18: - | AA18: - | AB18: - | AC18: - | AD18: - | AE18: - | AF18: - | AG18: - | AH18: - | AI18: - | AJ18: - | AK18: - | AL18: 340 | AM18: - | AN18: - | AO18: - | AP18: - | AQ18: - | AR18: - | AS18: - | AT18: - | AU18: -
B19: 食肉製品 | D19: 1 | E19: - | F19: 1 | G19: - | H19: - | I19: - | J19: 1 | K19: 1 | L19: - | M19: - | N19: - | O19: 1 | P19: - | Q19: 1 | R19: - | S19: 1 | T19: - | U19: - | V19: - | W19: 1 | X19: - | Y19: - | Z19: - | AA19: - | AB19: 1 | AC19: - | AD19: - | AE19: - | AF19: - | AG19: - | AH19: - | AI19: - | AJ19: - | AK19: - | AL19: - | AM19: - | AN19: - | AO19: - | AP19: - | AQ19: - | AR19: - | AS19: - | AT19: - | AU19: -
B20: その他 | D20: - | E20: - | F20: - | G20: - | H20: - | I20: - | J20: - | K20: - | L20: - | M20: - | N20: - | O20: - | P20: - | Q20: - | R20: - | S20: - | T20: - | U20: - | V20: - | W20: - | X20: - | Y20: - | Z20: - | AA20: - | AB20: - | AC20: - | AD20: - | AE20: - | AF20: - | AG20: - | AH20: - | AI20: - | AJ20: - | AK20: - | AL20: - | AM20: - | AN20: - | AO20: - | AP20: - | AQ20: - | AR20: - | AS20: - | AT20: - | AU20: -
A21: 穀類・その加工品 | D21: 4 | E21: - | F21: - | G21: - | H21: - | I21: - | J21: - | K21: - | L21: - | M21: - | N21: - | O21: - | P21: - | Q21: - | R21: - | S21: 4 | T21: - | U21: - | V21: - | W21: - | X21: - | Y21: - | Z21: - | AA21: - | AB21: - | AC21: - | AD21: - | AE21: - | AF21: - | AG21: - | AH21: - | AI21: - | AJ21: - | AK21: - | AL21: - | AM21: - | AN21: - | AO21: - | AP21: 8 | AQ21: - | AR21: - | AS21: - | AT21: - | AU21: -
B22: とうもろこし | D22: - | E22: - | F22: - | G22: - | H22: - | I22: - | J22: - | K22: - | L22: - | M22: - | N22: - | O22: - | P22: - | Q22: - | R22: - | S22: - | T22: - | U22: - | V22: - | W22: - | X22: - | Y22: - | Z22: - | AA22: - | AB22: - | AC22: - | AD22: - | AE22: - | AF22: - | AG22: - | AH22: - | AI22: - | AJ22: - | AK22: - | AL22: - | AM22: - | AN22: - | AO22: - | AP22: - | AQ22: - | AR22: - | AS22: - | AT22: - | AU22: -
B23: 大豆 | D23: - | E23: - | F23: - | G23: - | H23: - | I23: - | J23: - | K23: - | L23: - | M23: - | N23: - | O23: - | P23: - | Q23: - | R23: - | S23: - | T23: - | U23: - | V23: - | W23: - | X23: - | Y23: - | Z23: - | AA23: - | AB23: - | AC23: - | AD23: - | AE23: - | AF23: - | AG23: - | AH23: - | AI23: - | AJ23: - | AK23: - | AL23: - | AM23: - | AN23: - | AO23: - | AP23: - | AQ23: - | AR23: - | AS23: - | AT23: - | AU23: -
B24: めん類 | D24: - | E24: - | F24: - | G24: - | H24: - | I24: - | J24: - | K24: - | L24: - | M24: - | N24: - | O24: - | P24: - | Q24: - | R24: - | S24: - | T24: - | U24: - | V24: - | W24: - | X24: - | Y24: - | Z24: - | AA24: - | AB24: - | AC24: - | AD24: - | AE24: - | AF24: - | AG24: - | AH24: - | AI24: - | AJ24: - | AK24: - | AL24: - | AM24: - | AN24: - | AO24: - | AP24: - | AQ24: - | AR24: - | AS24: - | AT24: - | AU24: -
B25: その他 | D25: 4 | E25: - | F25: - | G25: - | H25: - | I25: - | J25: - | K25: - | L25: - | M25: - | N25: - | O25: - | P25: - | Q25: - | R25: - | S25: 4 | T25: - | U25: - | V25: - | W25: - | X25: - | Y25: - | Z25: - | AA25: - | AB25: - | AC25: - | AD25: - | AE25: - | AF25: - | AG25: - | AH25: - | AI25: - | AJ25: - | AK25: - | AL25: - | AM25: - | AN25: - | AO25: - | AP25: 8 | AQ25: - | AR25: - | AS25: - | AT25: - | AU25: -
A26: 野菜・果物・その加工品 | D26: 39 | E26: - | F26: - | G26: - | H26: - | I26: - | J26: - | K26: - | L26: - | M26: - | N26: - | O26: - | P26: - | Q26: - | R26: - | S26: 39 | T26: - | U26: - | V26: - | W26: 9 | X26: 3 | Y26: - | Z26: - | AA26: - | AB26: - | AC26: 6 | AD26: - | AE26: - | AF26: 34 | AG26: - | AH26: - | AI26: 3 | AJ26: 3 | AK26: - | AL26: - | AM26: 3767 | AN26: - | AO26: - | AP26: - | AQ26: - | AR26: - | AS26: - | AT26: - | AU26: -
B27: 生鮮野菜・果実等 | D27: 28 | E27: - | F27: - | G27: - | H27: - | I27: - | J27: - | K27: - | L27: - | M27: - | N27: - | O27: - | P27: - | Q27: - | R27: - | S27: 28 | T27: - | U27: - | V27: - | W27: - | X27: - | Y27: - | Z27: - | AA27: - | AB27: - | AC27: - | AD27: - | AE27: - | AF27: 34 | AG27: - | AH27: - | AI27: - | AJ27: - | AK27: - | AL27: - | AM27: 3499 | AN27: - | AO27: - | AP27: - | AQ27: - | AR27: - | AS27: - | AT27: - | AU27: -
B28: 乾燥果実 | D28: - | E28: - | F28: - | G28: - | H28: - | I28: - | J28: - | K28: - | L28: - | M28: - | N28: - | O28: - | P28: - | Q28: - | R28: - | S28: - | T28: - | U28: - | V28: - | W28: - | X28: - | Y28: - | Z28: - | AA28: - | AB28: - | AC28: - | AD28: - | AE28: - | AF28: - | AG28: - | AH28: - | AI28: - | AJ28: - | AK28: - | AL28: - | AM28: - | AN28: - | AO28: - | AP28: - | AQ28: - | AR28: - | AS28: - | AT28: - | AU28: -
B29: ジャム | D29: - | E29: - | F29: - | G29: - | H29: - | I29: - | J29: - | K29: - | L29: - | M29: - | N29: - | O29: - | P29: - | Q29: - | R29: - | S29: - | T29: - | U29: - | V29: - | W29: - | X29: - | Y29: - | Z29: - | AA29: - | AB29: - | AC29: - | AD29: - | AE29: - | AF29: - | AG29: - | AH29: - | AI29: - | AJ29: - | AK29: - | AL29: - | AM29: - | AN29: - | AO29: - | AP29: - | AQ29: - | AR29: - | AS29: - | AT29: - | AU29: -
B30: 缶詰 | D30: - | E30: - | F30: - | G30: - | H30: - | I30: - | J30: - | K30: - | L30: - | M30: - | N30: - | O30: - | P30: - | Q30: - | R30: - | S30: - | T30: - | U30: - | V30: - | W30: - | X30: - | Y30: - | Z30: - | AA30: - | AB30: - | AC30: - | AD30: - | AE30: - | AF30: - | AG30: - | AH30: - | AI30: - | AJ30: - | AK30: - | AL30: - | AM30: - | AN30: - | AO30: - | AP30: - | AQ30: - | AR30: - | AS30: - | AT30: - | AU30: -
B31: その他 | D31: 11 | E31: - | F31: - | G31: - | H31: - | I31: - | J31: - | K31: - | L31: - | M31: - | N31: - | O31: - | P31: - | Q31: - | R31: - | S31: 11 | T31: - | U31: - | V31: - | W31: 9 | X31: 3 | Y31: - | Z31: - | AA31: - | AB31: - | AC31: 6 | AD31: - | AE31: - | AF31: - | AG31: - | AH31: - | AI31: 3 | AJ31: 3 | AK31: - | AL31: - | AM31: 268 | AN31: - | AO31: - | AP31: - | AQ31: - | AR31: - | AS31: - | AT31: - | AU31: -
A32: 冷凍食品 | D32: 9 | E32: - | F32: 9 | G32: - | H32: 9 | I32: 6 | J32: 5 | K32: 7 | L32: - | M32: - | N32: - | O32: - | P32: - | Q32: 21 | R32: 25 | S32: 6 | T32: - | U32: - | V32: - | W32: - | X32: - | Y32: - | Z32: - | AA32: - | AB32: - | AC32: 4 | AD32: - | AE32: - | AF32: - | AG32: - | AH32: - | AI32: - | AJ32: - | AK32: - | AL32: - | AM32: 298 | AN32: - | AO32: - | AP32: - | AQ32: - | AR32: - | AS32: - | AT32: - | AU32: -
B33: 生食用鮮魚介類 | D33: 4 | E33: - | F33: 4 | G33: - | H33: 4 | I33: 4 | J33: 2 | K33: 4 | L33: - | M33: - | N33: - | O33: - | P33: - | Q33: 12 | R33: 16 | S33: 2 | T33: - | U33: - | V33: - | W33: - | X33: - | Y33: - | Z33: - | AA33: - | AB33: - | AC33: 2 | AD33: - | AE33: - | AF33: - | AG33: - | AH33: - | AI33: - | AJ33: - | AK33: - | AL33: - | AM33: - | AN33: - | AO33: - | AP33: - | AQ33: - | AR33: - | AS33: - | AT33: - | AU33: -
B34: その他 | D34: 5 | E34: - | F34: 5 | G34: - | H34: 5 | I34: 2 | J34: 3 | K34: 3 | L34: - | M34: - | N34: - | O34: - | P34: - | Q34: 9 | R34: 9 | S34: 4 | T34: - | U34: - | V34: - | W34: - | X34: - | Y34: - | Z34: - | AA34: - | AB34: - | AC34: 2 | AD34: - | AE34: - | AF34: - | AG34: - | AH34: - | AI34: - | AJ34: - | AK34: - | AL34: - | AM34: 298 | AN34: - | AO34: - | AP34: - | AQ34: - | AR34: - | AS34: - | AT34: - | AU34: -
A35: 菓子類 | D35: 26 | E35: - | F35: - | G35: - | H35: - | I35: - | J35: - | K35: - | L35: - | M35: - | N35: - | O35: - | P35: - | Q35: - | R35: - | S35: 26 | T35: - | U35: - | V35: - | W35: 26 | X35: 26 | Y35: - | Z35: - | AA35: - | AB35: - | AC35: - | AD35: - | AE35: 312 | AF35: - | AG35: - | AH35: - | AI35: 156 | AJ35: - | AK35: - | AL35: - | AM35: - | AN35: - | AO35: - | AP35: - | AQ35: - | AR35: - | AS35: - | AT35: - | AU35: -
A36: 清涼飲料水・酒精飲料 | D36: 7 | E36: - | F36: 1 | G36: - | H36: - | I36: 1 | J36: - | K36: - | L36: - | M36: - | N36: - | O36: - | P36: - | Q36: - | R36: 2 | S36: 7 | T36: - | U36: - | V36: - | W36: 6 | X36: - | Y36: - | Z36: - | AA36: - | AB36: - | AC36: 3 | AD36: - | AE36: 36 | AF36: - | AG36: - | AH36: - | AI36: 9 | AJ36: - | AK36: 2 | AL36: - | AM36: - | AN36: 1 | AO36: - | AP36: - | AQ36: - | AR36: 3 | AS36: - | AT36: - | AU36: 14
A37: 調味料・香料 | D37: 3 | E37: - | F37: - | G37: - | H37: - | I37: - | J37: - | K37: - | L37: - | M37: - | N37: - | O37: - | P37: - | Q37: - | R37: - | S37: 3 | T37: - | U37: - | V37: - | W37: 3 | X37: 3 | Y37: - | Z37: - | AA37: - | AB37: - | AC37: - | AD37: - | AE37: - | AF37: - | AG37: - | AH37: - | AI37: 6 | AJ37: - | AK37: - | AL37: - | AM37: - | AN37: - | AO37: - | AP37: - | AQ37: - | AR37: - | AS37: - | AT37: - | AU37: -
A38: その他の食品 | D38: 4 | E38: - | F38: 3 | G38: - | H38: 3 | I38: 3 | J38: 3 | K38: 3 | L38: 3 | M38: - | N38: - | O38: - | P38: - | Q38: - | R38: - | S38: 1 | T38: - | U38: - | V38: - | W38: - | X38: - | Y38: - | Z38: - | AA38: - | AB38: - | AC38: - | AD38: - | AE38: - | AF38: - | AG38: - | AH38: - | AI38: 1 | AJ38: - | AK38: - | AL38: - | AM38: - | AN38: - | AO38: - | AP38: - | AQ38: - | AR38: - | AS38: - | AT38: - | AU38: -
A39: おもちゃ | D39: - | E39: - | F39: - | G39: - | H39: - | I39: - | J39: - | K39: - | L39: - | M39: - | N39: - | O39: - | P39: - | Q39: - | R39: - | S39: - | T39: - | U39: - | V39: - | W39: - | X39: - | Y39: - | Z39: - | AA39: - | AB39: - | AC39: - | AD39: - | AE39: - | AF39: - | AG39: - | AH39: - | AI39: - | AJ39: - | AK39: - | AL39: - | AM39: - | AN39: - | AO39: - | AP39: - | AQ39: - | AR39: - | AS39: - | AT39: - | AU39: -
A40: 器具・容器包装 | D40: - | E40: - | F40: - | G40: - | H40: - | I40: - | J40: - | K40: - | L40: - | M40: - | N40: - | O40: - | P40: - | Q40: - | R40: - | S40: - | T40: - | U40: - | V40: - | W40: - | X40: - | Y40: - | Z40: - | AA40: - | AB40: - | AC40: - | AD40: - | AE40: - | AF40: - | AG40: - | AH40: - | AI40: - | AJ40: - | AK40: - | AL40: - | AM40: - | AN40: - | AO40: - | AP40: - | AQ40: - | AR40: - | AS40: - | AT40: - | AU40: -
A41: ※ 本表の違反検体数は、法に違反するもの（表示基準違反を除く。）を計上している。 | AU41: 資料 保健所食の安全推進課
A42: ※ 検査項目別の違反件数は、（ ）内に計上している。

Sheet 13 乳等の収去試験検査
B1: 13 乳等の収去試験検査結果
AF2: 令和6年度
B3: 区 分 | D3: 収去検体数（実数） | E3: 違反検体数（実数） | F3: 微生物学的検査 | M3: 理化学的検査
F4: 検査検体数（実数） | G4: 違反検体数（実数） | H4: 検査項目（延数） | M4: 検査検体数（実数） | N4: 違反検体数（実数） | O4: 検査項目（延数）
H5: 細菌数 | I5: 大腸菌群 | J5: 乳酸菌数 | K5: リステリア菌 | L5: その他細菌 | O5: 規 格 試 験 | X5: 添加物検査 | AC5: その他 | AF5: その他
O6: 乳固形分 | P6: 無脂乳固形分 | Q6: 乳脂肪分 | R6: 糖分 | S6: 水分 | T6: 比重 | U6: 酸度 | V6: アルコール試験 | W6: 抗菌性物質 | X6: ＢＨＡ | Y6: ＢＨＴ | Z6: ソルビン酸 | AA6: デヒドロ酢酸 | AB6: プロピオン酸 | AC6: 重金属 | AD6: 残留農薬 | AE6: 放射能
B7: 総数 | D7: 40 | E7: - | F7: 38 | G7: - | H7: 21 | I7: 34 | J7: 10 | K7: 4 | L7: 15 | M7: 33 | N7: - | O7: 2 | P7: 22 | Q7: 14 | R7: - | S7: 3 | T7: 9 | U7: 12 | V7: - | W7: 3 | X7: - | Y7: - | Z7: - | AA7: - | AB7: - | AC7: - | AD7: - | AE7: - | AF7: 50
B8: 生乳 | D8: - | E8: - | F8: - | G8: - | H8: - | I8: - | J8: - | K8: - | L8: - | M8: - | N8: - | O8: - | P8: - | Q8: - | R8: - | S8: - | T8: - | U8: - | V8: - | W8: - | X8: - | Y8: - | Z8: - | AA8: - | AB8: - | AC8: - | AD8: - | AE8: - | AF8: -
B9: 牛乳 | D9: 5 | E9: - | F9: 5 | G9: - | H9: 5 | I9: 5 | J9: - | K9: - | L9: 7 | M9: 5 | N9: - | O9: - | P9: 5 | Q9: 5 | R9: - | S9: - | T9: 5 | U9: 5 | V9: - | W9: 2 | X9: - | Y9: - | Z9: - | AA9: - | AB9: - | AC9: - | AD9: - | AE9: - | AF9: -
B10: 成分調整牛乳 | D10: 3 | E10: - | F10: 3 | G10: - | H10: 3 | I10: 3 | J10: - | K10: - | L10: 4 | M10: 3 | N10: - | O10: - | P10: 3 | Q10: - | R10: - | S10: - | T10: - | U10: 3 | V10: - | W10: 1 | X10: - | Y10: - | Z10: - | AA10: - | AB10: - | AC10: - | AD10: - | AE10: - | AF10: -
B11: 低脂肪牛乳 | D11: 4 | E11: - | F11: 4 | G11: - | H11: 4 | I11: 4 | J11: - | K11: - | L11: 4 | M11: 4 | N11: - | O11: - | P11: 4 | Q11: 4 | R11: - | S11: - | T11: 4 | U11: 4 | V11: - | W11: - | X11: - | Y11: - | Z11: - | AA11: - | AB11: - | AC11: - | AD11: - | AE11: - | AF11: -
B12: 無脂肪牛乳 | D12: - | E12: - | F12: - | G12: - | H12: - | I12: - | J12: - | K12: - | L12: - | M12: - | N12: - | O12: - | P12: - | Q12: - | R12: - | S12: - | T12: - | U12: - | V12: - | W12: - | X12: - | Y12: - | Z12: - | AA12: - | AB12: - | AC12: - | AD12: - | AE12: - | AF12: -
B13: 加工乳 | D13: - | E13: - | F13: - | G13: - | H13: - | I13: - | J13: - | K13: - | L13: - | M13: - | N13: - | O13: - | P13: - | Q13: - | R13: - | S13: - | T13: - | U13: - | V13: - | W13: - | X13: - | Y13: - | Z13: - | AA13: - | AB13: - | AC13: - | AD13: - | AE13: - | AF13: -
B14: その他の乳 | D14: - | E14: - | F14: - | G14: - | H14: - | I14: - | J14: - | K14: - | L14: - | M14: - | N14: - | O14: - | P14: - | Q14: - | R14: - | S14: - | T14: - | U14: - | V14: - | W14: - | X14: - | Y14: - | Z14: - | AA14: - | AB14: - | AC14: - | AD14: - | AE14: - | AF14: -
B15: クリーム | D15: - | E15: - | F15: - | G15: - | H15: - | I15: - | J15: - | K15: - | L15: - | M15: - | N15: - | O15: - | P15: - | Q15: - | R15: - | S15: - | T15: - | U15: - | V15: - | W15: - | X15: - | Y15: - | Z15: - | AA15: - | AB15: - | AC15: - | AD15: - | AE15: - | AF15: -
B16: バター | D16: 3 | E16: - | F16: 3 | G16: - | H16: - | I16: 3 | J16: - | K16: - | L16: - | M16: 3 | N16: - | O16: - | P16: - | Q16: 3 | R16: - | S16: 3 | T16: - | U16: - | V16: - | W16: - | X16: - | Y16: - | Z16: - | AA16: - | AB16: - | AC16: - | AD16: - | AE16: - | AF16: -
B17: ナチュラルチーズ | D17: 6 | E17: - | F17: 4 | G17: - | H17: - | I17: - | J17: - | K17: 4 | L17: - | M17: 2 | N17: - | O17: - | P17: - | Q17: - | R17: - | S17: - | T17: - | U17: - | V17: - | W17: - | X17: - | Y17: - | Z17: - | AA17: - | AB17: - | AC17: - | AD17: - | AE17: - | AF17: 2
B18: プロセスチーズ | D18: - | E18: - | F18: - | G18: - | H18: - | I18: - | J18: - | K18: - | L18: - | M18: - | N18: - | O18: - | P18: - | Q18: - | R18: - | S18: - | T18: - | U18: - | V18: - | W18: - | X18: - | Y18: - | Z18: - | AA18: - | AB18: - | AC18: - | AD18: - | AE18: - | AF18: -
B19: アイスクリーム | D19: 1 | E19: - | F19: 1 | G19: - | H19: 1 | I19: 1 | J19: - | K19: - | L19: - | M19: 1 | N19: - | O19: 1 | P19: - | Q19: 1 | R19: - | S19: - | T19: - | U19: - | V19: - | W19: - | X19: - | Y19: - | Z19: - | AA19: - | AB19: - | AC19: - | AD19: - | AE19: - | AF19: -
B20: アイスミルク | D20: 1 | E20: - | F20: 1 | G20: - | H20: 1 | I20: 1 | J20: - | K20: - | L20: - | M20: 1 | N20: - | O20: 1 | P20: - | Q20: 1 | R20: - | S20: - | T20: - | U20: - | V20: - | W20: - | X20: - | Y20: - | Z20: - | AA20: - | AB20: - | AC20: - | AD20: - | AE20: - | AF20: -
B21: ラクトアイス | D21: - | E21: - | F21: - | G21: - | H21: - | I21: - | J21: - | K21: - | L21: - | M21: - | N21: - | O21: - | P21: - | Q21: - | R21: - | S21: - | T21: - | U21: - | V21: - | W21: - | X21: - | Y21: - | Z21: - | AA21: - | AB21: - | AC21: - | AD21: - | AE21: - | AF21: -
B22: 氷菓 | D22: 4 | E22: - | F22: 4 | G22: - | H22: 4 | I22: 4 | J22: - | K22: - | L22: - | M22: 4 | N22: - | O22: - | P22: - | Q22: - | R22: - | S22: - | T22: - | U22: - | V22: - | W22: - | X22: - | Y22: - | Z22: - | AA22: - | AB22: - | AC22: - | AD22: - | AE22: - | AF22: 48
B23: 全粉乳 | D23: - | E23: - | F23: - | G23: - | H23: - | I23: - | J23: - | K23: - | L23: - | M23: - | N23: - | O23: - | P23: - | Q23: - | R23: - | S23: - | T23: - | U23: - | V23: - | W23: - | X23: - | Y23: - | Z23: - | AA23: - | AB23: - | AC23: - | AD23: - | AE23: - | AF23: -
B24: 脱脂粉乳 | D24: - | E24: - | F24: - | G24: - | H24: - | I24: - | J24: - | K24: - | L24: - | M24: - | N24: - | O24: - | P24: - | Q24: - | R24: - | S24: - | T24: - | U24: - | V24: - | W24: - | X24: - | Y24: - | Z24: - | AA24: - | AB24: - | AC24: - | AD24: - | AE24: - | AF24: -
B25: 発酵乳 | D25: 9 | E25: - | F25: 9 | G25: - | H25: - | I25: 9 | J25: 9 | K25: - | L25: - | M25: 9 | N25: - | O25: - | P25: 9 | Q25: - | R25: - | S25: - | T25: - | U25: - | V25: - | W25: - | X25: - | Y25: - | Z25: - | AA25: - | AB25: - | AC25: - | AD25: - | AE25: - | AF25: -
B26: 乳酸菌飲料 | D26: - | E26: - | F26: - | G26: - | H26: - | I26: - | J26: - | K26: - | L26: - | M26: - | N26: - | O26: - | P26: - | Q26: - | R26: - | S26: - | T26: - | U26: - | V26: - | W26: - | X26: - | Y26: - | Z26: - | AA26: - | AB26: - | AC26: - | AD26: - | AE26: - | AF26: -
B27: 乳飲料 | D27: 3 | E27: - | F27: 3 | G27: - | H27: 3 | I27: 3 | J27: - | K27: - | L27: - | M27: - | N27: - | O27: - | P27: - | Q27: - | R27: - | S27: - | T27: - | U27: - | V27: - | W27: - | X27: - | Y27: - | Z27: - | AA27: - | AB27: - | AC27: - | AD27: - | AE27: - | AF27: -
B28: その他の乳製品 | D28: - | E28: - | F28: - | G28: - | H28: - | I28: - | J28: - | K28: - | L28: - | M28: - | N28: - | O28: - | P28: - | Q28: - | R28: - | S28: - | T28: - | U28: - | V28: - | W28: - | X28: - | Y28: - | Z28: - | AA28: - | AB28: - | AC28: - | AD28: - | AE28: - | AF28: -
B29: 乳等を主原料とする食品 | D29: 1 | E29: - | F29: 1 | G29: - | H29: - | I29: 1 | J29: 1 | K29: - | L29: - | M29: 1 | N29: - | O29: - | P29: 1 | Q29: - | R29: - | S29: - | T29: - | U29: - | V29: - | W29: - | X29: - | Y29: - | Z29: - | AA29: - | AB29: - | AC29: - | AD29: - | AE29: - | AF29: -
A30: ※ 本表の違反検体数は、法に違反するもの（表示基準違反を除く。）を計上している。 | B30: ※ 本表の違反検体数は、法に違反するもの（表示基準違反を除く。）を計上している。
A31: ※ 抗菌性物質には、合成抗菌剤・抗生物質・内寄生虫用剤等動物医薬品を含めて計上している。 | B31: ※ 抗菌性物質には、合成抗菌剤・抗生物質・内寄生虫用剤等動物医薬品を含めて計上している。
A32: ※ 検査項目別の違反件数は、（ ）内に計上している。 | B32: ※ 検査項目別の違反件数は、（ ）内に計上している。
AF33: 資料 保健所食の安全推進課

Sheet 14 収去試験以外の食品検査
A1: 14 収去試験以外の食品等の検査状況
AE2: 令和6年度
A3: 区 分 | D3: 検査検体数（実数） | E3: 微生物検査 | V3: 理化学検査
E4: 検査検体数（実数） | F4: 検査項目（延数） | V4: 検査検体数（実数）
F5: 細菌数 | G5: 大腸菌群 | H5: Ｅ.ｃｏｌｉ | I5: 腸炎ビブリオ | J5: 黄色ブドウ球菌 | K5: サルモネラ属菌 | L5: セレウス菌 | M5: ウエルシュ菌 | N5: 腸管出血性大腸菌 | O5: カンピロバクター | P5: ナグ・ビブリオ | Q5: ビブリオフルビアリス | R5: エルシニア | S5: ノロウイルス | T5: クドア・ セプテンプンクタータ | U5: その他 | W5: 添加物 | X5: 重金属 | Y5: 残留農薬 | Z5: 酸価・過酸化物価 | AA5: ｐＨ | AB5: 酸度 | AC5: ヒスタミン | AD5: 鮮度試験 | AE5: その他
A6: 総 数 | D6: 637 | E6: 592 | F6: 68 | G6: 373 | H6: - | I6: 268 | J6: 454 | K6: 270 | L6: 234 | M6: 234 | N6: 66 | O6: 468 | P6: - | Q6: - | R6: - | S6: - | T6: - | U6: 558 | V6: 66 | W6: 77 | X6: - | Y6: - | Z6: - | AA6: 3 | AB6: - | AC6: 17 | AD6: - | AE6: 21
A7: 魚介類 | D7: 16 | E7: - | F7: - | G7: - | H7: - | I7: - | J7: - | K7: - | L7: - | M7: - | N7: - | O7: - | P7: - | Q7: - | R7: - | S7: - | T7: - | U7: - | V7: 16 | W7: - | X7: - | Y7: - | Z7: - | AA7: - | AB7: - | AC7: 16 | AD7: - | AE7: -
A8: 魚介類加工品*１ | D8: 37 | E8: 37 | F8: 26 | G8: 26 | H8: - | I8: - | J8: 26 | K8: 36 | L8: - | M8: - | N8: 66 | O8: - | P8: - | Q8: - | R8: - | S8: - | T8: - | U8: - | V8: - | W8: - | X8: - | Y8: - | Z8: - | AA8: - | AB8: - | AC8: - | AD8: - | AE8: -
A9: 冷凍食品 | D9: - | E9: - | F9: - | G9: - | H9: - | I9: - | J9: - | K9: - | L9: - | M9: - | N9: - | O9: - | P9: - | Q9: - | R9: - | S9: - | T9: - | U9: - | V9: - | W9: - | X9: - | Y9: - | Z9: - | AA9: - | AB9: - | AC9: - | AD9: - | AE9: -
A10: 肉卵類及びその加工品 *1 | D10: 10 | E10: 2 | F10: - | G10: 2 | H10: - | I10: - | J10: - | K10: - | L10: - | M10: - | N10: - | O10: - | P10: - | Q10: - | R10: - | S10: - | T10: - | U10: - | V10: 8 | W10: 24 | X10: - | Y10: - | Z10: - | AA10: - | AB10: - | AC10: - | AD10: - | AE10: -
A11: 乳及び乳製品 | D11: - | E11: - | F11: - | G11: - | H11: - | I11: - | J11: - | K11: - | L11: - | M11: - | N11: - | O11: - | P11: - | Q11: - | R11: - | S11: - | T11: - | U11: - | V11: - | W11: - | X11: - | Y11: - | Z11: - | AA11: - | AB11: - | AC11: - | AD11: - | AE11: -
A12: 乳類加工品*2 | D12: - | E12: - | F12: - | G12: - | H12: - | I12: - | J12: - | K12: - | L12: - | M12: - | N12: - | O12: - | P12: - | Q12: - | R12: - | S12: - | T12: - | U12: - | V12: - | W12: - | X12: - | Y12: - | Z12: - | AA12: - | AB12: - | AC12: - | AD12: - | AE12: -
A13: アイスクリーム類・氷菓 | D13: 3 | E13: 3 | F13: 3 | G13: - | H13: - | I13: - | J13: - | K13: - | L13: - | M13: - | N13: - | O13: - | P13: - | Q13: - | R13: - | S13: - | T13: - | U13: - | V13: - | W13: - | X13: - | Y13: - | Z13: - | AA13: - | AB13: - | AC13: - | AD13: - | AE13: -
A14: 穀類及びその加工品 *1 | D14: - | E14: - | F14: - | G14: - | H14: - | I14: - | J14: - | K14: - | L14: - | M14: - | N14: - | O14: - | P14: - | Q14: - | R14: - | S14: - | T14: - | U14: - | V14: - | W14: - | X14: - | Y14: - | Z14: - | AA14: - | AB14: - | AC14: - | AD14: - | AE14: -
A15: 野菜類・果物及びその加工品 *1 | D15: 20 | E15: - | F15: - | G15: - | H15: - | I15: - | J15: - | K15: - | L15: - | M15: - | N15: - | O15: - | P15: - | Q15: - | R15: - | S15: - | T15: - | U15: - | V15: 20 | W15: 53 | X15: - | Y15: - | Z15: - | AA15: - | AB15: - | AC15: - | AD15: - | AE15: -
A16: 菓子類 | D16: - | E16: - | F16: - | G16: - | H16: - | I16: - | J16: - | K16: - | L16: - | M16: - | N16: - | O16: - | P16: - | Q16: - | R16: - | S16: - | T16: - | U16: - | V16: - | W16: - | X16: - | Y16: - | Z16: - | AA16: - | AB16: - | AC16: - | AD16: - | AE16: -
A17: 清涼飲料水 | D17: - | E17: - | F17: - | G17: - | H17: - | I17: - | J17: - | K17: - | L17: - | M17: - | N17: - | O17: - | P17: - | Q17: - | R17: - | S17: - | T17: - | U17: - | V17: - | W17: - | X17: - | Y17: - | Z17: - | AA17: - | AB17: - | AC17: - | AD17: - | AE17: -
A18: 酒精飲料 | D18: - | E18: - | F18: - | G18: - | H18: - | I18: - | J18: - | K18: - | L18: - | M18: - | N18: - | O18: - | P18: - | Q18: - | R18: - | S18: - | T18: - | U18: - | V18: - | W18: - | X18: - | Y18: - | Z18: - | AA18: - | AB18: - | AC18: - | AD18: - | AE18: -
A19: 氷雪 | D19: 1 | E19: 1 | F19: - | G19: 1 | H19: - | I19: - | J19: - | K19: - | L19: - | M19: - | N19: - | O19: - | P19: - | Q19: - | R19: - | S19: - | T19: - | U19: - | V19: - | W19: - | X19: - | Y19: - | Z19: - | AA19: - | AB19: - | AC19: - | AD19: - | AE19: -
A20: 水 | D20: 19 | E20: 19 | F20: 1 | G20: 1 | H20: - | I20: 18 | J20: - | K20: - | L20: - | M20: - | N20: - | O20: - | P20: - | Q20: - | R20: - | S20: - | T20: - | U20: - | V20: 19 | W20: - | X20: - | Y20: - | Z20: - | AA20: 1 | AB20: - | AC20: - | AD20: - | AE20: 19
A21: かん詰・びん詰食品 | D21: - | E21: - | F21: - | G21: - | H21: - | I21: - | J21: - | K21: - | L21: - | M21: - | N21: - | O21: - | P21: - | Q21: - | R21: - | S21: - | T21: - | U21: - | V21: - | W21: - | X21: - | Y21: - | Z21: - | AA21: - | AB21: - | AC21: - | AD21: - | AE21: -
A22: その他の食品 | D22: 47 | E22: 46 | F22: 38 | G22: 2 | H22: - | I22: - | J22: 8 | K22: - | L22: - | M22: - | N22: - | O22: - | P22: - | Q22: - | R22: - | S22: - | T22: - | U22: - | V22: 3 | W22: - | X22: - | Y22: - | Z22: - | AA22: 2 | AB22: - | AC22: 1 | AD22: - | AE22: 2
B23: そうざい類 | D23: 3 | E23: 2 | F23: - | G23: - | H23: - | I23: - | J23: 2 | K23: - | L23: - | M23: - | N23: - | O23: - | P23: - | Q23: - | R23: - | S23: - | T23: - | U23: - | V23: 1 | W23: - | X23: - | Y23: - | Z23: - | AA23: - | AB23: - | AC23: 1 | AD23: - | AE23: -
B24: 弁当類 | D24: - | E24: - | F24: - | G24: - | H24: - | I24: - | J24: - | K24: - | L24: - | M24: - | N24: - | O24: - | P24: - | Q24: - | R24: - | S24: - | T24: - | U24: - | V24: - | W24: - | X24: - | Y24: - | Z24: - | AA24: - | AB24: - | AC24: - | AD24: - | AE24: -
B25: その他 | D25: 44 | E25: 44 | F25: 38 | G25: 2 | H25: - | I25: - | J25: 6 | K25: - | L25: - | M25: - | N25: - | O25: - | P25: - | Q25: - | R25: - | S25: - | T25: - | U25: - | V25: 2 | W25: - | X25: - | Y25: - | Z25: - | AA25: 2 | AB25: - | AC25: - | AD25: - | AE25: 2
A26: 添加物 | D26: - | E26: - | F26: - | G26: - | H26: - | I26: - | J26: - | K26: - | L26: - | M26: - | N26: - | O26: - | P26: - | Q26: - | R26: - | S26: - | T26: - | U26: - | V26: - | W26: - | X26: - | Y26: - | Z26: - | AA26: - | AB26: - | AC26: - | AD26: - | AE26: -
A27: 器具・容器包装 | D27: 60 | E27: 60 | F27: - | G27: 120 | H27: - | I27: - | J27: 60 | K27: - | L27: - | M27: - | N27: - | O27: - | P27: - | Q27: - | R27: - | S27: - | T27: - | U27: - | V27: - | W27: - | X27: - | Y27: - | Z27: - | AA27: - | AB27: - | AC27: - | AD27: - | AE27: -
A28: おもちゃ | D28: - | E28: - | F28: - | G28: - | H28: - | I28: - | J28: - | K28: - | L28: - | M28: - | N28: - | O28: - | P28: - | Q28: - | R28: - | S28: - | T28: - | U28: - | V28: - | W28: - | X28: - | Y28: - | Z28: - | AA28: - | AB28: - | AC28: - | AD28: - | AE28: -
A29: 便 | D29: 242 | E29: 242 | F29: - | G29: - | H29: - | I29: 234 | J29: 234 | K29: 234 | L29: 234 | M29: 234 | N29: - | O29: 468 | P29: - | Q29: - | R29: - | S29: - | T29: - | U29: 468 | V29: - | W29: - | X29: - | Y29: - | Z29: - | AA29: - | AB29: - | AC29: - | AD29: - | AE29: -
A30: 吐物 | D30: - | E30: - | F30: - | G30: - | H30: - | I30: - | J30: - | K30: - | L30: - | M30: - | N30: - | O30: - | P30: - | Q30: - | R30: - | S30: - | T30: - | U30: - | V30: - | W30: - | X30: - | Y30: - | Z30: - | AA30: - | AB30: - | AC30: - | AD30: - | AE30: -
A31: 菌株 | D31: - | E31: - | F31: - | G31: - | H31: - | I31: - | J31: - | K31: - | L31: - | M31: - | N31: - | O31: - | P31: - | Q31: - | R31: - | S31: - | T31: - | U31: - | V31: - | W31: - | X31: - | Y31: - | Z31: - | AA31: - | AB31: - | AC31: - | AD31: - | AE31: -
A32: ふきとり検査 | D32: 182 | E32: 182 | F32: - | G32: 221 | H32: - | I32: 16 | J32: 126 | K32: - | L32: - | M32: - | N32: - | O32: - | P32: - | Q32: - | R32: - | S32: - | T32: - | U32: 90 | V32: - | W32: - | X32: - | Y32: - | Z32: - | AA32: - | AB32: - | AC32: - | AD32: - | AE32: -
B33: 手指 | D33: 11 | E33: 11 | F33: - | G33: 6 | H33: - | I33: - | J33: 5 | K33: - | L33: - | M33: - | N33: - | O33: - | P33: - | Q33: - | R33: - | S33: - | T33: - | U33: 11 | V33: - | W33: - | X33: - | Y33: - | Z33: - | AA33: - | AB33: - | AC33: - | AD33: - | AE33: -
B34: 器具類等 | D34: 78 | E34: 78 | F34: - | G34: 64 | H34: - | I34: - | J34: 53 | K34: - | L34: - | M34: - | N34: - | O34: - | P34: - | Q34: - | R34: - | S34: - | T34: - | U34: 76 | V34: - | W34: - | X34: - | Y34: - | Z34: - | AA34: - | AB34: - | AC34: - | AD34: - | AE34: -
B35: その他 | D35: 93 | E35: 93 | F35: - | G35: 151 | H35: - | I35: 16 | J35: 68 | K35: - | L35: - | M35: - | N35: - | O35: - | P35: - | Q35: - | R35: - | S35: - | T35: - | U35: 3 | V35: - | W35: - | X35: - | Y35: - | Z35: - | AA35: - | AB35: - | AC35: - | AD35: - | AE35: -
A36: *1 かん詰・びん詰を除く。 | AE36: 資料 保健所食の安全推進課
A37: *2 アイスクリーム類を除き、マーガリンを含む。

Sheet 15 違反食品等の措置結果
A1: 15 違反食品等（保存基準違反、表示基準違反を除く）の措置結果
X2: 令和6年度
A3: 区 分 | C3: 違反件数（実数） | D3: 違 反 理 由 （延 数） | R3: 措置件数（実数） 食品に対する | S3: 措置内容（延数）
D4: 6条違反 | H4: 10条 | I4: 12条 | J4: 13条違反 | O4: 16条 | P4: 18条 | Q4: その他の違反 | S4: 廃棄 | U4: 返品 | V4: 販売停止 | W4: 転用・再製 | X4: その他
D5: １号 | E5: ２号 | F5: ３号 | G5: ４号 | J5: 成分規格 | L5: 製造基準 | M5: 使用基準 添加物 | N5: その他 | S5: 件数 | T5: 数量（㎏）
J6: 微生物 | K6: その他
A7: 総 数 | C7: 90 | D7: - | E7: 1 | F7: - | G7: - | H7: - | I7: 1 | J7: 1 | K7: - | L7: 2 | M7: - | N7: 2 | O7: - | P7: - | Q7: 86 | R7: 92 | S7: - | T7: - | U7: - | V7: 1 | W7: - | X7: 92
A8: 魚 介 類 | C8: 45 | D8: - | E8: - | F8: - | G8: - | H8: - | I8: - | J8: - | K8: - | L8: - | M8: - | N8: - | O8: - | P8: - | Q8: 45 | R8: 45 | S8: - | T8: - | U8: - | V8: - | W8: - | X8: 45
A9: 魚介類加工品*1 | C9: 19 | D9: - | E9: 1 | F9: - | G9: - | H9: - | I9: - | J9: - | K9: - | L9: - | M9: - | N9: - | O9: - | P9: - | Q9: 18 | R9: 19 | S9: - | T9: - | U9: - | V9: - | W9: - | X9: 19
B10: いくら・すじこ | C10: - | D10: - | E10: - | F10: - | G10: - | H10: - | I10: - | J10: - | K10: - | L10: - | M10: - | N10: - | O10: - | P10: - | Q10: - | R10: - | S10: - | T10: - | U10: - | V10: - | W10: - | X10: -
B11: た ら こ | C11: - | D11: - | E11: - | F11: - | G11: - | H11: - | I11: - | J11: - | K11: - | L11: - | M11: - | N11: - | O11: - | P11: - | Q11: - | R11: - | S11: - | T11: - | U11: - | V11: - | W11: - | X11: -
B12: かずのこ | C12: - | D12: - | E12: - | F12: - | G12: - | H12: - | I12: - | J12: - | K12: - | L12: - | M12: - | N12: - | O12: - | P12: - | Q12: - | R12: - | S12: - | T12: - | U12: - | V12: - | W12: - | X12: -
B13: そ の 他 | C13: 19 | D13: - | E13: 1 | F13: - | G13: - | H13: - | I13: - | J13: - | K13: - | L13: - | M13: - | N13: - | O13: - | P13: - | Q13: 18 | R13: 19 | S13: - | T13: - | U13: - | V13: - | W13: - | X13: 19
A14: 冷 凍 食 品 | C14: 2 | D14: - | E14: - | F14: - | G14: - | H14: - | I14: - | J14: - | K14: - | L14: - | M14: - | N14: 1 | O14: - | P14: - | Q14: 1 | R14: 2 | S14: - | T14: - | U14: - | V14: 1 | W14: - | X14: 2
A15: 肉卵類及びその加工品 *1 | C15: 2 | D15: - | E15: - | F15: - | G15: - | H15: - | I15: - | J15: - | K15: - | L15: 1 | M15: - | N15: - | O15: - | P15: - | Q15: 2 | R15: 3 | S15: - | T15: - | U15: - | V15: - | W15: - | X15: 3
A16: 穀類及びその加工品 *1 | C16: - | D16: - | E16: - | F16: - | G16: - | H16: - | I16: - | J16: - | K16: - | L16: - | M16: - | N16: - | O16: - | P16: - | Q16: - | R16: - | S16: - | T16: - | U16: - | V16: - | W16: - | X16: -
A17: 野菜類・果物及びその加工品 *1 | C17: - | D17: - | E17: - | F17: - | G17: - | H17: - | I17: - | J17: - | K17: - | L17: - | M17: - | N17: - | O17: - | P17: - | Q17: - | R17: - | S17: - | T17: - | U17: - | V17: - | W17: - | X17: -
A18: 菓 子 類 | C18: 1 | D18: - | E18: - | F18: - | G18: - | H18: - | I18: 1 | J18: - | K18: - | L18: - | M18: - | N18: - | O18: - | P18: - | Q18: 1 | R18: 1 | S18: - | T18: - | U18: - | V18: - | W18: - | X18: 1
A19: 氷 菓 | C19: - | D19: - | E19: - | F19: - | G19: - | H19: - | I19: - | J19: - | K19: - | L19: - | M19: - | N19: - | O19: - | P19: - | Q19: - | R19: - | S19: - | T19: - | U19: - | V19: - | W19: - | X19: -
A20: 清 涼 飲 料 水 | C20: - | D20: - | E20: - | F20: - | G20: - | H20: - | I20: - | J20: - | K20: - | L20: 1 | M20: - | N20: - | O20: - | P20: - | Q20: - | R20: 1 | S20: - | T20: - | U20: - | V20: - | W20: - | X20: 1
A21: 酒精飲料 | C21: - | D21: - | E21: - | F21: - | G21: - | H21: - | I21: - | J21: - | K21: - | L21: - | M21: - | N21: - | O21: - | P21: - | Q21: - | R21: - | S21: - | T21: - | U21: - | V21: - | W21: - | X21: -
A22: 氷 雪 | C22: - | D22: - | E22: - | F22: - | G22: - | H22: - | I22: - | J22: - | K22: - | L22: - | M22: - | N22: - | O22: - | P22: - | Q22: - | R22: - | S22: - | T22: - | U22: - | V22: - | W22: - | X22: -
A23: 水 | C23: - | D23: - | E23: - | F23: - | G23: - | H23: - | I23: - | J23: - | K23: - | L23: - | M23: - | N23: - | O23: - | P23: - | Q23: - | R23: - | S23: - | T23: - | U23: - | V23: - | W23: - | X23: -
A24: かん詰・びん詰食品 | C24: - | D24: - | E24: - | F24: - | G24: - | H24: - | I24: - | J24: - | K24: - | L24: - | M24: - | N24: - | O24: - | P24: - | Q24: - | R24: - | S24: - | T24: - | U24: - | V24: - | W24: - | X24: -
A25: 鯨 肉 製 品 | C25: 1 | D25: - | E25: - | F25: - | G25: - | H25: - | I25: - | J25: 1 | K25: - | L25: - | M25: - | N25: - | O25: - | P25: - | Q25: - | R25: 1 | S25: - | T25: - | U25: - | V25: - | W25: - | X25: 1
A26: 生 乳 | C26: - | D26: - | E26: - | F26: - | G26: - | H26: - | I26: - | J26: - | K26: - | L26: - | M26: - | N26: - | O26: - | P26: - | Q26: - | R26: - | S26: - | T26: - | U26: - | V26: - | W26: - | X26: -
A27: 牛 乳 | C27: - | D27: - | E27: - | F27: - | G27: - | H27: - | I27: - | J27: - | K27: - | L27: - | M27: - | N27: - | O27: - | P27: - | Q27: - | R27: - | S27: - | T27: - | U27: - | V27: - | W27: - | X27: -
A28: アイスクリ－ム類 | C28: - | D28: - | E28: - | F28: - | G28: - | H28: - | I28: - | J28: - | K28: - | L28: - | M28: - | N28: - | O28: - | P28: - | Q28: - | R28: - | S28: - | T28: - | U28: - | V28: - | W28: - | X28: -
A29: 乳 製 品 | C29: - | D29: - | E29: - | F29: - | G29: - | H29: - | I29: - | J29: - | K29: - | L29: - | M29: - | N29: - | O29: - | P29: - | Q29: - | R29: - | S29: - | T29: - | U29: - | V29: - | W29: - | X29: -
A30: その他の食品 | C30: 20 | D30: - | E30: - | F30: - | G30: - | H30: - | I30: - | J30: - | K30: - | L30: - | M30: - | N30: 1 | O30: - | P30: - | Q30: 19 | R30: 20 | S30: - | T30: - | U30: - | V30: - | W30: - | X30: 20
B31: そうざい類 | C31: 18 | D31: - | E31: - | F31: - | G31: - | H31: - | I31: - | J31: - | K31: - | L31: - | M31: - | N31: - | O31: - | P31: - | Q31: 18 | R31: 18 | S31: - | T31: - | U31: - | V31: - | W31: - | X31: 18
B32: 弁当類 | C32: 1 | D32: - | E32: - | F32: - | G32: - | H32: - | I32: - | J32: - | K32: - | L32: - | M32: - | N32: - | O32: - | P32: - | Q32: 1 | R32: 1 | S32: - | T32: - | U32: - | V32: - | W32: - | X32: 1
B33: その他 | C33: 1 | D33: - | E33: - | F33: - | G33: - | H33: - | I33: - | J33: - | K33: - | L33: - | M33: - | N33: 1 | O33: - | P33: - | Q33: - | R33: 1 | S33: - | T33: - | U33: - | V33: - | W33: - | X33: 1
A34: 添加物 | C34: - | D34: - | E34: - | F34: - | G34: - | H34: - | I34: - | J34: - | K34: - | L34: - | M34: - | N34: - | O34: - | P34: - | Q34: - | R34: - | S34: - | T34: - | U34: - | V34: - | W34: - | X34: -
B35: 化学的合成品及びその製剤 | C35: - | D35: - | E35: - | F35: - | G35: - | H35: - | I35: - | J35: - | K35: - | L35: - | M35: - | N35: - | O35: - | P35: - | Q35: - | R35: - | S35: - | T35: - | U35: - | V35: - | W35: - | X35: -
B36: その他の添加物 | C36: - | D36: - | E36: - | F36: - | G36: - | H36: - | I36: - | J36: - | K36: - | L36: - | M36: - | N36: - | O36: - | P36: - | Q36: - | R36: - | S36: - | T36: - | U36: - | V36: - | W36: - | X36: -
A37: 器具・容器包装 | C37: - | D37: - | E37: - | F37: - | G37: - | H37: - | I37: - | J37: - | K37: - | L37: - | M37: - | N37: - | O37: - | P37: - | Q37: - | R37: - | S37: - | T37: - | U37: - | V37: - | W37: - | X37: -
A38: お も ちゃ | C38: - | D38: - | E38: - | F38: - | G38: - | H38: - | I38: - | J38: - | K38: - | L38: - | M38: - | N38: - | O38: - | P38: - | Q38: - | R38: - | S38: - | T38: - | U38: - | V38: - | W38: - | X38: -
A39: *1 かん詰・びん詰を除く。 | X39: 資料 保健所食の安全推進課

Sheet 16 表示違反
A1: 16 表示違反状況
U2: 令和6年度
A3: 区分 | C3: 違反件数（実数） | D3: 違 反 理 由 （延 数） | M3: 措置件数（実数） 営業者に対する | N3: 措置内容（延数） | U3: 告発件数
D4: 名称 | E4: 期限表示 | F4: 製造所所在地 | G4: 製造者氏名 | H4: 添加物使用 | I4: 使用保存方法 | J4: アレルギー | K4: 遺伝子組換え | L4: その他 | N4: 業務停止 | O4: 回収命令 | P4: 販売禁止命令 | Q4: 始末書徴収 | R4: 指導票交付 | S4: 口頭説諭 | T4: その他
A5: 総 数 | C5: 92 | D5: 5 | E5: 15 | F5: 2 | G5: 9 | H5: 19 | I5: 8 | J5: 7 | K5: - | L5: 39 | M5: 92 | N5: - | O5: - | P5: - | Q5: 1 | R5: 7 | S5: 85 | T5: 1 | U5: -
A6: 魚 介 類 | C6: 18 | D6: 3 | E6: 6 | F6: - | G6: 3 | H6: 1 | I6: 4 | J6: - | K6: - | L6: 3 | M6: 18 | N6: - | O6: - | P6: - | Q6: - | R6: - | S6: 18 | T6: - | U6: -
A7: 魚介類加工品 *1 | C7: 21 | D7: 2 | E7: 4 | F7: 2 | G7: 3 | H7: 8 | I7: 1 | J7: - | K7: - | L7: 5 | M7: 21 | N7: - | O7: - | P7: - | Q7: - | R7: - | S7: 2 | T7: 19 | U7: -
A8: 冷 凍 食 品 | C8: 1 | D8: - | E8: - | F8: - | G8: - | H8: - | I8: 1 | J8: - | K8: - | L8: - | M8: 1 | N8: - | O8: - | P8: - | Q8: - | R8: 1 | S8: - | T8: 1 | U8: -
A9: 肉卵類及びその加工品 *1 | C9: 1 | D9: - | E9: - | F9: - | G9: - | H9: - | I9: - | J9: - | K9: - | L9: 1 | M9: 1 | N9: - | O9: - | P9: - | Q9: - | R9: - | S9: 1 | T9: - | U9: -
A10: 乳及び乳製品 | C10: - | D10: - | E10: - | F10: - | G10: - | H10: - | I10: - | J10: - | K10: - | L10: - | M10: - | N10: - | O10: - | P10: - | Q10: - | R10: - | S10: - | T10: - | U10: -
A11: 乳類加工品 *2 | C11: - | D11: - | E11: - | F11: - | G11: - | H11: - | I11: - | J11: - | K11: - | L11: - | M11: - | N11: - | O11: - | P11: - | Q11: - | R11: - | S11: - | T11: - | U11: -
A12: アイスクリーム類・氷菓 | C12: 1 | D12: - | E12: - | F12: - | G12: - | H12: - | I12: - | J12: - | K12: - | L12: 1 | M12: 1 | N12: - | O12: - | P12: - | Q12: - | R12: - | S12: 1 | T12: - | U12: -
A13: 穀類及びその加工品 *1 | C13: - | D13: - | E13: - | F13: - | G13: - | H13: - | I13: - | J13: - | K13: - | L13: - | M13: - | N13: - | O13: - | P13: - | Q13: - | R13: - | S13: - | T13: - | U13: -
A14: 野菜類・果物及びその加工品 *1 | C14: 1 | D14: - | E14: - | F14: - | G14: - | H14: - | I14: - | J14: 1 | K14: - | L14: - | M14: 1 | N14: - | O14: - | P14: - | Q14: - | R14: 1 | S14: - | T14: - | U14: -
A15: 菓 子 類 | C15: - | D15: - | E15: - | F15: - | G15: - | H15: - | I15: - | J15: - | K15: - | L15: - | M15: - | N15: - | O15: - | P15: - | Q15: - | R15: - | S15: - | T15: - | U15: -
A16: 清 涼 飲 料 水 | C16: 3 | D16: - | E16: 2 | F16: - | G16: - | H16: - | I16: - | J16: 1 | K16: - | L16: 2 | M16: 3 | N16: - | O16: - | P16: - | Q16: 1 | R16: 1 | S16: 2 | T16: - | U16: -
A17: 酒 精 飲 料 | C17: 2 | D17: - | E17: - | F17: - | G17: - | H17: - | I17: - | J17: - | K17: - | L17: 2 | M17: 2 | N17: - | O17: - | P17: - | Q17: - | R17: - | S17: 2 | T17: - | U17: -
A18: 氷 雪 | C18: - | D18: - | E18: - | F18: - | G18: - | H18: - | I18: - | J18: - | K18: - | L18: - | M18: - | N18: - | O18: - | P18: - | Q18: - | R18: - | S18: - | T18: - | U18: -
A19: かん詰・びん詰食品 | C19: - | D19: - | E19: - | F19: - | G19: - | H19: - | I19: - | J19: - | K19: - | L19: - | M19: - | N19: - | O19: - | P19: - | Q19: - | R19: - | S19: - | T19: - | U19: -
A20: レトルト食品 | C20: - | D20: - | E20: - | F20: - | G20: - | H20: - | I20: - | J20: - | K20: - | L20: - | M20: - | N20: - | O20: - | P20: - | Q20: - | R20: - | S20: - | T20: - | U20: -
A21: その他の食品 | C21: 44 | D21: - | E21: 3 | F21: - | G21: 3 | H21: 10 | I21: 2 | J21: 5 | K21: - | L21: 25 | M21: 44 | N21: - | O21: - | P21: - | Q21: - | R21: 2 | S21: 42 | T21: - | U21: -
B22: そうざい類 | C22: 37 | D22: - | E22: 3 | F22: - | G22: 3 | H22: 6 | I22: 2 | J22: 1 | K22: - | L22: 22 | M22: 37 | N22: - | O22: - | P22: - | Q22: - | R22: 1 | S22: 36 | T22: - | U22: -
B23: 弁 当 類 | C23: 4 | D23: - | E23: - | F23: - | G23: - | H23: 4 | I23: - | J23: 4 | K23: - | L23: - | M23: 4 | N23: - | O23: - | P23: - | Q23: - | R23: - | S23: 4 | T23: - | U23: -
B24: そ の 他 | C24: 3 | D24: - | E24: - | F24: - | G24: - | H24: - | I24: - | J24: - | K24: - | L24: 3 | M24: 3 | N24: - | O24: - | P24: - | Q24: - | R24: 1 | S24: 2 | T24: - | U24: -
A25: 添 加 物 | C25: - | D25: - | E25: - | F25: - | G25: - | H25: - | I25: - | J25: - | K25: - | L25: - | M25: - | N25: - | O25: - | P25: - | Q25: - | R25: - | S25: - | T25: - | U25: -
A26: 器具・容器包装 | C26: - | D26: - | E26: - | F26: - | G26: - | H26: - | I26: - | J26: - | K26: - | L26: - | M26: - | N26: - | O26: - | P26: - | Q26: - | R26: - | S26: - | T26: - | U26: -
A27: お も ち ゃ | C27: - | D27: - | E27: - | F27: - | G27: - | H27: - | I27: - | J27: - | K27: - | L27: - | M27: - | N27: - | O27: - | P27: - | Q27: - | R27: - | S27: - | T27: - | U27: -
A28: ※ 本表は食品表示法に違反するもののみを計上している。 | U28: 資料 保健所食の安全推進課
A29: *1 かん詰・びん詰を除く。
A30: *2 アイスクリーム類を除き、マーガリンを含む。

Sheet 17(1)(2)(3) 食品衛生関係の苦情相談件数
A1: 17 食品衛生関係の苦情・相談処理状況
A2: (1) 区別処理件数
P3: 令和6年度
A4: 区分 | C4: 総数 | D4: 苦情内容
D5: 腐敗 | E5: 変質 | F5: カビ | G5: 異物 | H5: 取り扱い | I5: 汚物 | J5: 施設の衛生 | K5: 容器包装 | L5: 表示 | M5: 添加物 | N5: 有症苦情 | O5: 鑑別相談 | P5: その他
A6: 総数 | C6: 1169 | D6: 7 | E6: 27 | F6: 20 | G6: 119 | H6: 89 | I6: 1 | J6: 88 | K6: 6 | L6: 58 | M6: 5 | N6: 437 | O6: 79 | P6: 233
A7: 中央 | C7: 554 | D7: 3 | E7: 13 | F7: 10 | G7: 59 | H7: 39 | I7: - | J7: 31 | K7: 2 | L7: 25 | M7: 4 | N7: 232 | O7: 4 | P7: 132
A8: 北 | C8: 91 | D8: - | E8: 1 | F8: - | G8: 8 | H8: 13 | I8: - | J8: 10 | K8: 1 | L8: 5 | M8: 1 | N8: 37 | O8: - | P8: 15
A9: 東 | C9: 114 | D9: - | E9: 3 | F9: 4 | G9: 13 | H9: 6 | I9: - | J9: 12 | K9: 1 | L9: 7 | M9: - | N9: 41 | O9: 12 | P9: 15
A10: 白石 | C10: 59 | D10: 2 | E10: - | F10: 2 | G10: 14 | H10: 3 | I10: - | J10: 4 | K10: 1 | L10: 4 | M10: - | N10: 16 | O10: - | P10: 13
A11: 厚別 | C11: 35 | D11: - | E11: 2 | F11: 1 | G11: 3 | H11: 5 | I11: - | J11: 2 | K11: - | L11: 3 | M11: - | N11: 15 | O11: - | P11: 4
A12: 豊平 | C12: 77 | D12: - | E12: 1 | F12: - | G12: 10 | H12: 4 | I12: - | J12: 8 | K12: - | L12: 7 | M12: - | N12: 35 | O12: - | P12: 12
A13: 清田 | C13: 24 | D13: 1 | E13: 1 | F13: - | G13: 5 | H13: - | I13: - | J13: 3 | K13: - | L13: - | M13: - | N13: 12 | O13: - | P13: 2
A14: 南 | C14: 74 | D14: 1 | E14: 3 | F14: 1 | G14: 2 | H14: 4 | I14: - | J14: 6 | K14: - | L14: 2 | M14: - | N14: 10 | O14: 29 | P14: 16
A15: 西 | C15: 89 | D15: - | E15: 3 | F15: 2 | G15: 3 | H15: 12 | I15: 1 | J15: 6 | K15: 1 | L15: 3 | M15: - | N15: 26 | O15: 17 | P15: 15
A16: 手稲 | C16: 52 | D16: - | E16: - | F16: - | G16: 2 | H16: 3 | I16: - | J16: 6 | K16: - | L16: 2 | M16: - | N16: 13 | O16: 17 | P16: 9
P17: 資料 保健所食の安全推進課
A20: (2) 業種別処理件数
P21: 令和6年度
A22: 区分 | C22: 総数 | D22: 苦情内容
D23: 腐敗 | E23: 変質 | F23: カビ | G23: 異物 | H23: 取り扱い | I23: 汚物 | J23: 施設の衛生 | K23: 容器包装 | L23: 表示 | M23: 添加物 | N23: 有症苦情 | O23: 鑑別相談 | P23: その他
A24: 総数 | C24: 1169 | D24: 7 | E24: 27 | F24: 20 | G24: 119 | H24: 89 | I24: 1 | J24: 88 | K24: 6 | L24: 58 | M24: 5 | N24: 437 | O24: 79 | P24: 233
A25: 飲食店・喫茶店 | C25: 638 | D25: 3 | E25: 11 | F25: 4 | G25: 54 | H25: 57 | I25: 1 | J25: 67 | K25: 3 | L25: 22 | N25: 324 | O25: 2 | P25: 90
A26: 製 造 業 | C26: 130 | D26: - | E26: 3 | F26: 7 | G26: 32 | H26: 11 | I26: - | J26: 6 | K26: 3 | L26: 18 | M26: 3 | N26: 24 | O26: - | P26: 23
A27: 販 売 業 | C27: 138 | D27: 2 | E27: 5 | F27: 4 | G27: 22 | H27: 14 | I27: - | J27: 8 | K27: - | L27: 15 | M27: 1 | N27: 30 | O27: - | P27: 37
A28: その他（家庭を含む） | C28: 263 | D28: 2 | E28: 8 | F28: 5 | G28: 11 | H28: 7 | I28: - | J28: 7 | K28: - | L28: 3 | M28: 1 | N28: 59 | O28: 77 | P28: 83
P29: 資料 保健所食の安全推進課
A32: (3) 食品等種類別処理件数
P33: 令和6年度
A34: 区分 | C34: 総数 | D34: 苦情内容
D35: 腐敗 | E35: 変質 | F35: カビ | G35: 異物 | H35: 取り扱い | I35: 汚物 | J35: 施設の衛生 | K35: 容器包装 | L35: 表示 | M35: 添加物 | N35: 有症苦情 | O35: 鑑別相談 | P35: その他
A36: 総数 | C36: 1169 | D36: 7 | E36: 27 | F36: 20 | G36: 119 | H36: 89 | I36: 1 | J36: 88 | K36: 6 | L36: 58 | M36: 5 | N36: 437 | O36: 79 | P36: 233
A37: 魚 介 類 | C37: 111 | D37: 1 | E37: 3 | F37: - | G37: 1 | H37: 3 | I37: - | J37: 7 | K37: - | L37: 4 | M37: - | N37: 84 | O37: - | P37: 8
A38: 魚介類加工品*1 | C38: 36 | D38: - | E38: 3 | F38: 4 | G38: 3 | H38: 2 | I38: - | J38: - | K38: 1 | L38: 4 | M38: - | N38: 17 | O38: - | P38: 2
A39: 冷 凍 食 品 | C39: 9 | D39: - | E39: - | F39: - | G39: 3 | H39: 3 | I39: - | J39: - | K39: 1 | L39: - | M39: - | N39: - | O39: - | P39: 2
A40: 肉卵類及びその加工品 ＊１ | C40: 160 | D40: 2 | E40: 4 | F40: 1 | G40: 9 | H40: 16 | I40: - | J40: 3 | K40: 1 | L40: 5 | M40: - | N40: 102 | O40: 1 | P40: 16
A41: 乳及び乳製品 | C41: 12 | D41: - | E41: 2 | F41: - | G41: 2 | H41: 3 | I41: - | J41: - | K41: - | L41: 1 | M41: - | N41: 1 | O41: - | P41: 3
A42: 乳類加工品 *2 | C42: 1 | D42: - | E42: - | F42: - | G42: - | H42: - | I42: - | J42: - | K42: - | L42: - | M42: - | N42: 1 | O42: - | P42: -
A43: アイスクリーム類・氷菓 | C43: 8 | D43: - | E43: - | F43: 1 | G43: 1 | H43: 2 | I43: - | J43: 1 | K43: - | L43: - | M43: - | N43: 1 | O43: - | P43: 2
A44: 穀類及びその加工品*1 | C44: 34 | D44: 1 | E44: 2 | F44: - | G44: 14 | H44: 2 | I44: - | J44: - | K44: - | L44: 1 | M44: - | N44: 10 | O44: 1 | P44: 3
A45: 野菜類・果物及びその加工品*1 | C45: 70 | D45: 2 | E45: 5 | F45: 3 | G45: 17 | H45: 5 | I45: - | J45: 2 | K45: - | L45: 2 | M45: - | N45: 9 | O45: 5 | P45: 20
A46: き の こ | C46: 70 | D46: - | E46: - | F46: - | G46: - | H46: - | I46: - | J46: - | K46: - | L46: 1 | M46: - | N46: - | O46: 69 | P46: -
A47: 菓 子 類 | C47: 98 | D47: - | E47: 3 | F47: 6 | G47: 16 | H47: 16 | I47: - | J47: 3 | K47: - | L47: 18 | M47: 2 | N47: 9 | O47: - | P47: 25
A48: 清涼飲料水・酒類 | C48: 19 | D48: - | E48: 1 | F48: 1 | G48: 3 | H48: 2 | I48: - | J48: 2 | K48: - | L48: - | M48: - | N48: 3 | O48: - | P48: 7
A49: 氷 雪 | C49: - | D49: - | E49: - | F49: - | G49: - | H49: - | I49: - | J49: - | K49: - | L49: - | M49: - | N49: - | O49: - | P49: -
A50: 水 | C50: 5 | D50: - | E50: - | F50: - | G50: - | H50: 1 | I50: - | J50: - | K50: - | L50: - | M50: - | N50: 3 | O50: - | P50: 1
A51: かん詰・びん詰食品 | C51: 6 | D51: - | E51: - | F51: - | G51: 3 | H51: - | I51: - | J51: - | K51: 1 | L51: - | M51: - | N51: - | O51: 1 | P51: 1
A52: レトルト食品 | C52: 1 | D52: - | E52: - | F52: - | G52: 1 | H52: - | I52: - | J52: - | K52: - | L52: - | M52: - | N52: - | O52: - | P52: -
A53: その他の食品 | C53: 416 | D53: 1 | E53: 4 | F53: 4 | G53: 45 | H53: 25 | I53: - | J53: 36 | K53: 1 | L53: 22 | M53: - | N53: 192 | O53: 2 | P53: 84
B54: そうざい類 | C54: 109 | D54: 1 | E54: 2 | F54: - | G54: 14 | H54: 7 | I54: - | J54: 12 | K54: - | L54: 7 | M54: - | N54: 49 | O54: - | P54: 17
B55: 弁 当 類 | C55: 71 | D55: - | E55: 1 | F55: - | G55: 12 | H55: 7 | I55: - | J55: 4 | K55: - | L55: 10 | M55: - | N55: 28 | O55: - | P55: 9
B56: その他 | C56: 236 | D56: - | E56: 1 | F56: 4 | G56: 19 | H56: 11 | I56: - | J56: 20 | K56: 1 | L56: 5 | M56: - | N56: 115 | O56: 2 | P56: 58
A57: 添 加 物 | C57: 6 | D57: - | E57: - | F57: - | G57: 1 | H57: - | I57: - | J57: - | K57: - | L57: - | M57: 3 | N57: 1 | O57: - | P57: 1
A58: 器具・容器包装 | C58: 1 | D58: - | E58: - | F58: - | G58: - | H58: 1 | I58: - | J58: - | K58: - | L58: - | M58: - | N58: - | O58: - | P58: -
A59: お も ちゃ | C59: - | D59: - | E59: - | F59: - | G59: - | H59: - | I59: - | J59: - | K59: - | L59: - | M59: - | N59: - | O59: - | P59: -
A60: 上 記 以 外 | C60: 106 | D60: - | E60: - | F60: - | G60: - | H60: 8 | I60: 1 | J60: 34 | K60: 1 | L60: - | M60: - | N60: 4 | O60: - | P60: 58
A61: *1 かん詰・びん詰を除く。 | P61: 資料 保健所食の安全推進課
A62: *2 アイスクリーム類を除き、マーガリンを含む。

Sheet 18(1) 食品衛生講習会の実施(区別)
A1: 18 食品衛生講習会の実施状況
A2: (1) 区別実施状況
G3: 令和6年度
A4: 区 分 | B4: 総 数 | D4: 営業従事者等に対する | F4: 一般消費者等に対する
D5: 講 習 会 | F5: 講 習 会
B6: 回 数 | C6: 受講者数 | D6: 回 数 | E6: 受講者数 | F6: 回 数 | G6: 受講者数
A7: 総数 | B7: 68 | C7: 3928 | D7: 31 | E7: 716 | F7: 37 | G7: 3212
A8: 中央 | B8: 23 | C8: 761 | D8: 17 | E8: 367 | F8: 6 | G8: 394
A9: 北 | B9: 4 | C9: 1263 | D9: 3 | E9: 53 | F9: 1 | G9: 1210
A10: 東 | B10: - | C10: - | D10: - | E10: - | F10: - | G10: -
A11: 白石 | B11: 5 | C11: 122 | D11: 5 | E11: 122 | F11: - | G11: -
A12: 厚別 | B12: 2 | C12: 557 | D12: - | E12: - | F12: 2 | G12: 557
A13: 豊平 | B13: 5 | C13: 333 | D13: - | E13: - | F13: 5 | G13: 333
A14: 清田 | B14: 11 | C14: 642 | D14: - | E14: - | F14: 11 | G14: 642
A15: 南 | B15: 10 | C15: 73 | D15: 1 | E15: 20 | F15: 9 | G15: 53
A16: 西 | B16: 2 | C16: 15 | D16: 1 | E16: 8 | F16: 1 | G16: 7
A17: 手稲 | B17: 6 | C17: 162 | D17: 4 | E17: 146 | F17: 2 | G17: 16
G19: 資料 保健所食の安全推進課

Sheet 18(2) 食品衛生講習会の実施(対象者別)
A1: (2) 受講対象者別実施状況 | B1: (2) 受講対象者別実施状況
D2: 令和6年度
B3: 区 分 | C3: 回 数 | D3: 受 講 者 数
B4: 総 数 | C4: 68 | D4: 3928
B5: 営業従事者等に対する講習会 | C5: 31 | D5: 716
B6: 食品衛生責任者再教育講習会 | C6: - | D6: -
B7: 新規営業者の講習会 | C7: 1 | D7: 20
B8: 更新営業者の講習会 | C8: - | D8: -
B9: 食中毒予防講習会 | C9: 26 | D9: 613
B10: 集団給食施設従事者講習会 | C10: - | D10: -
B11: 一般消費者等に対する講習会 | C11: 37 | D11: 3212
B12: そ の 他 | C12: 4 | D12: 83
B13: 山菜・きのこ鑑別講習会 | C13: 1 | D13: 1210
B14: 食中毒予防講習会 | C14: 10 | D14: 392
B15: 食品添加物講習会 | C15: - | D15: -
B16: 輸入食品情報提供講習会 | C16: - | D16: -
B17: そ の 他 | C17: 26 | D17: 1610
D18: 資料 保健所食の安全推進課

Sheet 19 食中毒発生状況
A1: 19 食中毒発生状況
K2: 令和6年
A4: 本市 事件簿 番号 | B4: 課別 番号 | C4: 発生月日 | D4: 摂食者数 | E4: 患者数 | F4: 死者数 | G4: 原 因 食 品 | H4: 病 因 物 質 | I4: 原 因 施 設 | J4: 摂 食 場 所 | K4: 患者数 累計
A6: 1 | B6: 広域 1 | C6: 2025-01-17 | D6: 不明 | E6: 1 | F6: 0 | G6: 不明 | H6: アニサキス | I6: 不明 | J6: 不明 | K6: 1
A7: 2 | B7: 東 1 | C7: 2025-01-21 | D7: 不明 | E7: 2 | F7: 0 | G7: 不明 | H7: アニサキス | I7: 不明 | J7: 不明 | K7: 3
A8: 3 | B8: 手稲 １ | C8: 2025-01-21 | D8: 34 | E8: 15 | F8: 0 | G8: 1月20日に提供された寿司 | H8: ノロウイルス | I8: 飲食店 | J8: 家庭 | K8: 18
A9: 4 | B9: 中央 1 | C9: 2025-02-02 | D9: 不明 | E9: 1 | F9: 0 | G9: 不明 | H9: アニサキス | I9: 不明 | J9: 不明 | K9: 19
A10: 5 | B10: 中央 2 | C10: 2025-02-15 | D10: 不明 | E10: 1 | F10: 0 | G10: 不明 | H10: アニサキス | I10: 不明 | J10: 不明 | K10: 20
A11: 6 | B11: 豊平 1 | C11: 2025-04-08 | D11: 不明 | E11: 1 | F11: 0 | G11: 不明 | H11: アニサキス | I11: 不明 | J11: 不明 | K11: 21
A12: 7 | B12: 中央 3 | C12: 2025-04-08 | D12: 不明 | E12: 86 | F12: 0 | G12: ４月７日（日）～18日（木）に 飲食店で提供された食品 | H12: ノロウイルス | I12: 飲食店 | J12: 飲食店 | K12: 107
A13: 8 | B13: 中央 4 | C13: 2025-04-06 | D13: 不明 | E13: 50 | F13: 0 | G13: ４月５日（金）～18日（木）に 飲食店で提供された食品 | H13: ノロウイルス | I13: 飲食店 | J13: 飲食店 | K13: 157
A14: 9 | B14: 北 1 | C14: 4月23日 （推定） | D14: 2 | E14: 2 | F14: 2 | G14: イヌサフラン（推定） | H14: 植物性自然毒 （コルヒチン） | I14: 家庭 | J14: 家庭 | K14: 159
A15: 10 | B15: 中央 5 | C15: 2025-05-04 | D15: 不明 | E15: 50 | F15: 0 | G15: ５月３日(金)～10日（金）に飲食店で提供された食品 | H15: ノロウイルス | I15: 飲食店 | J15: 飲食店 | K15: 209
A16: 11 | B16: 手稲 2 | C16: 2025-05-07 | D16: 不明 | E16: 2 | F16: 0 | G16: 不明 | H16: カンピロバクター属菌 | I16: 不明 | J16: 不明 | K16: 211
A17: 12 | B17: 中央 6 | C17: 2025-06-26 | D17: 不明 | E17: 1 | F17: 0 | G17: 不明 | H17: アニサキス | I17: 不明 | J17: 不明 | K17: 212
A18: 13 | B18: 中央 7 | C18: 2025-07-24 | D18: 不明 | E18: 1 | F18: 0 | G18: 不明 | H18: アニサキス | I18: 不明 | J18: 不明 | K18: 213
A19: 14 | B19: 豊平 2 | C19: 2025-08-26 | D19: 不明 | E19: 1 | F19: 0 | G19: 不明 | H19: アニサキス | I19: 不明 | J19: 不明 | K19: 214
A20: 15 | B20: 豊平 3 | C20: 2025-08-26 | D20: 不明 | E20: 1 | F20: 0 | G20: 不明 | H20: アニサキス | I20: 不明 | J20: 不明 | K20: 215
A21: 16 | B21: 厚別 1 | C21: 2025-09-26 | D21: 不明 | E21: 1 | F21: 0 | G21: 不明 | H21: アニサキス | I21: 不明 | J21: 不明 | K21: 216
A22: 17 | B22: 中央 8 | C22: 2025-10-02 | D22: 不明 | E22: 1 | F22: 0 | G22: 不明 | H22: アニサキス | I22: 不明 | J22: 不明 | K22: 217
A23: 18 | B23: 中央 9 | C23: 2025-10-14 | D23: 不明 | E23: 6 | F23: 0 | G23: 10月12日(土)～13日（日）に飲食店で提供された食品 | H23: カンピロバクター・ジェジュニ | I23: 飲食店 | J23: 飲食店 | K23: 223
A24: 19 | B24: 中央 10 | C24: 2025-12-21 | D24: 不明 | E24: 49 | F24: 0 | G24: 12月20日(金)に飲食店で提供された食品 | H24: ノロウイルス | I24: 飲食店 | J24: 飲食店 | K24: 272
A25: 20 | B25: 中央 11 | C25: 2025-12-29 | D25: 不明 | E25: 73 | F25: 0 | G25: 12月29日(日)にビルで供給された水（推定） | H25: ノロウイルス | I25: その他 | J25: 飲食店 | K25: 345
A26: ※ 本表は令和6年1月1日から令和6年12月31日までの発生状況をまとめたものである。

Sheet 20 年次別食中毒発生状況
A1: 20 年次別食中毒発生状況
A3: 区分 | C3: 総数 | D3: 中央 | E3: 北 | F3: 東 | G3: 白石 | H3: 厚別 | I3: 豊平 | J3: 清田 | K3: 南 | L3: 西 | M3: 手稲 | N3: 不明
A4: 平 成 17 年 | B4: 件 数 | C4: 9 | D4: 3 | E4: 1 | F4: 1 | G4: 0 | H4: 1 | I4: 0 | J4: 0 | K4: 2 | L4: 1 | M4: 0 | N4: 0
B5: 患者数 | C5: 202 | D5: 56 | E5: 37 | F5: 9 | G5: 0 | H5: 5 | I5: 0 | J5: 0 | K5: 83 | L5: 12 | M5: 0 | N5: 0
B6: 死者数 | C6: 0 | D6: 0 | E6: 0 | F6: 0 | G6: 0 | H6: 0 | I6: 0 | J6: 0 | K6: 0 | L6: 0 | M6: 0 | N6: 0
A7: 平 成 18 年 | B7: 件 数 | C7: 12 | D7: 4 | E7: 1 | F7: 2 | G7: 1 | H7: 1 | I7: 1 | J7: 0 | K7: 1 | L7: 1 | M7: 0 | N7: 0
B8: 患者数 | C8: 316 | D8: 98 | E8: 3 | F8: 25 | G8: 4 | H8: 16 | I8: 53 | J8: 0 | K8: 110 | L8: 7 | M8: 0 | N8: 0
B9: 死者数 | C9: 0 | D9: 0 | E9: 0 | F9: 0 | G9: 0 | H9: 0 | I9: 0 | J9: 0 | K9: 0 | L9: 0 | M9: 0 | N9: 0
A10: 平 成 19 年 | B10: 件 数 | C10: 15 | D10: 6 | E10: 4 | F10: 0 | G10: 1 | H10: 1 | I10: 1 | J10: 0 | K10: 1 | L10: 1 | M10: 0 | N10: 0
B11: 患者数 | C11: 421 | D11: 152 | E11: 145 | F11: 0 | G11: 56 | H11: 29 | I11: 1 | J11: 0 | K11: 1 | L11: 37 | M11: 0 | N11: 0
B12: 死者数 | C12: 0 | D12: 0 | E12: 0 | F12: 0 | G12: 0 | H12: 0 | I12: 0 | J12: 0 | K12: 0 | L12: 0 | M12: 0 | N12: 0
A13: 平 成 20 年 | B13: 件 数 | C13: 11 | D13: 5 | E13: 0 | F13: 1 | G13: 2 | H13: 0 | I13: 1 | J13: 1 | K13: 0 | L13: 1 | M13: 0 | N13: 0
B14: 患者数 | C14: 252 | D14: 37 | E14: 0 | F14: 188 | G14: 5 | H14: 0 | I14: 2 | J14: 3 | K14: 0 | L14: 17 | M14: 0 | N14: 0
B15: 死者数 | C15: 0 | D15: 0 | E15: 0 | F15: 0 | G15: 0 | H15: 0 | I15: 0 | J15: 0 | K15: 0 | L15: 0 | M15: 0 | N15: 0
A16: 平 成 21 年 | B16: 件 数 | C16: 8 | D16: 6 | E16: 0 | F16: 2 | G16: - | H16: 0 | I16: - | J16: - | K16: 0 | L16: - | M16: 0 | N16: 0
B17: 患者数 | C17: 325 | D17: 43 | E17: 0 | F17: 282 | G17: - | H17: 0 | I17: - | J17: - | K17: 0 | L17: - | M17: 0 | N17: 0
B18: 死者数 | C18: 0 | D18: 0 | E18: 0 | F18: 0 | G18: 0 | H18: 0 | I18: 0 | J18: 0 | K18: 0 | L18: 0 | M18: 0 | N18: 0
A19: 平 成 22 年 | B19: 件 数 | C19: 5 | D19: 2 | E19: 1 | F19: 0 | G19: 2 | H19: 0 | I19: 0 | J19: 0 | K19: 0 | L19: 0 | M19: 0 | N19: 0
B20: 患者数 | C20: 135 | D20: 111 | E20: 4 | F20: 0 | G20: 20 | H20: 0 | I20: 0 | J20: 0 | K20: 0 | L20: 0 | M20: 0 | N20: 0
B21: 死者数 | C21: 0 | D21: 0 | E21: 0 | F21: 0 | G21: 0 | H21: 0 | I21: 0 | J21: 0 | K21: 0 | L21: 0 | M21: 0 | N21: 0
A22: 平 成 23 年 | B22: 件 数 | C22: 12 | D22: 5 | E22: 1 | F22: 1 | G22: 1 | H22: 1 | I22: 0 | J22: 0 | K22: 0 | L22: 2 | M22: 1 | N22: 0
B23: 患者数 | C23: 78 | D23: 51 | E23: 3 | F23: 8 | G23: 3 | H23: 3 | I23: 0 | J23: 0 | K23: 0 | L23: 6 | M23: 4 | N23: 0
B24: 死者数 | C24: 0 | D24: 0 | E24: 0 | F24: 0 | G24: 0 | H24: 0 | I24: 0 | J24: 0 | K24: 0 | L24: 0 | M24: 0 | N24: 0
A25: 平 成 24 年 | B25: 件 数 | C25: 13 | D25: 1 | E25: 2 | F25: 2 | G25: 2 | H25: 0 | I25: 1 | J25: 0 | K25: 1 | L25: 1 | M25: 3 | N25: 0
B26: 患者数 | C26: 245 | D26: 4 | E26: 3 | F26: 38 | G26: 6 | H26: 0 | I26: 2 | J26: 0 | K26: 3 | L26: 169 | M26: 20 | N26: 0
B27: 死者数 | C27: 8 | D27: 0 | E27: 0 | F27: 0 | G27: 0 | H27: 0 | I27: 0 | J27: 0 | K27: 0 | L27: 8 | M27: 0 | N27: 0
A28: 平 成 25 年 | B28: 件 数 | C28: 17 | D28: 6 | E28: 1 | F28: 3 | G28: 1 | H28: 1 | I28: 2 | J28: 0 | K28: 1 | L28: 1 | M28: 1 | N28: 0
B29: 患者数 | C29: 637 | D29: 48 | E29: 27 | F29: 378 | G29: 39 | H29: 1 | I29: 21 | J29: 0 | K29: 2 | L29: 119 | M29: 2 | N29: 0
B30: 死者数 | C30: 0 | D30: 0 | E30: 0 | F30: 0 | G30: 0 | H30: 0 | I30: 0 | J30: 0 | K30: 0 | L30: 0 | M30: 0 | N30: 0
A31: 平 成 26 年 | B31: 件 数 | C31: 3 | D31: 3 | E31: 0 | F31: 0 | G31: 0 | H31: 0 | I31: 0 | J31: 0 | K31: 0 | L31: 0 | M31: 0 | N31: 0
B32: 患者数 | C32: 42 | D32: 42 | E32: 0 | F32: 0 | G32: 0 | H32: 0 | I32: 0 | J32: 0 | K32: 0 | L32: 0 | M32: 0 | N32: 0
B33: 死者数 | C33: 0 | D33: 0 | E33: 0 | F33: 0 | G33: 0 | H33: 0 | I33: 0 | J33: 0 | K33: 0 | L33: 0 | M33: 0 | N33: 0
A34: 平 成 27 年 | B34: 件 数 | C34: 12 | D34: 2 | E34: 1 | F34: 0 | G34: 1 | H34: 0 | I34: 4 | J34: 1 | K34: 1 | L34: 2 | M34: 0 | N34: 0
B35: 患者数 | C35: 225 | D35: 19 | E35: 13 | F35: 0 | G35: 1 | H35: 0 | I35: 185 | J35: 1 | K35: 2 | L35: 4 | M35: 0 | N35: 0
B36: 死者数 | C36: 3 | D36: 0 | E36: 0 | F36: 0 | G36: 0 | H36: 0 | I36: 0 | J36: 0 | K36: 2 | L36: 1 | M36: 0 | N36: 0
A37: 平 成 28 年 | B37: 件 数 | C37: 15 | D37: 9 | E37: 0 | F37: 0 | G37: - | H37: 1 | I37: 1 | J37: 1 | K37: 1 | L37: 1 | M37: 1 | N37: 0
B38: 患者数 | C38: 335 | D38: 102 | E38: 0 | F38: 0 | G38: 0 | H38: 1 | I38: 1 | J38: 9 | K38: 212 | L38: 8 | M38: 2 | N38: 0
B39: 死者数 | C39: 0 | D39: 0 | E39: 0 | F39: 0 | G39: 0 | H39: 0 | I39: 0 | J39: 0 | K39: - | L39: 0 | M39: 0 | N39: 0
A40: 平 成 29 年 | B40: 件 数 | C40: 24 | D40: 12 | E40: 2 | F40: 1 | G40: 2 | H40: 0 | I40: 2 | J40: 0 | K40: 2 | L40: 2 | M40: 1 | N40: 0
B41: 患者数 | C41: 227 | D41: 125 | E41: 24 | F41: 53 | G41: 2 | H41: 0 | I41: 16 | J41: 0 | K41: 2 | L41: 2 | M41: 3 | N41: 0
B42: 死者数 | C42: 0 | D42: 0 | E42: 0 | F42: 0 | G42: 0 | H42: 0 | I42: 0 | J42: 0 | K42: 0 | L42: 0 | M42: 0 | N42: 0
A43: 平 成 30 年 | B43: 件 数 | C43: 33 | D43: 19 | E43: 3 | F43: 4 | G43: 1 | H43: 1 | I43: 3 | J43: 1 | K43: 0 | L43: 0 | M43: 1 | N43: 0
B44: 患者数 | C44: 218 | D44: 179 | E44: 6 | F44: 17 | G44: 1 | H44: 2 | I44: 11 | J44: 1 | K44: 0 | L44: 0 | M44: 1 | N44: 0
B45: 死者数 | C45: 0 | D45: 0 | E45: 0 | F45: 0 | G45: 0 | H45: 0 | I45: 0 | J45: 0 | K45: 0 | L45: 0 | M45: 0 | N45: 0
A46: 令 和 元 年 | B46: 件 数 | C46: 28 | D46: 13 | E46: 3 | F46: 2 | G46: 1 | H46: 4 | I46: 1 | J46: 1 | K46: 2 | L46: 1 | M46: 0 | N46: 0
B47: 患者数 | C47: 171 | D47: 23 | E47: 8 | F47: 2 | G47: 1 | H47: 26 | I47: 1 | J47: 1 | K47: 107 | L47: 2 | M47: 0 | N47: 0
B48: 死者数 | C48: 0 | D48: 0 | E48: 0 | F48: 0 | G48: 0 | H48: 0 | I48: 0 | J48: 0 | K48: 0 | L48: 0 | M48: 0 | N48: 0
A49: 令 和 2 年 | B49: 件 数 | C49: 28 | D49: 10 | E49: 4 | F49: 0 | G49: 6 | H49: 1 | I49: 1 | J49: 1 | K49: 3 | L49: 1 | M49: 1 | N49: 0
B50: 患者数 | C50: 148 | D50: 36 | E50: 29 | F50: 0 | G50: 7 | H50: 1 | I50: 1 | J50: 1 | K50: 68 | L50: 4 | M50: 1 | N50: 0
B51: 死者数 | C51: 0 | D51: 0 | E51: 0 | F51: 0 | G51: 0 | H51: 0 | I51: 0 | J51: 0 | K51: 0 | L51: 0 | M51: 0 | N51: 0
A52: 令 和 3 年 | B52: 件 数 | C52: 12 | D52: 3 | E52: 2 | F52: 1 | G52: 2 | H52: 0 | I52: 0 | J52: 0 | K52: 10 | L52: 2 | M52: 2 | N52: 0
B53: 患者数 | C53: 22 | D53: 3 | E53: 2 | F53: 1 | G53: 2 | H53: 0 | I53: 0 | J53: 0 | K53: 10 | L53: 2 | M53: 2 | N53: 0
B54: 死者数 | C54: 0 | D54: 0 | E54: 0 | F54: 0 | G54: 0 | H54: 0 | I54: 0 | J54: 0 | K54: 0 | L54: 0 | M54: 0 | N54: 0
A55: 令 和 4 年 | B55: 件 数 | C55: 19 | D55: 8 | E55: 0 | F55: 5 | G55: 1 | H55: 1 | I55: 1 | J55: 0 | K55: 1 | L55: 2 | M55: 0 | N55: 0
B56: 患者数 | C56: 22 | D56: 11 | E56: 0 | F56: 5 | G56: 1 | H56: 1 | I56: 1 | J56: 0 | K56: 1 | L56: 2 | M56: 0 | N56: 0
B57: 死者数 | C57: 0 | D57: 0 | E57: 0 | F57: 0 | G57: 0 | H57: 0 | I57: 0 | J57: 0 | K57: 0 | L57: 0 | M57: 0 | N57: 0
A58: 令 和 5 年 | B58: 件 数 | C58: =SUM(D58:N58) -> 21 | D58: 9 | E58: 1 | F58: 1 | G58: 3 | H58: 0 | I58: 3 | J58: 0 | K58: 2 | L58: 0 | M58: 2 | N58: 0
B59: 患者数 | C59: 101 | D59: 76 | E59: 1 | F59: 1 | G59: 16 | H59: 0 | I59: 3 | J59: 0 | K59: 2 | L59: 0 | M59: 2 | N59: 0
B60: 死者数 | C60: 0 | D60: 0 | E60: 0 | F60: 0 | G60: 0 | H60: 0 | I60: 0 | J60: 0 | K60: 0 | L60: 0 | M60: 0 | N60: 0
A61: 令 和 6 年 | B61: 件 数 | C61: 20 | D61: 6 | E61: 1 | F61: - | G61: - | H61: - | I61: - | J61: - | K61: - | L61: - | M61: 1 | N61: 12
B62: 患者数 | C62: 345 | D62: 314 | E62: 2 | F62: - | G62: - | H62: - | I62: - | J62: - | K62: - | L62: - | M62: 15 | N62: 14
B63: 死者数 | C63: 2 | D63: - | E63: 2 | F63: - | G63: - | H63: - | I63: - | J63: - | K63: - | L63: - | M63: - | N63: -
A64: ※ 本表の各年は、当該年の1月1日から12月31日までの発生状況を計上したものである。
N65: 資料 保健所食の安全推進課

Sheet 21 食鳥処理場の監視指導
A1: 21 食鳥処理場の監視指導
E2: 令和6年度
A3: 施 設 数 | B3: 施 設 内 訳 | D3: 監視指導延施設数 | E3: 違反発見施設数
A4: 1 | B4: 大 規 模 | C4: - | D4: - | E4: -
B5: 認定小規模 | C5: 1 | D5: 1 | E5: -
E6: 資料 保健所食の安全推進課
